Workbook

Sheet Introduction
C3: Tool to calculate the cost-effective strategy for user-defined prices and cost-effectiveness thresholds
C5: For full report on model and analysis see Faria et al. 'Prevention of progression to cirrhosis in hepatitis C with fibrosis: effectiveness and cost-effectiveness of sequential therapy'. 2016
C7: Introduction
C9: This tool calculates the cost-effective sequence of treatment for patient groups with chronic hepatatis C infection using user-defined prices (or price discounts) and cost-effectiveness threshold. Health benefits are expressed as quality-adjusted life years (QALYs) over the patients' lifetime. Costs are in UK pound sterling. Only costs falling on the NHS budget were included.
C11: Patient populations
C13: The population is patients with chronic hepatitis C infection with advanced fibrosis but pre-cirrhotic (METAVIR F3).
C14: The population is divided into 14 subgroups depending on viral genotype, exposure to prior treatment and eligibility to interferon-containing treatments:
D15: By viral genotype: genotype 1, genotype 2, genotype 3 and genotype 4 virus.
D16: By exposure to prior treatment: treatment-naïve, treatment-experienced to interferon or treatment-experienced to protease inhibitors.
D17: Eligible or ineligible for interferon-containing regimens. treatment naive patients are assumed to include some patients who are eligible for interferon-containing regimens and some who are not.
C19: Treatments included
C21: The tool, and the cost-effectiveness analysis on which it is based on, compares treatment strategies with one, two or three lines of treatment. The treatments included are:
D22: PR: Peginterferon alfa-2a with ribavirin for 24 weeks for treatment-naïve genotypes 2 and 3; 48 weeks for treatment-naïve genotypes 1 and 4 and all treatment-experienced patients.
D23: SMV+PR: Simeprevir with PR where SMV is given over 12 weeks and PR is given over 24 weeks for treatment-naïve and prior relapsers and 48 weeks for treatment-experienced (prior null or partial responders).
D24: SOF+PR: Sofosbuvir with PR where SOF is given over 12 weeks for genotypes 1, 3 and 4.
D25: SOF+RBV: Sofosbuvir with ribavirin given over 12 weeks for genotype 2 and over 24 weeks for genotypes 1, 3 and 4.
D26: SOF+LED: Ledipasvir-sofosbuvir given over 8 weeks for genotype 1 treatment-naive, 12 weeks for genotype 4 treatment-naïve and genotypes 1 and 4 treatment-experienced.
D27: SOF+LED+RBV: given over 12 weeks for HCV genotype 3.
D28: 2D+RBV: Ombitasvir, paritaprevir and ritonavir with ribavirin given over 12 weeks for HCV genotype 4.
D29: 3D+/-RBV: Ombitasvir, paritaprevir, ritonavir and dasabuvir with or without ribavirin given over 12 weeks for genotype 1.
D30: SOF+DCV: Daclatasvir with SOF given over 12 weeks for genotypes 1, 3 and 4.
D31: DCV+PR: Daclatasvir over 24 weeks with PR over 48 weeks for genotype 4
C33: Interpretation of results
C35: The cost-effective sequence for each subgroup is that which achieves the greatest net health gains. The rationale is that costs can be expressed as health losses using the cost-effectiveness threshold. The cost-effectiveness threshold represents the marginal cost of producing one QALY in the current health care system.
C36: For each subgroup, the cost-effectiveness results are presented at a per patient basis and include:
D37: The treatments composing the cost-effective sequence and their position in the sequence (1st, 2nd or 3rd line).
D38: The proportion of patients achieving sustained virologic response (SVR) at each treatment line.
D39: The cost of each treatment line.
D40: The lifetime costs of the treatment strategy, discounted at 3.5% per annum.
D41: The lifetime QALYs of the treatment strategy, discounted at 3.5% per annum.
D42: The incremental cost-effectiveness ratio (ICER).
C44: The results for the treatment-experienced subgroups reflect the full treatment pathway experienced by the patient, including their first line treatment (PR or protease inhibitor+PR)
C46: How to use the tool
C48: Click here to go to the inputs sheet where you can input your prices and cost-effectiveness threshold.
C50: Methods
C52: For more details on parameter inputs and structure of cost-effectiveness model see the Technical Appendix in the aformentioned paper.
C55: Click here to make calculation sheets visible: | K55: Click here to make calculaton sheets invisible:

Sheet Price inputs
C7: Price inputs
C9: Generic name | D9: Brand name | E9: Packet size | F9: New price | G9: OR | H9: Discount | J9: UK list price
C10: Sofosbuvir | D10: Sovaldi | E10: 28 | J10: 11660.98
C11: Simeprevir | D11: Olysio | E11: 7 | J11: 1866.5
C12: Pegylated interferon | D12: Pegasys 180mcg | E12: 1 | J12: 124
C13: Ribavirin | D13: Copegus | E13: 168 | J13: 321.38
C14: Ledipasvir-Sofosbuvir | D14: Harvoni | E14: 28 | J14: 12993.33
C15: Ombitasvir-paritaprevir-ritonavir | D15: Viekirax | E15: 56 | J15: 10733.33
C16: Dasabuvir | D16: Exciera | E16: 56 | J16: 933.33
C17: Daclatasvir | D17: Daclinza | E17: 28 | J17: 8172.61
J18: This is the price used as default
F19: Insert EITHER the new price OR the % discount in the green box
C21: Cost-effectiveness threshold | D21: 20000 | E21: Insert the relevant cost-effectiveness threshold; default is | J21: 20000 | K21: per QALY gained
E24: Press this button for the model to calculate the cost-effective strategies

Sheet Results
C3: Results: Cost-effective strategy for each subgroup
C5: Treatment-naïve patients
D7: Cost-effective strategies | G7: % Patients achieving SVR by line | J7: Treatment cost by line | M7: Total | N7: Total | O7: ICER
C8: Subgroup | D8: 1st line | E8: 2nd line | F8: 3rd line | G8: 1st | H8: 2nd | I8: 3rd | J8: 1st | K8: 2nd | L8: 3rd | M8: Costs | N8: QALYs
C9: Genotype 1 interferon ineligible | D9: =IF('Calculations 3'!V11="","",VLOOKUP('Calculations 3'!V11,F3_treat_duration,14,FALSE)) -> SOF+LED 8w | E9: =IF('Calculations 3'!W11="","",VLOOKUP('Calculations 3'!W11,F3_treat_duration,14,FALSE)) -> 3D+/-RBV 12w | F9: =IF('Calculations 3'!X11="","",VLOOKUP('Calculations 3'!X11,F3_treat_duration,14,FALSE)) -> SOF+DCV 12w | G9: ='Calculations 3'!AA11 -> 0.9189196413 | H9: ='Calculations 3'!AB11 -> 0.05962713197 | I9: ='Calculations 3'!AC11 -> 0.002303087876 | J9: ='Calculations 3'!AD11 -> 25917.98 | K9: ='Calculations 3'!AE11 -> 2229.91 | L9: ='Calculations 3'!AF11 -> 145.08 | M9: ='Calculations 3'!AG11 -> 29699.8 | N9: ='Calculations 3'!AH11 -> 12.05162913 | O9: ='Calculations 3'!AI11 -> 10867.28585
C10: Genotype 1 interferon eligible | D10: =IF('Calculations 3'!V12="","",VLOOKUP('Calculations 3'!V12,F3_treat_duration,14,FALSE)) -> SOF+LED 8w | E10: =IF('Calculations 3'!W12="","",VLOOKUP('Calculations 3'!W12,F3_treat_duration,14,FALSE)) -> 3D+/-RBV 12w | F10: =IF('Calculations 3'!X12="","",VLOOKUP('Calculations 3'!X12,F3_treat_duration,14,FALSE)) -> SOF+PR 12w | G10: ='Calculations 3'!AA12 -> 0.9189683103 | H10: ='Calculations 3'!AB12 -> 0.05960086829 | I10: ='Calculations 3'!AC12 -> 0.001741286232 | J10: ='Calculations 3'!AD12 -> 25917.98 | K10: ='Calculations 3'!AE12 -> 2228.43 | L10: ='Calculations 3'!AF12 -> 90.48 | M10: ='Calculations 3'!AG12 -> 29674.57 | N10: ='Calculations 3'!AH12 -> 12.05045891 | O10: ='Calculations 3'!AI12 -> 5106.37757
C11: Genotype 2 interferon ineligible | D11: =IF('Calculations 3'!V15="","",VLOOKUP('Calculations 3'!V15,F3_treat_duration,14,FALSE)) -> SOF+RBV 24w | E11: =IF('Calculations 3'!W15="","",VLOOKUP('Calculations 3'!W15,F3_treat_duration,14,FALSE)) ->  | F11: =IF('Calculations 3'!X15="","",VLOOKUP('Calculations 3'!X15,F3_treat_duration,14,FALSE)) ->  | G11: ='Calculations 3'!AA15 -> 0.9102512082 | H11: ='Calculations 3'!AB15 -> 0 | I11: ='Calculations 3'!AC15 -> 0 | J11: ='Calculations 3'!AD15 -> 35340.96 | K11: ='Calculations 3'!AE15 -> 0 | L11: ='Calculations 3'!AF15 -> 0 | M11: ='Calculations 3'!AG15 -> 40250.9 | N11: ='Calculations 3'!AH15 -> 11.93125781 | O11: ='Calculations 3'!AI15 -> Lowest cost
C12: Genotype 2 interferon eligible | D12: =IF('Calculations 3'!V16="","",VLOOKUP('Calculations 3'!V16,F3_treat_duration,14,FALSE)) -> PR 24w | E12: =IF('Calculations 3'!W16="","",VLOOKUP('Calculations 3'!W16,F3_treat_duration,14,FALSE)) -> SOF+RBV 24w | F12: =IF('Calculations 3'!X16="","",VLOOKUP('Calculations 3'!X16,F3_treat_duration,14,FALSE)) ->  | G12: ='Calculations 3'!AA16 -> 0.7734989008 | H12: ='Calculations 3'!AB16 -> 0.1694995405 | I12: ='Calculations 3'!AC16 -> 0 | J12: ='Calculations 3'!AD16 -> 4101.5 | K12: ='Calculations 3'!AE16 -> 6731.12 | L12: ='Calculations 3'!AF16 -> 0 | M12: ='Calculations 3'!AG16 -> 14474.83 | N12: ='Calculations 3'!AH16 -> 11.91941175 | O12: ='Calculations 3'!AI16 -> Lowest cost
C13: Genotype 3 interferon ineligible | D13: =IF('Calculations 3'!V18="","",VLOOKUP('Calculations 3'!V18,F3_treat_duration,14,FALSE)) -> SOF+LED+RBV 12w | E13: =IF('Calculations 3'!W18="","",VLOOKUP('Calculations 3'!W18,F3_treat_duration,14,FALSE)) -> SOF+DCV 12w | F13: =IF('Calculations 3'!X18="","",VLOOKUP('Calculations 3'!X18,F3_treat_duration,14,FALSE)) -> SOF+RBV 24w | G13: ='Calculations 3'!AA18 -> 0.9242813226 | H13: ='Calculations 3'!AB18 -> 0.03783968923 | I13: ='Calculations 3'!AC18 -> 0.002704962074 | J13: ='Calculations 3'!AD18 -> 39355.31 | K13: ='Calculations 3'!AE18 -> 2510.15 | L13: ='Calculations 3'!AF18 -> 238.07 | M13: ='Calculations 3'!AG18 -> 44284.04 | N13: ='Calculations 3'!AH18 -> 11.99120097 | O13: ='Calculations 3'!AI18 -> 12188.55217
C14: Genotype 3 interferon eligible | D14: =IF('Calculations 3'!V19="","",VLOOKUP('Calculations 3'!V19,F3_treat_duration,14,FALSE)) -> PR 24w | E14: =IF('Calculations 3'!W19="","",VLOOKUP('Calculations 3'!W19,F3_treat_duration,14,FALSE)) -> SOF+PR 12w | F14: =IF('Calculations 3'!X19="","",VLOOKUP('Calculations 3'!X19,F3_treat_duration,14,FALSE)) -> SOF+LED+RBV 12w | G14: ='Calculations 3'!AA19 -> 0.6636432854 | H14: ='Calculations 3'!AB19 -> 0.2079105298 | I14: ='Calculations 3'!AC19 -> 0.0475461103 | J14: ='Calculations 3'!AD19 -> 4099.39 | K14: ='Calculations 3'!AE19 -> 9469.67 | L14: ='Calculations 3'!AF19 -> 2201.94 | M14: ='Calculations 3'!AG19 -> 20545.39 | N14: ='Calculations 3'!AH19 -> 11.80846518 | O14: ='Calculations 3'!AI19 -> Lowest cost
C15: Genotype 4 interferon ineligible | D15: =IF('Calculations 3'!V21="","",VLOOKUP('Calculations 3'!V21,F3_treat_duration,14,FALSE)) -> 2D+RBV 12w | E15: =IF('Calculations 3'!W21="","",VLOOKUP('Calculations 3'!W21,F3_treat_duration,14,FALSE)) -> SOF+LED 12w | F15: =IF('Calculations 3'!X21="","",VLOOKUP('Calculations 3'!X21,F3_treat_duration,14,FALSE)) -> SOF+DCV 12w | G15: ='Calculations 3'!AA21 -> 0.9521573701 | H15: ='Calculations 3'!AB21 -> 0.02028484047 | I15: ='Calculations 3'!AC21 -> 0.001141446737 | J15: ='Calculations 3'!AD21 -> 32548.07 | K15: ='Calculations 3'!AE21 -> 850.97 | L15: ='Calculations 3'!AF21 -> 71.66 | M15: ='Calculations 3'!AG21 -> 35300.42 | N15: ='Calculations 3'!AH21 -> 12.01895548 | O15: ='Calculations 3'!AI21 -> 9485.52471
C16: Genotype 4 interferon eligible | D16: =IF('Calculations 3'!V22="","",VLOOKUP('Calculations 3'!V22,F3_treat_duration,14,FALSE)) -> PR 48w | E16: =IF('Calculations 3'!W22="","",VLOOKUP('Calculations 3'!W22,F3_treat_duration,14,FALSE)) -> 2D+RBV 12w | F16: =IF('Calculations 3'!X22="","",VLOOKUP('Calculations 3'!X22,F3_treat_duration,14,FALSE)) -> SOF+LED 12w | G16: ='Calculations 3'!AA22 -> 0.4587349249 | H16: ='Calculations 3'!AB22 -> 0.428108459 | I16: ='Calculations 3'!AC22 -> 0.007976531584 | J16: ='Calculations 3'!AD22 -> 6431.08 | K16: ='Calculations 3'!AE22 -> 14319.79 | L16: ='Calculations 3'!AF22 -> 322.73 | M16: ='Calculations 3'!AG22 -> 28099.49 | N16: ='Calculations 3'!AH22 -> 11.71346597 | O16: ='Calculations 3'!AI22 -> Lowest cost
C18: PR: pegylated interferon with ribavirin. SMV+PR: simeprevir with pegylated interferon and ribavirin. SOF+PR: sofosbuvir with pegylated interferon with ribavirin. SOF+LED: sofosbuvir with ledipasvir. SOF+LED+RBV: sofosbuvir with ledipasvir and ribavirin. 3D+/-RBV: ombitasvir with paritaprevir with ritonavir and dasabuvir with or without ribavirin. 2D+RBV: ombitasvir with paritaprevir with ritonavir and ribavirin. SOF+DCV: sofosbuvir with daclatasvir. DCV+PR: daclatasvir with pegylated interferon and ribavirin.
C19: Treatment duration is indicated in weeks. For example, SOF+LED 8w refers to a treatment over 8 weeks.
C21: Treatment-experienced patients
D23: Cost-effective strategies | G23: % Patients achieving SVR by line | J23: Treatment cost by line | M23: Total | N23: Total | O23: ICER
C24: Subgroup | D24: 1st line | E24: 2nd line | F24: 3rd line | G24: 1st | H24: 2nd | I24: 3rd | J24: 1st | K24: 2nd | L24: 3rd | M24: Costs | N24: QALYs
C25: Genotype 1 experienced to interferon | D25: =IF('Calculations 3'!V13="","",VLOOKUP('Calculations 3'!V13,F3_treat_duration,14,FALSE)) -> PR 48w | E25: =IF('Calculations 3'!W13="","",VLOOKUP('Calculations 3'!W13,F3_treat_duration,14,FALSE)) -> 3D+/-RBV 12w | F25: =IF('Calculations 3'!X13="","",VLOOKUP('Calculations 3'!X13,F3_treat_duration,14,FALSE)) -> SOF+LED 12w | G25: ='Calculations 3'!AA13 -> 0.4050247838 | H25: ='Calculations 3'!AB13 -> 0.4699810246 | I25: ='Calculations 3'!AC13 -> 0.01775511707 | J25: ='Calculations 3'!AD13 -> 6109.6 | K25: ='Calculations 3'!AE13 -> 17067.96 | L25: ='Calculations 3'!AF13 -> 719.3 | M25: ='Calculations 3'!AG13 -> 31011.31 | N25: ='Calculations 3'!AH13 -> 11.71707257 | O25: ='Calculations 3'!AI13 -> Lowest cost
C26: Genotype 1 experienced to protease inhibitors | D26: =IF('Calculations 3'!V14="","",VLOOKUP('Calculations 3'!V14,F3_treat_duration,14,FALSE)) -> SMV+PR 12+24w | E26: =IF('Calculations 3'!W14="","",VLOOKUP('Calculations 3'!W14,F3_treat_duration,14,FALSE)) -> 3D+/-RBV 12w | F26: =IF('Calculations 3'!X14="","",VLOOKUP('Calculations 3'!X14,F3_treat_duration,14,FALSE)) -> SOF+LED 12w | G26: ='Calculations 3'!AA14 -> 0.7553083472 | H26: ='Calculations 3'!AB14 -> 0.1825659132 | I26: ='Calculations 3'!AC14 -> 0.006894547014 | J26: ='Calculations 3'!AD14 -> 25929.42 | K26: ='Calculations 3'!AE14 -> 6745.58 | L26: ='Calculations 3'!AF14 -> 284.16 | M26: ='Calculations 3'!AG14 -> 36397.04 | N26: ='Calculations 3'!AH14 -> 11.90099175 | O26: ='Calculations 3'!AI14 -> Lowest cost
C27: Genotype 2 experienced to interferon | D27: =IF('Calculations 3'!V17="","",VLOOKUP('Calculations 3'!V17,F3_treat_duration,14,FALSE)) -> PR 24w | E27: =IF('Calculations 3'!W17="","",VLOOKUP('Calculations 3'!W17,F3_treat_duration,14,FALSE)) -> SOF+RBV 24w | F27: =IF('Calculations 3'!X17="","",VLOOKUP('Calculations 3'!X17,F3_treat_duration,14,FALSE)) ->  | G27: ='Calculations 3'!AA17 -> 0.7734989008 | H27: ='Calculations 3'!AB17 -> 0.1694995405 | I27: ='Calculations 3'!AC17 -> 0 | J27: ='Calculations 3'!AD17 -> 4101.5 | K27: ='Calculations 3'!AE17 -> 6731.12 | L27: ='Calculations 3'!AF17 -> 0 | M27: ='Calculations 3'!AG17 -> 14474.83 | N27: ='Calculations 3'!AH17 -> 11.91941175 | O27: ='Calculations 3'!AI17 -> Lowest cost
C28: Genotype 3 experienced to interferon | D28: =IF('Calculations 3'!V20="","",VLOOKUP('Calculations 3'!V20,F3_treat_duration,14,FALSE)) -> PR 24w | E28: =IF('Calculations 3'!W20="","",VLOOKUP('Calculations 3'!W20,F3_treat_duration,14,FALSE)) -> SOF+PR 12w | F28: =IF('Calculations 3'!X20="","",VLOOKUP('Calculations 3'!X20,F3_treat_duration,14,FALSE)) -> SOF+LED+RBV 12w | G28: ='Calculations 3'!AA20 -> 0.6636432854 | H28: ='Calculations 3'!AB20 -> 0.2079105298 | I28: ='Calculations 3'!AC20 -> 0.0475461103 | J28: ='Calculations 3'!AD20 -> 4099.39 | K28: ='Calculations 3'!AE20 -> 9469.67 | L28: ='Calculations 3'!AF20 -> 2201.94 | M28: ='Calculations 3'!AG20 -> 20545.39 | N28: ='Calculations 3'!AH20 -> 11.80846518 | O28: ='Calculations 3'!AI20 -> Lowest cost
C29: Genotype 4 experienced to interferon | D29: =IF('Calculations 3'!V23="","",VLOOKUP('Calculations 3'!V23,F3_treat_duration,14,FALSE)) -> PR 48w | E29: =IF('Calculations 3'!W23="","",VLOOKUP('Calculations 3'!W23,F3_treat_duration,14,FALSE)) -> 2D+RBV 12w | F29: =IF('Calculations 3'!X23="","",VLOOKUP('Calculations 3'!X23,F3_treat_duration,14,FALSE)) -> SOF+LED 12w | G29: ='Calculations 3'!AA23 -> 0.4587349249 | H29: ='Calculations 3'!AB23 -> 0.428108459 | I29: ='Calculations 3'!AC23 -> 0.007976531584 | J29: ='Calculations 3'!AD23 -> 6431.08 | K29: ='Calculations 3'!AE23 -> 14319.79 | L29: ='Calculations 3'!AF23 -> 322.73 | M29: ='Calculations 3'!AG23 -> 28099.49 | N29: ='Calculations 3'!AH23 -> 11.71346597 | O29: ='Calculations 3'!AI23 -> Lowest cost
C30: Genotype 4 experienced to protease inhibitors | D30: =IF('Calculations 3'!V24="","",VLOOKUP('Calculations 3'!V24,F3_treat_duration,14,FALSE)) -> SMV+PR 12+24w | E30: =IF('Calculations 3'!W24="","",VLOOKUP('Calculations 3'!W24,F3_treat_duration,14,FALSE)) -> 2D+RBV 12w | F30: =IF('Calculations 3'!X24="","",VLOOKUP('Calculations 3'!X24,F3_treat_duration,14,FALSE)) -> SOF+LED 12w | G30: ='Calculations 3'!AA24 -> 0.7820873559 | H30: ='Calculations 3'!AB24 -> 0.1606949282 | I30: ='Calculations 3'!AC24 -> 0.002961994996 | J30: ='Calculations 3'!AD24 -> 25506.79 | K30: ='Calculations 3'!AE24 -> 5467.78 | L30: ='Calculations 3'!AF24 -> 121.92 | M30: ='Calculations 3'!AG24 -> 34441.14 | N30: ='Calculations 3'!AH24 -> 11.90325018 | O30: ='Calculations 3'!AI24 -> Lowest cost

Sheet Calculations 1 (hidden)
C3: Background calculations - part 1
C5: This sheet calculates the cost of treatment at the F3 stage, cirrhosis and decompensated cirrhosis using list prices and discounted prices.
C9: Costs of treatment at the F3 stage
C11: This section calculates the duration of treatment accounting for discontinuations and the cost of treatment under list prices and discounted prices.
D13: List prices | J13: Current prices
C14: Medication (abbreviated name) | D14: cost 12 weeks | E14: cost/week | F14: unit cost | G14: size | H14: dose | I14: new prices per pack | J14: Current prices | K14: Current prices/week | L14: Over 12 weeks
C15: SOF | D15: =E15*12 -> 34982.94 | E15: =F15/4 -> 2915.245 | F15: 11660.98 | G15: 28 | H15: 1 | I15: =IF(sofnew="",IF(sofdis="","",(1-sofdis)*soflist),sofnew) ->  | J15: =IF(I15="",F15,I15) -> 11660.98 | K15: =J15/G15*H15*7 -> 2915.245 | L15: =K15*12 -> 34982.94
C16: SMV | D16: 22398 | E16: =F16 -> 1866.5 | F16: 1866.5 | G16: 7 | H16: 1 | I16: =IF(simnew="",IF(simdis="","",(1-simdis)*simlist),simnew) ->  | J16: =IF(I16="",F16,I16) -> 1866.5 | K16: =J16/G16*H16*7 -> 1866.5 | L16: =K16*12 -> 22398
C17: P | D17: 1488 | E17: =F17 -> 124 | F17: 124 | G17: 1 | H17: =1/7 -> 0.1428571429 | I17: =IF(prnew="",IF(prdis="","",(1-prdis)*prlist),prnew) ->  | J17: 124 | K17: 124 | L17: 1488
C18: RBV | D18: 964.14 | E18: =(F18/(G18/H18))*7 -> 80.345 | F18: 321.38 | G18: 168 | H18: =1200/200 -> 6 | I18: =IF(ribnew="",IF(ribdis="","",(1-ribdis)*riblist),ribnew) ->  | J18: 321.38 | K18: 80.345 | L18: 964.14
C19: PR | D19: 2452.14 | E19: =E17+E18 -> 204.345 | F19: N/A | G19: N/A | H19: N/A | I19: N/A | K19: =K18+K17 -> 204.345 | L19: 2452.14
C20: SOF+LED | D20: 38979.99 | E20: =F20/4 -> 3248.3325 | F20: 12993.33 | G20: 28 | H20: 1 | I20: =IF(soflednew="",IF(sofleddis="","",(1-sofleddis)*sofledlist),soflednew) ->  | J20: 12993.33 | K20: 3248.3325 | L20: 38979.99
C21: SOF+LED+R | D21: 39944.13 | E21: =E20+E18 -> 3328.6775 | F21: N/A | G21: N/A | H21: N/A | I21: N/A | J21: N/A | K21: =K20+K18 -> 3328.6775 | L21: 39944.13
C22: SOF+PR | D22: 37435.08 | E22: =E15+E19 -> 3119.59 | F22: N/A | G22: N/A | H22: N/A | I22: N/A | J22: N/A | K22: =K15+K18+K17 -> 3119.59 | L22: 37435.08
C23: SOF+RBV | D23: 35947.08 | E23: =E15+E18 -> 2995.59 | F23: N/A | G23: N/A | H23: N/A | I23: N/A | J23: N/A | K23: =K15+K18 -> 2995.59 | L23: 35947.08
C24: SMV+PR | D24: =D16+E19*24 -> 27302.28 | E24: =E16+E19 -> 2070.845 | F24: N/A | G24: N/A | H24: N/A | I24: N/A | J24: N/A | K24: N/A | L24: =K19*24+K16*12 -> 27302.28
C25: DCV | D25: =E25*12 -> 24516 | E25: 2043 | F25: =E25/7*G25 -> 8172 | G25: 28 | H25: 1 | I25: =IF(dacnew="",IF(dacdis="","",(1-dacdis)*daclist),dacnew) ->  | J25: 8172 | K25: 2043 | L25: 24516
C26: SOF+DCV | D26: =D15+D25 -> 59498.94 | E26: =E25+E15 -> 4958.245 | F26: N/A | G26: N/A | H26: N/A | I26: N/A | J26: N/A | K26: =K25+K15 -> 4958.245 | L26: 59498.94
C27: SOF+DCV+R | D27: =D26+D18 -> 60463.08 | E27: =E26+E18 -> 5038.59 | F27: N/A | G27: N/A | H27: N/A | I27: N/A | J27: N/A | K27: =K26+K18 -> 5038.59 | L27: 60463.08
C28: 2D | D28: =E28*12 -> 32199.99 | E28: =F28/4 -> 2683.3325 | F28: 10733.33 | G28: 56 | H28: 2 | I28: =IF(new3d="",IF(dis3d="","",(1-dis3d)*list3d),new3d) ->  | J28: 10733.33 | K28: 2683.3325 | L28: 32199.99
C29: 2D+R | D29: =E29*12 -> 33164.13 | E29: =E28+E18 -> 2763.6775 | F29: N/A | G29: N/A | H29: N/A | I29: N/A | J29: N/A | K29: =K28+K18 -> 2763.6775 | L29: 33164.13
C30: 3D | D30: =E30*12 -> 34998.99 | E30: =(F28+F33)/4 -> 2916.5825 | F30: N/A | G30: N/A | H30: N/A | I30: N/A | J30: N/A | K30: =K28+K33 -> 2916.5825 | L30: 34998.99
C31: 3D+R | D31: =E31*12 -> 35963.13 | E31: =E30+E18 -> 2996.9275 | F31: N/A | G31: N/A | H31: N/A | I31: N/A | J31: N/A | K31: =K30+K18 -> 2996.9275 | L31: 35963.13
C32: 3D+/-R | D32: =E32*12 -> 35664.2466 | E32: =E31*prob_G1a+E30*(1-prob_G1a) -> 2972.02055 | F32: N/A | G32: N/A | H32: N/A | I32: N/A | J32: N/A | K32: =K31*prob_G1a+K30*(1-prob_G1a) -> 2972.02055 | L32: 35664.2466
C33: Dasabuvir | D33: N/A | E33: N/A | F33: 933 | G33: 56 | H33: 2 | I33: =IF(dasnew="",IF(dasdis="","",(1-dasdis)*daslist),dasnew) ->  | J33: 933 | K33: 233.25 | L33: 2799
C36: prob_G1a | D36: 0.69 | E36: Proportion of individuals infected with HCV genotype 1 who have subtype 1a
C39: Calculation of treatment duration and costs
C41: This section calculated the cost of treatment given the discounted prices and accounting for discontinuations.
F43: Weeks: | G43: 4 | H43: 12 | I43: 24 | J43: 36
K44: Duration in the model | M44: Costs based on list prices | Q44: Costs based on current prices
C45: Strategy: model name | D45: Regimen (abbreviated) | E45: Duration SPC 1 | F45: Duration SPC 2 | G45: Disc w4 | H45: Disc w12 | I45: Disc w24 | J45: Disc w36 | K45: Duration (1) | L45: Duration (2) | M45: Treatment (1) | N45: Treatment (2) | O45: Total | P45: Names | Q45: Treatment 1 | R45: Treatment 2 | S45: Total
C46: NT | D46: NT | E46: 0 | F46: 0 | G46: 0 | H46: 0 | I46: 0 | K46: 0 | L46: 0 | M46: 0 | N46: 0 | O46: =SUM(M46:N46) -> 0 | P46: Watchful waiting | Q46: 0 | R46: 0 | S46: =Q46+R46 -> 0
C47: G1_TN IE_PR48 | D47: PR | E47: 48 | F47: 0 | G47: 0.1741412214 | H47: 0.06790712468 | I47: 0.296720684 | J47: 0.06790712468 | K47: =G47*$G$43+H47*$H$43+I47*$I$43+J47*$J$43+(1-SUM(G47:J47))*E47 -> 29.95694786 | L47: =IF(F47=0,0,G47*$G$43+H47*$H$43+I47*$I$43+J47*$J$43+(1-SUM(G47:J47))*F47) -> 0 | M47: =K47*IF(D47="SMV+PR",$E$16,IF(D47="DCV+PR",$E$25,VLOOKUP(D47,$C$15:$E$32,3,FALSE))) -> 6121.55251 | N47: =L47*$E$19 -> 0 | O47: =SUM(M47:N47) -> 6121.55251 | P47: PR 48w | Q47: =K47*IF(D47="SMV+PR",$K$16,IF(D47="DCV+PR",$K$25,VLOOKUP(D47,$C$15:$L$33,9,FALSE))) -> 6121.55251 | R47: =L47*$K$19 -> 0 | S47: =Q47+R47 -> 6121.55251
C48: G1_TE IE_PR48 | D48: PR | E48: 48 | F48: 0 | G48: 0.1136363636 | H48: 0.1691919192 | I48: 0.1691919192 | J48: 0.1691919192 | K48: 30.81818182 | L48: 0 | M48: 6297.541364 | N48: 0 | O48: =SUM(M48:N48) -> 6297.541364 | P48: PR 48w | Q48: =K48*IF(D48="SMV+PR",$K$16,IF(D48="DCV+PR",$K$25,VLOOKUP(D48,$C$15:$L$33,9,FALSE))) -> 6297.541364 | R48: =L48*$K$19 -> 0 | S48: 6297.541364
C49: G2_TN IE_PR24 | D49: PR | E49: 24 | F49: 0 | G49: 0.1522633745 | H49: 0.06995884774 | I49: 0 | J49: 0 | K49: 20.11522634 | L49: 0 | M49: 4110.445926 | N49: 0 | O49: 4110.445926 | P49: PR 24w | Q49: 4110.445926 | R49: 0 | S49: 4110.445926
C50: G2_TE IE_PR48 | D50: PR | E50: 48 | F50: 0 | G50: 0.406779661 | H50: 0 | I50: 0 | J50: 0 | K50: 30.10169492 | L50: 0 | M50: 6151.130847 | N50: 0 | O50: 6151.130847 | P50: PR 48w | Q50: 6151.130847 | R50: 0 | S50: 6151.130847
C51: G3_TN IE_PR24 | D51: PR | E51: 24 | F51: 0 | G51: 0.1522633745 | H51: 0.06995884774 | I51: 0 | J51: 0 | K51: 20.11522634 | L51: 0 | M51: 4110.445926 | N51: 0 | O51: 4110.445926 | P51: PR 24w | Q51: 4110.445926 | R51: 0 | S51: 4110.445926
C52: G3_TE IE_PR48 | D52: PR | E52: 48 | F52: 0 | G52: 0.08898944193 | H52: 0.1986754967 | I52: 0.1986754967 | J52: 0.1986754967 | K52: 29.77982879 | L52: 0 | M52: 6085.359115 | N52: 0 | O52: 6085.359115 | P52: PR 48w | Q52: 6085.359115 | R52: 0 | S52: 6085.359115
C53: G4_TN IE_PR48 | D53: PR | E53: 48 | F53: 0 | G53: 0.1394025605 | H53: 0.03107769424 | I53: 0.3644110276 | J53: 0.03107769424 | K53: 31.62869336 | L53: 0 | M53: 6463.165344 | N53: 0 | O53: 6463.165344 | P53: PR 48w | Q53: 6463.165344 | R53: 0 | S53: 6463.165344
C54: G4_TE IE_PR48 | D54: PR | E54: 48 | F54: 0 | G54: 0.05629139073 | H54: 0.1986754967 | I54: 0.1986754967 | J54: 0.1986754967 | K54: 31.21854305 | L54: 0 | M54: 6379.353179 | N54: 0 | O54: 6379.353179 | P54: PR 48w | Q54: 6379.353179 | R54: 0 | S54: 6379.353179
C55: G1_TN IE_SMV+PR12+24 | D55: SMV+PR | E55: 12 | F55: 24 | G55: 0.06593875069 | H55: 0.0205 | I55: 0 | J55: 0 | K55: 11.47248999 | L55: 22.43522499 | M55: 21413.40257 | N55: 4584.52605 | O55: 25997.92862 | P55: SMV+PR 12+24w | Q55: 21413.40257 | R55: 4584.52605 | S55: 25997.92862
C56: G1_TE IE_SMV+PR12+48 | D56: SMV+PR | E56: 12 | F56: 48 | G56: 0.06271078431 | H56: 0.03146078431 | I56: 0.5510686275 | J56: 0 | K56: 18.11113725 | L56: 30.8824902 | M56: 33804.43769 | N56: 6310.682459 | O56: 40115.12015 | P56: SMV+PR 12+48w | Q56: 33804.43769 | R56: 6310.682459 | S56: 40115.12015
C57: G4_TN IE_SMV+PR12+24 | D57: SMV+PR | E57: 12 | F57: 24 | G57: 0.08571428571 | H57: 0.02857142857 | I57: 0 | J57: 0 | K57: 11.31428571 | L57: 21.94285714 | M57: 21118.11429 | N57: 4483.913143 | O57: 25602.02743 | P57: SMV+PR 12+24w | Q57: 21118.11429 | R57: 4483.913143 | S57: 25602.02743
C58: G4_TE IE_SMV+PR12+48 | D58: SMV+PR | E58: 12 | F58: 48 | G58: 0.09722222222 | H58: 0.06944444444 | I58: 0.375 | J58: 0 | K58: 15.72222222 | L58: 32.22222222 | M58: 29345.52778 | N58: 6584.45 | O58: 35929.97778 | P58: SMV+PR 12+48w | Q58: 29345.52778 | R58: 6584.45 | S58: 35929.97778
C59: G1_TN IE_SOF+LED8 | D59: SOF+LED | E59: 8 | F59: 0 | G59: 0 | H59: 0 | I59: 0 | J59: 0 | K59: 8 | L59: 0 | M59: 25986.66 | N59: 0 | O59: 25986.66 | P59: SOF+LED 8w | Q59: 25986.66 | R59: 0 | S59: 25986.66
C60: G1_TN III_SOF+LED8 | D60: SOF+LED | E60: 8 | F60: 0 | G60: 0 | H60: 0 | I60: 0 | J60: 0 | K60: 8 | L60: 0 | M60: 25986.66 | N60: 0 | O60: 25986.66 | P60: SOF+LED 8w | Q60: 25986.66 | R60: 0 | S60: 25986.66
C61: G1_TE IE_SOF+LED12 | D61: SOF+LED | E61: 12 | F61: 0 | G61: 0 | H61: 0 | I61: 0 | J61: 0 | K61: 12 | L61: 0 | M61: 38979.99 | N61: 0 | O61: 38979.99 | P61: SOF+LED 12w | Q61: 38979.99 | R61: 0 | S61: 38979.99
C62: G1_TE III_SOF+LED12 | D62: SOF+LED | E62: 12 | F62: 0 | G62: 0 | H62: 0 | I62: 0 | J62: 0 | K62: 12 | L62: 0 | M62: 38979.99 | N62: 0 | O62: 38979.99 | P62: SOF+LED 12w | Q62: 38979.99 | R62: 0 | S62: 38979.99
C63: G4_TN IE_SOF+LED12 | D63: SOF+LED | E63: 12 | F63: 0 | G63: 0.01627906977 | H63: 0 | I63: 0 | J63: 0 | K63: 11.86976744 | L63: 0 | M63: 38556.95135 | N63: 0 | O63: 38556.95135 | P63: SOF+LED 12w | Q63: 38556.95135 | R63: 0 | S63: 38556.95135
C64: G4_TN III_SOF+LED12 | D64: SOF+LED | E64: 12 | F64: 0 | G64: 0.01627906977 | H64: 0 | I64: 0 | J64: 0 | K64: 11.86976744 | L64: 0 | M64: 38556.95135 | N64: 0 | O64: 38556.95135 | P64: SOF+LED 12w | Q64: 38556.95135 | R64: 0 | S64: 38556.95135
C65: G4_TE IE_SOF+LED12 | D65: SOF+LED | E65: 12 | F65: 0 | G65: 0 | H65: 0 | I65: 0 | J65: 0 | K65: 12 | L65: 0 | M65: 38979.99 | N65: 0 | O65: 38979.99 | P65: SOF+LED 12w | Q65: 38979.99 | R65: 0 | S65: 38979.99
C66: G4_TE III_SOF+LED12 | D66: SOF+LED | E66: 12 | F66: 0 | G66: 0 | H66: 0 | I66: 0 | J66: 0 | K66: 12 | L66: 0 | M66: 38979.99 | N66: 0 | O66: 38979.99 | P66: SOF+LED 12w | Q66: 38979.99 | R66: 0 | S66: 38979.99
C67: G3_TN IE_SOF+LED+R12 | D67: SOF+LED+R | E67: 12 | F67: 0 | G67: 0.01843317972 | H67: 0 | I67: 0 | J67: 0 | K67: 11.85253456 | L67: 0 | M67: 39453.26512 | N67: 0 | O67: 39453.26512 | P67: SOF+LED+RBV 12w | Q67: 39453.26512 | R67: 0 | S67: 39453.26512
C68: G3_TN III_SOF+LED+R12 | D68: SOF+LED+R | E68: 12 | F68: 0 | G68: 0.01843317972 | H68: 0 | I68: 0 | J68: 0 | K68: 11.85253456 | L68: 0 | M68: 39453.26512 | N68: 0 | O68: 39453.26512 | P68: SOF+LED+RBV 12w | Q68: 39453.26512 | R68: 0 | S68: 39453.26512
C69: G3_TE IE_SOF+LED+R12 | D69: SOF+LED+R | E69: 12 | F69: 0 | G69: 0 | H69: 0 | I69: 0 | J69: 0 | K69: 12 | L69: 0 | M69: 39944.13 | N69: 0 | O69: 39944.13 | P69: SOF+LED+RBV 12w | Q69: 39944.13 | R69: 0 | S69: 39944.13
C70: G3_TE III_SOF+LED+R12 | D70: SOF+LED+R | E70: 12 | F70: 0 | G70: 0 | H70: 0 | I70: 0 | J70: 0 | K70: 12 | L70: 0 | M70: 39944.13 | N70: 0 | O70: 39944.13 | P70: SOF+LED+RBV 12w | Q70: 39944.13 | R70: 0 | S70: 39944.13
C71: G1_TN IE_SOF+PR12 | D71: SOF+PR | E71: 12 | F71: 0 | G71: 0.02140672783 | H71: 0 | I71: 0 | J71: 0 | K71: 11.82874618 | L71: 0 | M71: 36900.83829 | N71: 0 | O71: 36900.83829 | P71: SOF+PR 12w | Q71: 36900.83829 | R71: 0 | S71: 36900.83829
C72: G1_TE IE_SOF+PR12 | D72: SOF+PR | E72: 12 | F72: 0 | G72: 0 | H72: 0 | I72: 0 | J72: 0 | K72: 12 | L72: 0 | M72: 37435.08 | N72: 0 | O72: 37435.08 | P72: SOF+PR 12w | Q72: 37435.08 | R72: 0 | S72: 37435.08
C73: G3_TN IE_SOF+PR12 | D73: SOF+PR | E73: 12 | F73: 0 | G73: 0.03125 | H73: 0 | I73: 0 | J73: 0 | K73: 11.75 | L73: 0 | M73: 36655.1825 | N73: 0 | O73: 36655.1825 | P73: SOF+PR 12w | Q73: 36655.1825 | R73: 0 | S73: 36655.1825
C74: G3_TE IE_SOF+PR12 | D74: SOF+PR | E74: 12 | F74: 0 | G74: 0.08333333333 | H74: 0 | I74: 0 | J74: 0 | K74: 11.33333333 | L74: 0 | M74: 35355.35333 | N74: 0 | O74: 35355.35333 | P74: SOF+PR 12w | Q74: 35355.35333 | R74: 0 | S74: 35355.35333
C75: G4_TE IE_SOF+PR12 | D75: SOF+PR | E75: 12 | F75: 0 | G75: 0 | H75: 0 | I75: 0 | J75: 0 | K75: 12 | L75: 0 | M75: 37435.08 | N75: 0 | O75: 37435.08 | P75: SOF+PR 12w | Q75: 37435.08 | R75: 0 | S75: 37435.08
C76: G4_TN IE_SOF+PR12 | D76: SOF+PR | E76: 12 | F76: 0 | G76: 0.02140672783 | H76: 0 | I76: 0 | J76: 0 | K76: 11.82874618 | L76: 0 | M76: 36900.83829 | N76: 0 | O76: 36900.83829 | P76: SOF+PR 12w | Q76: 36900.83829 | R76: 0 | S76: 36900.83829
C77: G1_TN III_SOF+RBV24 | D77: SOF+RBV | E77: 24 | F77: 0 | G77: 0.1 | H77: 0 | I77: 0 | J77: 0 | K77: 22 | L77: 0 | M77: 65902.98 | N77: 0 | O77: 65902.98 | P77: SOF+RBV 24w | Q77: 65902.98 | R77: 0 | S77: 65902.98
C78: G1_TE III_SOF+RBV24 | D78: SOF+RBV | E78: 24 | F78: 0 | G78: 0.1 | H78: 0 | I78: 0 | J78: 0 | K78: 22 | L78: 0 | M78: 65902.98 | N78: 0 | O78: 65902.98 | P78: SOF+RBV 24w | Q78: 65902.98 | R78: 0 | S78: 65902.98
C79: G2_TN IE_SOF+RBV12 | D79: SOF+RBV | E79: 12 | F79: 0 | G79: 0.03343465046 | H79: 0 | I79: 0 | J79: 0 | K79: =G79*$G$43+H79*$H$43+I79*$I$43+J79*$J$43+(1-SUM(G79:J79))*E79 -> 11.7325228 | L79: =IF(F79=0,0,G79*$G$43+H79*$H$43+I79*$I$43+J79*$J$43+(1-SUM(G79:J79))*F79) -> 0 | M79: =K79*IF(D79="SMV+PR",$E$16,IF(D79="DCV+PR",$E$25,VLOOKUP(D79,$C$15:$E$32,3,FALSE))) -> 35145.82796 | N79: =L79*$E$19 -> 0 | O79: 35145.82796 | P79: SOF+RBV 24w | Q79: 35145.82796 | R79: 0 | S79: 35145.82796
C80: G2_TN III_SOF+RBV12 | D80: SOF+RBV | E80: 12 | F80: 0 | G80: 0.02142857143 | H80: 0 | I80: 0 | J80: 0 | K80: 11.82857143 | L80: 0 | M80: 35433.55029 | N80: 0 | O80: 35433.55029 | P80: SOF+RBV 24w | Q80: 35433.55029 | R80: 0 | S80: 35433.55029
C81: G2_TE IE_SOF+RBV12 | D81: SOF+RBV | E81: 12 | F81: 0 | G81: 0.005681818182 | H81: 0 | I81: 0 | J81: 0 | K81: 11.95454545 | L81: 0 | M81: 35810.91682 | N81: 0 | O81: 35810.91682 | P81: SOF+RBV 24w | Q81: 35810.91682 | R81: 0 | S81: 35810.91682
C82: G2_TE III_SOF+RBV12 | D82: SOF+RBV | E82: 12 | F82: 0 | G82: 0.02142857143 | H82: 0 | I82: 0 | J82: 0 | K82: 11.82857143 | L82: 0 | M82: 35433.55029 | N82: 0 | O82: 35433.55029 | P82: SOF+RBV 24w | Q82: 35433.55029 | R82: 0 | S82: 35433.55029
C83: G3_TN IE_SOF+RBV24 | D83: SOF+RBV | E83: 24 | F83: 0 | G83: 0.016 | H83: 0 | I83: 0 | J83: 0 | K83: 23.68 | L83: 0 | M83: 70935.5712 | N83: 0 | O83: 70935.5712 | P83: SOF+RBV 24w | Q83: 70935.5712 | R83: 0 | S83: 70935.5712
C84: G3_TE IE_SOF+RBV24 | D84: SOF+RBV | E84: 24 | F84: 0 | G84: 0.016 | H84: 0 | I84: 0 | J84: 0 | K84: 23.68 | L84: 0 | M84: 70935.5712 | N84: 0 | O84: 70935.5712 | P84: SOF+RBV 24w | Q84: 70935.5712 | R84: 0 | S84: 70935.5712
C85: G3_TN III_SOF+RBV24 | D85: SOF+RBV | E85: 24 | F85: 0 | G85: 0.016 | H85: 0 | I85: 0 | J85: 0 | K85: 23.68 | L85: 0 | M85: 70935.5712 | N85: 0 | O85: 70935.5712 | P85: SOF+RBV 24w | Q85: 70935.5712 | R85: 0 | S85: 70935.5712
C86: G3_TE III_SOF+RBV24 | D86: SOF+RBV | E86: 24 | F86: 0 | G86: 0.016 | H86: 0 | I86: 0 | J86: 0 | K86: 23.68 | L86: 0 | M86: 70935.5712 | N86: 0 | O86: 70935.5712 | P86: SOF+RBV 24w | Q86: 70935.5712 | R86: 0 | S86: 70935.5712
C87: G4_TN III_SOF+RBV24 | D87: SOF+RBV | E87: 24 | F87: 0 | G87: 0.05 | H87: 0 | I87: 0 | J87: 0 | K87: 23 | L87: 0 | M87: 68898.57 | N87: 0 | O87: 68898.57 | P87: SOF+RBV 24w | Q87: 68898.57 | R87: 0 | S87: 68898.57
C88: G4_TE III_SOF+RBV24 | D88: SOF+RBV | E88: 24 | F88: 0 | G88: 0.05 | H88: 0 | I88: 0 | J88: 0 | K88: 23 | L88: 0 | M88: 68898.57 | N88: 0 | O88: 68898.57 | P88: SOF+RBV 24w | Q88: 68898.57 | R88: 0 | S88: 68898.57
C89: G1_TN IE_3D+/-R12 | D89: 3D+/-R | E89: 12 | F89: 0 | G89: 0.0141689847 | H89: 0 | I89: 0 | J89: 0 | K89: 11.88664812 | L89: 0 | M89: 35327.36249 | N89: 0 | O89: 35327.36249 | P89: 3D+/-RBV 12w | Q89: 35327.36249 | R89: 0 | S89: 35327.36249
C90: G1_TN III_3D+/-R12 | D90: 3D+/-R | E90: 12 | F90: 0 | G90: 0.0141689847 | H90: 0 | I90: 0 | J90: 0 | K90: 11.88664812 | L90: 0 | M90: 35327.36249 | N90: 0 | O90: 35327.36249 | P90: 3D+/-RBV 12w | Q90: 35327.36249 | R90: 0 | S90: 35327.36249
C91: G1_TE IE_3D+/-R12 | D91: 3D+/-R | E91: 12 | F91: 0 | G91: 0.01604232443 | H91: 0 | I91: 0 | J91: 0 | K91: 11.8716614 | L91: 0 | M91: 35282.82166 | N91: 0 | O91: =SUM(M91:N91) -> 35282.82166 | P91: 3D+/-RBV 12w | Q91: 35282.82166 | R91: 0 | S91: 35282.82166
C92: G1_TE III_3D+/-R12 | D92: 3D+/-R | E92: 12 | F92: 0 | G92: 0.01604232443 | H92: 0 | I92: 0 | J92: 0 | K92: 11.8716614 | L92: 0 | M92: 35282.82166 | N92: 0 | O92: 35282.82166 | P92: 3D+/-RBV 12w | Q92: 35282.82166 | R92: 0 | S92: 35282.82166
C93: G4_TN IE_2D+R12 | D93: 2D+R | E93: 12 | F93: 0 | G93: 0.02380952381 | H93: 0 | I93: 0 | J93: 0 | K93: 11.80952381 | L93: 0 | M93: 32637.71524 | N93: 0 | O93: 32637.71524 | P93: 2D+RBV 12w | Q93: 32637.71524 | R93: 0 | S93: 32637.71524
C94: G4_TN III_2D+R12 | D94: 2D+R | E94: 12 | F94: 0 | G94: 0.02380952381 | H94: 0 | I94: 0 | J94: 0 | K94: 11.80952381 | L94: 0 | M94: 32637.71524 | N94: 0 | O94: 32637.71524 | P94: 2D+RBV 12w | Q94: 32637.71524 | R94: 0 | S94: 32637.71524
C95: G4_TE IE_2D+R12 | D95: 2D+R | E95: 12 | F95: 0 | G95: 0 | H95: 0 | I95: 0 | J95: 0 | K95: 12 | L95: 0 | M95: 33164.13 | N95: 0 | O95: 33164.13 | P95: 2D+RBV 12w | Q95: 33164.13 | R95: 0 | S95: 33164.13
C96: G4_TE III_2D+R12 | D96: 2D+R | E96: 12 | F96: 0 | G96: 0 | H96: 0 | I96: 0 | J96: 0 | K96: 12 | L96: 0 | M96: 33164.13 | N96: 0 | O96: 33164.13 | P96: 2D+RBV 12w | Q96: 33164.13 | R96: 0 | S96: 33164.13
C97: G1_TN IE_SOF+DCV12 | D97: SOF+DCV | E97: 12 | F97: 0 | G97: 0.005 | H97: 0 | I97: 0 | J97: 0 | K97: 11.96 | L97: 0 | M97: 59300.6102 | N97: 0 | O97: =SUM(M97:N97) -> 59300.6102 | P97: SOF+DCV 12w | Q97: 59300.6102 | R97: 0 | S97: 59300.6102
C98: G1_TN III_SOF+DCV12 | D98: SOF+DCV | E98: 12 | F98: 0 | G98: 0.005 | H98: 0 | I98: 0 | J98: 0 | K98: 11.96 | L98: 0 | M98: 59300.6102 | N98: 0 | O98: =SUM(M98:N98) -> 59300.6102 | P98: SOF+DCV 12w | Q98: 59300.6102 | R98: 0 | S98: 59300.6102
C99: G1_TE IE_SOF+DCV12 | D99: SOF+DCV | E99: 12 | F99: 0 | G99: 0 | H99: 0 | I99: 0 | J99: 0 | K99: 12 | L99: 0 | M99: 59498.94 | N99: 0 | O99: =SUM(M99:N99) -> 59498.94 | P99: SOF+DCV 12w | Q99: 59498.94 | R99: 0 | S99: 59498.94
C100: G1_TE III_SOF+DCV12 | D100: SOF+DCV | E100: 12 | F100: 0 | G100: 0 | H100: 0 | I100: 0 | J100: 0 | K100: 12 | L100: 0 | M100: 59498.94 | N100: 0 | O100: 59498.94 | P100: SOF+DCV 12w | Q100: 59498.94 | R100: 0 | S100: 59498.94
C101: G3_TN IE_SOF+DCV12 | D101: SOF+DCV | E101: 12 | F101: 0 | G101: 0 | H101: 0 | I101: 0 | J101: 0 | K101: 12 | L101: 0 | M101: 59498.94 | N101: 0 | O101: 59498.94 | P101: SOF+DCV 12w | Q101: 59498.94 | R101: 0 | S101: 59498.94
C102: G3_TN III_SOF+DCV12 | D102: SOF+DCV | E102: 12 | F102: 0 | G102: 0 | H102: 0 | I102: 0 | J102: 0 | K102: 12 | L102: 0 | M102: 59498.94 | N102: 0 | O102: 59498.94 | P102: SOF+DCV 12w | Q102: 59498.94 | R102: 0 | S102: 59498.94
C103: G3_TE IE_SOF+DCV12 | D103: SOF+DCV | E103: 12 | F103: 0 | G103: 0 | H103: 0 | I103: 0 | J103: 0 | K103: 12 | L103: 0 | M103: 59498.94 | N103: 0 | O103: 59498.94 | P103: SOF+DCV 12w | Q103: 59498.94 | R103: 0 | S103: 59498.94
C104: G3_TE III_SOF+DCV12 | D104: SOF+DCV | E104: 12 | F104: 0 | G104: 0 | H104: 0 | I104: 0 | J104: 0 | K104: 12 | L104: 0 | M104: 59498.94 | N104: 0 | O104: 59498.94 | P104: SOF+DCV 12w | Q104: 59498.94 | R104: 0 | S104: 59498.94
C105: G4_TN IE_SOF+DCV12 | D105: SOF+DCV | E105: 12 | F105: 0 | G105: 0 | H105: 0 | I105: 0 | J105: 0 | K105: 12 | L105: 0 | M105: 59498.94 | N105: 0 | O105: 59498.94 | P105: SOF+DCV 12w | Q105: 59498.94 | R105: 0 | S105: 59498.94
C106: G4_TN III_SOF+DCV12 | D106: SOF+DCV | E106: 12 | F106: 0 | G106: 0 | H106: 0 | I106: 0 | J106: 0 | K106: 12 | L106: 0 | M106: 59498.94 | N106: 0 | O106: 59498.94 | P106: SOF+DCV 12w | Q106: 59498.94 | R106: 0 | S106: 59498.94
C107: G4_TE IE_SOF+DCV12 | D107: SOF+DCV | E107: 12 | F107: 0 | G107: 0 | H107: 0 | I107: 0 | J107: 0 | K107: 12 | L107: 0 | M107: 59498.94 | N107: 0 | O107: 59498.94 | P107: SOF+DCV 12w | Q107: 59498.94 | R107: 0 | S107: 59498.94
C108: G4_TE III_SOF+DCV12 | D108: SOF+DCV | E108: 12 | F108: 0 | G108: 0 | H108: 0 | I108: 0 | J108: 0 | K108: 12 | L108: 0 | M108: 59498.94 | N108: 0 | O108: 59498.94 | P108: SOF+DCV 12w | Q108: 59498.94 | R108: 0 | S108: 59498.94
C109: G4_TN IE_DCV+PR24+48 | D109: DCV+PR | E109: 24 | F109: 48 | G109: 0.183 | H109: 0 | I109: 0.67 | J109: 0 | K109: 20.34 | L109: 23.868 | M109: 41554.62 | N109: 4877.30646 | O109: 46431.92646 | P109: DCV+PR 24+48w | Q109: 41554.62 | R109: 4877.30646 | S109: 46431.92646
C110: G4_TE IE_DCV+PR24+48 | D110: DCV+PR | E110: 24 | F110: 48 | G110: 0.183 | H110: 0 | I110: 0.67 | J110: 0 | K110: 20.34 | L110: 23.868 | M110: 41554.62 | N110: 4877.30646 | O110: 46431.92646 | P110: DCV+PR 24+48w | Q110: 41554.62 | R110: 4877.30646 | S110: 46431.92646
C114: Costs of treatment in cirrhotic patients
C116: This section calculates the cost of treatment in patients with cirrhosis.
C117: Treatment is modelled as a composite strategy, in which the recommended treatments by NHS England's commissioning policy are used equally.
C118: Therefore, its costs and effectiveness corresponds to the average of the individual treatments' cost and effectiveness.
C119: Treatment is assumed to have two lines, hence patients who fail the first treatment are retreated.
C121: Treatment strategy by subgroup | D121: Cost pre-discount | E121: Cost post discount
C122: G1 TN IE_F4SVR | D122: =(F$138+(1-$E$138)*F$143) -> 38934.46952 | E122: =(G$138+(1-$E$138)*G$143) -> 38934.46952
C123: G1 TN III_F4SVR | D123: =(F$148+(1-$E$148)*F$152) -> 39751.16954 | E123: =(G$148+(1-$E$148)*G$152) -> 39751.16954
C124: G3 TN IE_F4SVR | D124: =(F$155+(1-$E$155)*F$158) -> 43674.26 | E124: =(G$155+(1-$E$155)*G$158) -> 43674.26
C125: G3 TN III_F4SVR | D125: =(F$161+(1-$E$161)*F$165) -> 60772.785 | E125: =(G$161+(1-$E$161)*G$165) -> 60772.785
C126: G4 TN IE_F4SVR | D126: =(F$169+(1-$E$169)*F$173) -> 39639.39676 | E126: =(G$169+(1-$E$169)*G$173) -> 39639.39676
C127: G4 TN III_F4SVR | D127: =(F$177+(1-$E$177)*F$180) -> 41272.93059 | E127: =(G$177+(1-$E$177)*G$180) -> 41272.93059
C128: G1 TE IE_F4SVR | D128: =(F$143+(1-$E$143)*F$143) -> 42608.7816 | E128: =(G$143+(1-$E$143)*G$143) -> 42608.7816
C129: G1 TE III_F4SVR | D129: =(F$152+(1-$E$152)*F$152) -> 43554.76528 | E129: =(G$152+(1-$E$152)*G$152) -> 43554.76528
C130: G3 TE IE_F4SVR | D130: =(F$158+(1-$E$158)*F$158) -> 43674.26 | E130: =(G$158+(1-$E$158)*G$158) -> 43674.26
C131: G3 TE III_F4SVR | D131: =(F$165+(1-$E$165)*F$165) -> 63632.19165 | E131: =(G$165+(1-$E$165)*G$165) -> 63632.19165
C132: G4 TE IE_F4SVR | D132: =(F$173+(1-$E$173)*F$173) -> 45487.19023 | E132: =(G$173+(1-$E$173)*G$173) -> 45487.19023
C133: G4 TE III_F4SVR | D133: =(F$180+(1-$E$180)*F$180) -> 44295.44318 | E133: =(G$180+(1-$E$180)*G$180) -> 44295.44318
C136: Calculation of cost of the composite treatment in cirrhotic patients
C137: G1 TN IE | D137: Regimen | E137: SVR% Live | F137: Cost pre-discount | G137: Cost post discount
C138: Weighted | E138: 0.8576169827 | F138: =AVERAGE(F139:F141) -> 34081.8 | G138: =AVERAGE(G139:G141) -> 34081.8
C139: SMV+PR | D139: G1 TN IE_SMV+PR | E139: 0.6898140125 | F139: =VLOOKUP(C139,cost12w,2,FALSE) -> 27302.28 | G139: =VLOOKUP(C139,cost12w,10,FALSE) -> 27302.28
C140: SOF+LED | D140: G1 TN IE_SOF+LED | E140: 0.9411764706 | F140: =VLOOKUP(C140,cost12w,2,FALSE) -> 38979.99 | G140: =VLOOKUP(C140,cost12w,10,FALSE) -> 38979.99
C141: 3D+R | D141: G1 TN IE_3D+R | E141: 0.9418604651 | F141: =VLOOKUP(C141,cost12w,2,FALSE) -> 35963.13 | G141: =VLOOKUP(C141,cost12w,10,FALSE) -> 35963.13
C142: G1 TE IE
C143: Weighted | E143: 0.7498083551 | F143: =AVERAGE(F144:F146) -> 34081.8 | G143: =AVERAGE(G144:G146) -> 34081.8
C144: SMV+PR | D144: G1 TE IE_SMV+PR | E144: 0.4841493574 | F144: =VLOOKUP(C144,cost12w,2,FALSE) -> 27302.28 | G144: =VLOOKUP(C144,cost12w,10,FALSE) -> 27302.28
C145: SOF+LED | D145: G1 TE IE_SOF+LED | E145: 0.8636363636 | F145: =VLOOKUP(C145,cost12w,2,FALSE) -> 38979.99 | G145: =VLOOKUP(C145,cost12w,10,FALSE) -> 38979.99
C146: 3D+R | D146: G1 TE IE_3D+R | E146: 0.9016393443 | F146: =VLOOKUP(C146,cost12w,2,FALSE) -> 35963.13 | G146: =VLOOKUP(C146,cost12w,10,FALSE) -> 35963.13
C147: G1 TN III
C148: Weighted | E148: 0.9415184679 | F148: =AVERAGE(F149:F150) -> 37471.56 | G148: =AVERAGE(G149:G150) -> 37471.56
C149: SOF+LED | D149: G1 TN III_SOF+LED | E149: 0.9411764706 | F149: =VLOOKUP(C149,cost12w,2,FALSE) -> 38979.99 | G149: =VLOOKUP(C149,cost12w,10,FALSE) -> 38979.99
C150: 3D+R | D150: G1 TN III_3D+R | E150: 0.9418604651 | F150: =VLOOKUP(C150,cost12w,2,FALSE) -> 35963.13 | G150: =VLOOKUP(C150,cost12w,10,FALSE) -> 35963.13
C151: G1 TE III
C152: Weighted | E152: 0.8826378539 | F152: =AVERAGE(F153:F153) -> 38979.99 | G152: =AVERAGE(G153:G153) -> 38979.99
C153: SOF+LED | D153: G1 TE III_SOF+LED | E153: 0.8636363636 | F153: =VLOOKUP(C153,cost12w,2,FALSE) -> 38979.99 | G153: =VLOOKUP(C153,cost12w,10,FALSE) -> 38979.99
C154: G3 TN IE
C155: Weighted | E155: 0.8333333333 | F155: =F156 -> 37435.08 | G155: =G156 -> 37435.08
C156: SOF+PR | D156: G3 TN IE_SOF+PR | E156: 0.8333333333 | F156: =VLOOKUP(C156,cost12w,2,FALSE) -> 37435.08 | G156: =VLOOKUP(C156,cost12w,10,FALSE) -> 37435.08
C157: G3 TE IE
C158: Weighted | E158: 0.8333333333 | F158: =F159 -> 37435.08 | G158: =G159 -> 37435.08
C159: SOF+PR | D159: G3 TE IE_SOF+PR | E159: 0.8333333333 | F159: =VLOOKUP(C159,cost12w,2,FALSE) -> 37435.08 | G159: =VLOOKUP(C159,cost12w,10,FALSE) -> 37435.08
C160: G3 TN III
C161: Weighted | E161: 0.7894736842 | F161: =AVERAGE(F162:F163) -> 50203.605 | G161: =AVERAGE(G162:G163) -> 50203.605
C162: SOF+LED+R | D162: G3 TN III_SOF+LED+R | E162: 1 | F162: =VLOOKUP(C162,cost12w,2,FALSE) -> 39944.13 | G162: =VLOOKUP(C162,cost12w,10,FALSE) -> 39944.13
C163: SOF+DCV+R | D163: G3 TN III_SOF+DCV+R | E163: 0.5789473684 | F163: =VLOOKUP(C163,cost12w,2,FALSE) -> 60463.08 | G163: =VLOOKUP(C163,cost12w,10,FALSE) -> 60463.08
C164: G3 TE III
C165: Weighted | E165: 0.7325174825 | F165: =AVERAGE(F166:F167) -> 50203.605 | G165: =AVERAGE(G166:G167) -> 50203.605
C166: SOF+LED+R | D166: G3 TE III_SOF+LED+R | E166: 0.7727272727 | F166: =VLOOKUP(C166,cost12w,2,FALSE) -> 39944.13 | G166: =VLOOKUP(C166,cost12w,10,FALSE) -> 39944.13
C167: SOF+DCV+R | D167: G3 TE III_SOF+DCV+R | E167: 0.6923076923 | F167: =VLOOKUP(C167,cost12w,2,FALSE) -> 60463.08 | G167: =VLOOKUP(C167,cost12w,10,FALSE) -> 60463.08
C168: G4 TN IE
C169: Weighted | E169: 0.8039215686 | F169: =AVERAGE(F170:F171) -> 33141.135 | G169: =AVERAGE(G170:G171) -> 33141.135
C170: SMV+PR | D170: G4 TN IE_SMV+PR | E170: 0.6666666667 | F170: =VLOOKUP(C170,cost12w,2,FALSE) -> 27302.28 | G170: =VLOOKUP(C170,cost12w,10,FALSE) -> 27302.28
C171: SOF+LED | D171: G4 TN IE_SOF+LED | E171: 0.9411764706 | F171: =VLOOKUP(C171,cost12w,2,FALSE) -> 38979.99 | G171: =VLOOKUP(C171,cost12w,10,FALSE) -> 38979.99
C172: G4 TE IE
C173: Weighted | E173: 0.6274703557 | F173: =AVERAGE(F174:F175) -> 33141.135 | G173: =AVERAGE(G174:G175) -> 33141.135
C174: SMV+PR | D174: G4 TE IE_SMV+PR | E174: 0.3913043478 | F174: =VLOOKUP(C174,cost12w,2,FALSE) -> 27302.28 | G174: =VLOOKUP(C174,cost12w,10,FALSE) -> 27302.28
C175: SOF+LED | D175: G4 TE IE_SOF+LED | E175: 0.8636363636 | F175: =VLOOKUP(C175,cost12w,2,FALSE) -> 38979.99 | G175: =VLOOKUP(C175,cost12w,10,FALSE) -> 38979.99
C176: G4 TN III
C177: Weighted | E177: 0.9411764706 | F177: =F178 -> 38979.99 | G177: =G178 -> 38979.99
C178: SOF+LED | D178: G4 TN III_SOF+LED | E178: 0.9411764706 | F178: =VLOOKUP(C178,cost12w,2,FALSE) -> 38979.99 | G178: =VLOOKUP(C178,cost12w,10,FALSE) -> 38979.99
C179: G4 TE III
C180: Weighted | E180: 0.8636363636 | F180: =F181 -> 38979.99 | G180: =G181 -> 38979.99
C181: SOF+LED | D181: G4 TE III_SOF+LED | E181: 0.8636363636 | F181: =VLOOKUP(C181,cost12w,2,FALSE) -> 38979.99 | G181: =VLOOKUP(C181,cost12w,10,FALSE) -> 38979.99
C184: Costs in decompensated cirrhotic patients
C186: This section calculates the cost of treating patients at the decompensated cirrhotic stage.
C187: The treatment is a composite treatment strategy that is employed once.
C188: Its costs corresponds to the weighted average of the treatments used in the early access programme by NHS England.
E190: Cost pre-discount | F190: Cost post-discount
D191: DC_SVRG1 | E191: =SUMPRODUCT($F$196:$F$199,G196:G199) -> 44203.19323 | F191: =SUMPRODUCT($F$196:$F$199,H196:H199) -> 44203.19323
D192: DC_SVRG3 | E192: =SUMPRODUCT(F201:F204,G201:G204) -> 53009.18286 | F192: =SUMPRODUCT(F201:F204,H201:H204) -> 53009.18286
C195: Regimen | D195: Genotype | E195: N | F195: Weights | G195: Cost (12 weeks) | H195: Cost new
C196: SOF+LED+R | D196: 1 | E196: 164 | F196: =E196/$E$200 -> 0.6978723404 | G196: =VLOOKUP(C196,cost12w,2,FALSE) -> 39944.13 | H196: =VLOOKUP(C196,cost12w,10,FALSE) -> 39944.13
C197: SOF+LED | D197: 1 | E197: 21 | F197: =E197/$E$200 -> 0.08936170213 | G197: =VLOOKUP(C197,cost12w,2,FALSE) -> 38979.99 | H197: =VLOOKUP(C197,cost12w,10,FALSE) -> 38979.99
C198: SOF+DCV+R | D198: 1 | E198: 45 | F198: =E198/$E$200 -> 0.1914893617 | G198: =VLOOKUP(C198,cost12w,2,FALSE) -> 60463.08 | H198: =VLOOKUP(C198,cost12w,10,FALSE) -> 60463.08
C199: SOF+DCV | D199: 1 | E199: 5 | F199: =E199/$E$200 -> 0.02127659574 | G199: =VLOOKUP(C199,cost12w,2,FALSE) -> 59498.94 | H199: =VLOOKUP(C199,cost12w,10,FALSE) -> 59498.94
D200: Total | E200: =SUM(E196:E199) -> 235
C201: SOF+LED+R | D201: 3 | E201: 61 | F201: =E201/$E$205 -> 0.3227513228 | G201: =VLOOKUP(C201,cost12w,2,FALSE) -> 39944.13 | H201: =VLOOKUP(C201,cost12w,10,FALSE) -> 39944.13
C202: SOF+LED | D202: 3 | E202: 7 | F202: =E202/$E$205 -> 0.03703703704 | G202: =VLOOKUP(C202,cost12w,2,FALSE) -> 38979.99 | H202: =VLOOKUP(C202,cost12w,10,FALSE) -> 38979.99
C203: SOF+DCV+R | D203: 3 | E203: 114 | F203: =E203/$E$205 -> 0.6031746032 | G203: =VLOOKUP(C203,cost12w,2,FALSE) -> 60463.08 | H203: =VLOOKUP(C203,cost12w,10,FALSE) -> 60463.08
C204: SOF+DCV | D204: 3 | E204: 7 | F204: =E204/$E$205 -> 0.03703703704 | G204: =VLOOKUP(C204,cost12w,2,FALSE) -> 59498.94 | H204: =VLOOKUP(C204,cost12w,10,FALSE) -> 59498.94
D205: Total | E205: =SUM(E201:E204) -> 189
C207: Cost-effectiveness threshold
C210: =IF(D210="",'Price inputs'!J21,D210) -> 20000 | D210: 20000

Sheet Calculations 2 (hidden)
C4: Background calculations - part 2
C6: This sheet calculates the incremental costs, incremental QALYs and ICERs of all strategies for each subgroup.
C8: Parameters required for the macro to calculate the cost-effective strategies:
D10: N.comparators | E10: =COUNT(D17:D649) -> 633 | G10: N.TN | H10: =COUNTIF(F17:F649,0) -> 518
D12: N.subgroups | E12: =SUM(1/COUNTIF(C17:C649,C17:C649)) -> 14 | G12: N.results | H12: =COUNT(M17:AE17) -> 19
M15: Costs | U15: Proportion of patients by outcome | AG15: F3 treatment 1st line | AJ15: F3 treatment 2nd line | AM15: F3 treatment 3rd line | AP15: Cirrhosis treatment | AS15: Decompensated cirrhosis treatment | AV15: Results
C16: Subgroup.ID | D16: Genotype | E16: Interferon | F16: TE | G16: Strategies F3 (1) | H16: Strategies F3 (2) | I16: Strategies F3 (4) | J16: Strategies F4 | K16: Strategy DC | L16: Name | M16: Treatment F3 - 1 | N16: Treatment F3 - 2 | O16: Treatment F3 - 3 | P16: Treatment F4 | Q16: Treatment DC | R16: Monitoring | S16: Health state | T16: Total costs | U16: SVR F3 1st line | V16: SVR F3 2nd line | W16: SVR F3 3rd line | X16: SVR F3 total | Y16: SVR cirrhosis | Z16: SVR decompensated cirrhosis | AA16: No SVR | AB16: Progressing to cirrhosis | AC16: Progressing to decompensated cirrhosis | AD16: Life years | AE16: QALYs | AF16: ICER | AG16: Price old | AH16: Price new | AI16: Treatment cost new | AJ16: Price old | AK16: Price new | AL16: Treatment cost new | AM16: Price old | AN16: Price new | AO16: Treatment cost new | AP16: Price old | AQ16: Price new | AR16: Treatment cost new | AS16: Price old | AT16: Price new | AU16: Treatment cost new | AV16: Total costs new | AW16: ICER new
C17: =D17&E17&F17 -> 110 | D17: 1 | E17: 1 | F17: 0 | G17: NT | J17: G1 TN IE_F4SVR | K17: DC_SVRG1 | L17: =G17&H17&I17 -> NT | M17: 0 | N17: 0 | O17: 0 | P17: 23732.51332 | Q17: 437.8827208 | R17: 434.0653507 | S17: 22235.4812 | T17: 46839.94259 | U17: 0 | V17: 0 | W17: 0 | X17: 0 | Y17: 0.758887995 | Z17: 0.01533667456 | AA17: 0.2257753304 | AB17: 0.7953550166 | AC17: 0.2228570106 | AD17: 18.32597982 | AE17: 10.39244007 | AG17: =VLOOKUP(G17,F3_treat_duration,13,FALSE) -> 0 | AH17: =VLOOKUP(G17,F3_treat_duration,17,FALSE) -> 0 | AI17: =IF(AG17=0,0,AH17*M17/AG17) -> 0 | AJ17: =IF(H17="",0,VLOOKUP(H17,F3_treat_duration,13,FALSE)) -> 0 | AK17: =IF(H17="",0,VLOOKUP(H17,F3_treat_duration,17,FALSE)) -> 0 | AL17: =IF(AJ17=0,0,AK17*N17/AJ17) -> 0 | AM17: =IF(I17="",0,VLOOKUP(I17,F3_treat_duration,13,FALSE)) -> 0 | AN17: =IF(I17="",0,VLOOKUP(I17,F3_treat_duration,17,FALSE)) -> 0 | AO17: =IF(AM17=0,0,AN17*O17/AM17) -> 0 | AP17: =VLOOKUP(J17,F4_treatments,2,FALSE) -> 38934.46952 | AQ17: =VLOOKUP(J17,F4_treatments,3,FALSE) -> 38934.46952 | AR17: =AQ17*P17/AP17 -> 23732.51332 | AS17: =VLOOKUP(K17,DC_treatments,2,FALSE) -> 44203.19323 | AT17: =VLOOKUP(K17,DC_treatments,3,FALSE) -> 44203.19323 | AU17: =AT17*Q17/AS17 -> 437.8827208 | AV17: =T17-SUM(M17:Q17)+SUM(AI17,AL17,AO17,AR17,AU17) -> 46839.94259 | AW17: Dominated
C18: 110 | D18: 1 | E18: 1 | F18: 0 | G18: G1_TN IE_SOF+LED8 | J18: G1 TE IE_F4SVR | K18: DC_SVRG1 | L18: G1_TN IE_SOF+LED8 | M18: 25917.98336 | N18: 0 | O18: 0 | P18: 1683.116906 | Q18: 49.45273929 | R18: 482.5944403 | S18: 2222.260445 | T18: 30355.40789 | U18: 0.9189683103 | V18: 0 | W18: 0 | X18: 0.9189683103 | Y18: 0.06334002054 | Z18: 0.001734988081 | AA18: 0.01595668105 | AB18: 0.06746240687 | AC18: 0.02026663755 | AD18: 18.75250188 | AE18: 11.94744547 | AG18: =VLOOKUP(G18,F3_treat_duration,13,FALSE) -> 25986.66 | AH18: 25986.66 | AI18: =IF(AG18=0,0,AH18*M18/AG18) -> 25917.98336 | AJ18: =IF(H18="",0,VLOOKUP(H18,F3_treat_duration,13,FALSE)) -> 0 | AK18: 0 | AL18: =IF(AJ18=0,0,AK18*N18/AJ18) -> 0 | AM18: =IF(I18="",0,VLOOKUP(I18,F3_treat_duration,13,FALSE)) -> 0 | AN18: 0 | AO18: =IF(AM18=0,0,AN18*O18/AM18) -> 0 | AP18: 42608.7816 | AQ18: 42608.7816 | AR18: =AQ18*P18/AP18 -> 1683.116906 | AS18: 44203.19323 | AT18: 44203.19323 | AU18: =AT18*Q18/AS18 -> 49.45273929 | AV18: =T18-SUM(M18:Q18)+SUM(AI18,AL18,AO18,AR18,AU18) -> 30355.40789 | AW18: Dominated
C19: 110 | D19: 1 | E19: 1 | F19: 0 | G19: G1_TN IE_SOF+PR12 | J19: G1 TE IE_F4SVR | K19: DC_SVRG1 | L19: G1_TN IE_SOF+PR12 | M19: 36807.05316 | N19: 0 | O19: 0 | P19: 2260.396018 | Q19: 66.2904986 | R19: 740.2663483 | S19: 2955.913742 | T19: 42829.91976 | U19: 0.8893976953 | V19: 0 | W19: 0 | X19: 0.8893976953 | Y19: 0.08675910045 | Z19: 0.002325627754 | AA19: 0.02151757648 | AB19: 0.09229307931 | AC19: 0.02775544081 | AD19: 18.7321764 | AE19: 11.84712375 | AG19: 36900.83829 | AH19: 36900.83829 | AI19: 36807.05316 | AJ19: 0 | AK19: 0 | AL19: 0 | AM19: 0 | AN19: 0 | AO19: 0 | AP19: 42608.7816 | AQ19: 42608.7816 | AR19: 2260.396018 | AS19: 44203.19323 | AT19: 44203.19323 | AU19: 66.2904986 | AV19: 42829.91976 | AW19: Dominated
C20: 110 | D20: 1 | E20: 1 | F20: 0 | G20: G1_TN IE_SMV+PR12+24 | J20: G1 TE IE_F4SVR | K20: DC_SVRG1 | L20: G1_TN IE_SMV+PR12+24 | M20: 25929.42346 | N20: 0 | O20: 0 | P20: 5326.201409 | Q20: 156.0972781 | R20: 907.4735788 | S20: 6126.313753 | T20: 38445.50948 | U20: 0.7553083472 | V20: 0 | W20: 0 | X20: 0.7553083472 | Y20: 0.1889992511 | Z20: 0.005477819282 | AA20: 0.05021458243 | AB20: 0.2020321087 | AC20: 0.06013817016 | AD20: 18.65182841 | AE20: 11.59154287 | AG20: 25997.92862 | AH20: 25997.92862 | AI20: 25929.42346 | AJ20: 0 | AK20: 0 | AL20: 0 | AM20: 0 | AN20: 0 | AO20: 0 | AP20: 42608.7816 | AQ20: 42608.7816 | AR20: 5326.201409 | AS20: 44203.19323 | AT20: 44203.19323 | AU20: 156.0972781 | AV20: 38445.50948 | AW20: Dominated
C21: 110 | D21: 1 | E21: 1 | F21: 0 | G21: G1_TN IE_PR48 | J21: G1 TE IE_F4SVR | K21: DC_SVRG1 | L21: G1_TN IE_PR48 | M21: 6109.602469 | N21: 0 | O21: 0 | P21: 14321.10212 | Q21: 418.9466347 | R21: 972.2866348 | S21: 14044.00347 | T21: 35865.94133 | U21: 0.4050247838 | V21: 0 | W21: 0 | X21: 0.4050247838 | Y21: 0.4458470408 | Z21: 0.01473405831 | AA21: 0.1343941171 | AB21: 0.4809361366 | AC21: 0.1402762937 | AD21: 18.47477645 | AE21: 10.95573471 | AG21: 6121.55251 | AH21: 6121.55251 | AI21: 6109.602469 | AJ21: 0 | AK21: 0 | AL21: 0 | AM21: 0 | AN21: 0 | AO21: 0 | AP21: 42608.7816 | AQ21: 42608.7816 | AR21: 14321.10212 | AS21: 44203.19323 | AT21: 44203.19323 | AU21: 418.9466347 | AV21: 35865.94133 | AW21: Dominated
C22: 110 | D22: 1 | E22: 1 | F22: 0 | G22: G1_TN IE_3D+/-R12 | J22: G1 TE IE_F4SVR | K22: DC_SVRG1 | L22: G1_TN IE_3D+/-R12 | M22: 35230.99767 | N22: 0 | O22: 0 | P22: 926.9992036 | Q22: 27.11464878 | R22: 721.0212252 | S22: 1837.985139 | T22: 38744.11789 | U22: 0.9394110382 | V22: 0 | W22: 0 | X22: 0.9394110382 | Y22: 0.05050061249 | Z22: 0.0009518855203 | AA22: 0.009136463816 | AB22: 0.05276787175 | AC22: 0.0164408457 | AD22: 18.75669047 | AE22: 11.9632968 | AG22: 35327.36249 | AH22: 35327.36249 | AI22: 35230.99767 | AJ22: 0 | AK22: 0 | AL22: 0 | AM22: 0 | AN22: 0 | AO22: 0 | AP22: 42608.7816 | AQ22: 42608.7816 | AR22: 926.9992036 | AS22: 44203.19323 | AT22: 44203.19323 | AU22: 27.11464878 | AV22: 38744.11789 | AW22: Dominated
C23: 110 | D23: 1 | E23: 1 | F23: 0 | G23: G1_TN IE_SOF+DCV12 | J23: G1 TE IE_F4SVR | K23: DC_SVRG1 | L23: G1_TN IE_SOF+DCV12 | M23: 59143.58169 | N23: 0 | O23: 0 | P23: 618.807775 | Q23: 18.17689437 | R23: 720.2295803 | S23: 1576.680224 | T23: 62077.47617 | U23: 0.9512312619 | V23: 0 | W23: 0 | X23: 0.9512312619 | Y23: 0.04205241071 | Z23: 0.0006370066297 | AA23: 0.006079320733 | AB23: 0.04356493752 | AC23: 0.01385309727 | AD23: 18.7625349 | AE23: 11.97815075 | AG23: 59300.6102 | AH23: 59300.6102 | AI23: 59143.58169 | AJ23: 0 | AK23: 0 | AL23: 0 | AM23: 0 | AN23: 0 | AO23: 0 | AP23: 42608.7816 | AQ23: 42608.7816 | AR23: 618.807775 | AS23: 44203.19323 | AT23: 44203.19323 | AU23: 18.17689437 | AV23: 62077.47617 | AW23: Dominated
C24: 110 | D24: 1 | E24: 1 | F24: 0 | G24: G1_TN IE_SOF+LED8 | H24: G1_TE IE_SOF+PR12 | J24: G1 TE IE_F4SVR | K24: DC_SVRG1 | L24: G1_TN IE_SOF+LED8G1_TE IE_SOF+PR12 | M24: 25917.98336 | N24: 2364.068418 | O24: 0 | P24: 491.1330081 | Q24: 14.47423522 | R24: 507.5224791 | S24: 1222.919033 | T24: 30518.10053 | U24: 0.9189683103 | V24: 0.04517839766 | W24: 0 | X24: 0.964146708 | Y24: 0.03067313955 | Z24: 0.0005021115202 | AA24: 0.004678040936 | AB24: 0.03185695038 | AC24: 0.01012212254 | AD24: 18.77420926 | AE24: 12.02142757 | AG24: 25986.66 | AH24: 25986.66 | AI24: 25917.98336 | AJ24: 37435.08 | AK24: 37435.08 | AL24: 2364.068418 | AM24: 0 | AN24: 0 | AO24: 0 | AP24: 42608.7816 | AQ24: 42608.7816 | AR24: 491.1330081 | AS24: 44203.19323 | AT24: 44203.19323 | AU24: 14.47423522 | AV24: 30518.10053 | AW24: Dominated
C25: 110 | D25: 1 | E25: 1 | F25: 0 | G25: G1_TN IE_SOF+LED8 | H25: G1_TE IE_SMV+PR12+48 | J25: G1 TE IE_F4SVR | K25: DC_SVRG1 | L25: G1_TN IE_SOF+LED8G1_TE IE_SMV+PR12+48 | M25: 25917.98336 | N25: 2532.408679 | O25: 0 | P25: 671.119071 | Q25: 19.76674663 | R25: 513.0438931 | S25: 1457.658897 | T25: 31111.98064 | U25: 0.9189683103 | V25: 0.03570105933 | W25: 0 | X25: 0.9546693697 | Y25: 0.03821405549 | Z25: 0.0006899211003 | AA25: 0.006426653749 | AB25: 0.0398445616 | AC25: 0.01252035042 | AD25: 18.7680241 | AE25: 12.00009526 | AG25: 25986.66 | AH25: 25986.66 | AI25: 25917.98336 | AJ25: 40115.12015 | AK25: 40115.12015 | AL25: 2532.408679 | AM25: 0 | AN25: 0 | AO25: 0 | AP25: 42608.7816 | AQ25: 42608.7816 | AR25: 671.119071 | AS25: 44203.19323 | AT25: 44203.19323 | AU25: 19.76674663 | AV25: 31111.98064 | AW25: Dominated
C26: 110 | D26: 1 | E26: 1 | F26: 0 | G26: G1_TN IE_SOF+LED8 | H26: G1_TE IE_PR48 | J26: G1 TE IE_F4SVR | K26: DC_SVRG1 | L26: G1_TN IE_SOF+LED8G1_TE IE_PR48 | M26: 25917.98336 | N26: 397.4938518 | O26: 0 | P26: 1361.815357 | Q26: 39.99557298 | R26: 524.6315558 | S26: 1981.299368 | T26: 30223.21906 | U26: 0.9189683103 | V26: 0.0112325194 | W26: 0 | X26: 0.9302008297 | Y26: 0.05542956858 | Z26: 0.001405130579 | AA26: 0.01296447111 | AB26: 0.05876786499 | AC26: 0.01781378969 | AD26: 18.75765099 | AE26: 11.96054808 | AG26: 25986.66 | AH26: 25986.66 | AI26: 25917.98336 | AJ26: 6297.541364 | AK26: 6297.541364 | AL26: 397.4938518 | AM26: 0 | AN26: 0 | AO26: 0 | AP26: 42608.7816 | AQ26: 42608.7816 | AR26: 1361.815357 | AS26: 44203.19323 | AT26: 44203.19323 | AU26: 39.99557298 | AV26: 30223.21906 | AW26: Dominated
C27: 110 | D27: 1 | E27: 1 | F27: 0 | G27: G1_TN IE_SOF+LED8 | H27: G1_TE IE_3D+/-R12 | J27: G1 TE IE_F4SVR | K27: DC_SVRG1 | L27: G1_TN IE_SOF+LED8G1_TE IE_3D+/-R12 | M27: 25917.98336 | N27: 2228.433386 | O27: 0 | P27: 112.4721008 | Q27: 3.394793971 | R27: 500.6426073 | S27: 904.7577339 | T27: 29667.68398 | U27: 0.9189683103 | V27: 0.05960086829 | W27: 0 | X27: 0.9785691786 | Y27: 0.02027502993 | Z27: 0.0001111082974 | AA27: 0.001044683155 | AB27: 0.02052416622 | AC27: 0.006901074058 | AD27: 18.78107944 | AE27: 12.04767236 | AG27: 25986.66 | AH27: 25986.66 | AI27: 25917.98336 | AJ27: 35282.82166 | AK27: 35282.82166 | AL27: 2228.433386 | AM27: 0 | AN27: 0 | AO27: 0 | AP27: 42608.7816 | AQ27: 42608.7816 | AR27: 112.4721008 | AS27: 44203.19323 | AT27: 44203.19323 | AU27: 3.394793971 | AV27: 29667.68398 | AW27: Dominated
C28: 110 | D28: 1 | E28: 1 | F28: 0 | G28: G1_TN IE_SOF+LED8 | H28: G1_TE IE_SOF+DCV12 | J28: G1 TE IE_F4SVR | K28: DC_SVRG1 | L28: G1_TN IE_SOF+LED8G1_TE IE_SOF+DCV12 | M28: 25917.98336 | N28: 3757.426589 | O28: 0 | P28: 121.0512783 | Q28: 3.651040506 | R28: 501.268632 | S28: 912.4732734 | T28: 31213.85417 | U28: 0.9189683103 | V28: 0.05926155956 | W28: 0 | X28: 0.9782298699 | Y28: 0.0205115579 | Z28: 0.0001201244504 | AA28: 0.00113844776 | AB28: 0.02078185414 | AC28: 0.006980197564 | AD28: 18.78090426 | AE28: 12.04685846 | AG28: 25986.66 | AH28: 25986.66 | AI28: 25917.98336 | AJ28: 59498.94 | AK28: 59498.94 | AL28: 3757.426589 | AM28: 0 | AN28: 0 | AO28: 0 | AP28: 42608.7816 | AQ28: 42608.7816 | AR28: 121.0512783 | AS28: 44203.19323 | AT28: 44203.19323 | AU28: 3.651040506 | AV28: 31213.85417 | AW28: Dominated
C29: 110 | D29: 1 | E29: 1 | F29: 0 | G29: G1_TN IE_SOF+PR12 | H29: G1_TE IE_SOF+LED12 | J29: G1 TE IE_F4SVR | K29: DC_SVRG1 | L29: G1_TN IE_SOF+PR12G1_TE IE_SOF+LED12 | M29: 36807.05316 | N29: 3271.579573 | O29: 0 | P29: 217.3499422 | Q29: 6.561811701 | R29: 765.6229799 | S29: 1237.372058 | T29: 42305.53952 | U29: 0.8893976953 | V29: 0.0780216985 | W29: 0 | X29: 0.9674193938 | Y29: 0.03050682103 | Z29: 0.0002147995405 | AA29: 0.001858985617 | AB29: 0.03098792256 | AC29: 0.01036010431 | AD29: 18.76859266 | AE29: 11.97844171 | AG29: 36900.83829 | AH29: 36900.83829 | AI29: 36807.05316 | AJ29: 38979.99 | AK29: 38979.99 | AL29: 3271.579573 | AM29: 0 | AN29: 0 | AO29: 0 | AP29: 42608.7816 | AQ29: 42608.7816 | AR29: 217.3499422 | AS29: 44203.19323 | AT29: 44203.19323 | AU29: 6.561811701 | AV29: 42305.53952 | AW29: Dominated
C30: 110 | D30: 1 | E30: 1 | F30: 0 | G30: G1_TN IE_SOF+PR12 | H30: G1_TE IE_SMV+PR12+48 | J30: G1 TE IE_F4SVR | K30: DC_SVRG1 | L30: G1_TN IE_SOF+PR12G1_TE IE_SMV+PR12+48 | M30: 36807.05316 | N30: 3365.507822 | O30: 0 | P30: 919.5121121 | Q30: 27.05373126 | R30: 780.8275275 | S30: 1939.499595 | T30: 43839.45395 | U30: 0.8893976953 | V30: 0.04764084207 | W30: 0 | X30: 0.9370385374 | Y30: 0.05330267684 | Z30: 0.000941152102 | AA30: 0.008717633677 | AB30: 0.05552437676 | AC30: 0.01747906317 | AD30: 18.75234894 | AE30: 11.91688905 | AG30: 36900.83829 | AH30: 36900.83829 | AI30: 36807.05316 | AJ30: 40115.12015 | AK30: 40115.12015 | AL30: 3365.507822 | AM30: 0 | AN30: 0 | AO30: 0 | AP30: 42608.7816 | AQ30: 42608.7816 | AR30: 919.5121121 | AS30: 44203.19323 | AT30: 44203.19323 | AU30: 27.05373126 | AV30: 43839.45395 | AW30: Dominated
C31: 110 | D31: 1 | E31: 1 | F31: 0 | G31: G1_TN IE_SOF+PR12 | H31: G1_TE IE_3D+/-R12 | J31: G1 TE IE_F4SVR | K31: DC_SVRG1 | L31: G1_TN IE_SOF+PR12G1_TE IE_3D+/-R12 | M31: 36807.05316 | N31: 2961.676953 | O31: 0 | P31: 180.161404 | Q31: 5.462248378 | R31: 764.3569746 | S31: 1205.94862 | T31: 41924.65936 | U31: 0.8893976953 | V31: 0.07946257579 | W31: 0 | X31: 0.9688602711 | Y31: 0.02948064905 | Z31: 0.00017593331 | AA31: 0.001483146546 | AB31: 0.02986944015 | AC31: 0.01004724089 | AD31: 18.76925897 | AE31: 11.97989337 | AG31: 36900.83829 | AH31: 36900.83829 | AI31: 36807.05316 | AJ31: 35282.82166 | AK31: 35282.82166 | AL31: 2961.676953 | AM31: 0 | AN31: 0 | AO31: 0 | AP31: 42608.7816 | AQ31: 42608.7816 | AR31: 180.161404 | AS31: 44203.19323 | AT31: 44203.19323 | AU31: 5.462248378 | AV31: 41924.65936 | AW31: Dominated
C32: 110 | D32: 1 | E32: 1 | F32: 0 | G32: G1_TN IE_SOF+PR12 | H32: G1_TE IE_SOF+DCV12 | J32: G1 TE IE_F4SVR | K32: DC_SVRG1 | L32: G1_TN IE_SOF+PR12G1_TE IE_SOF+DCV12 | M32: 36807.05316 | N32: 4993.729262 | O32: 0 | P32: 191.8432076 | Q32: 5.812349234 | R32: 765.1914509 | S32: 1216.431004 | T32: 43980.06043 | U32: 0.8893976953 | V32: 0.07899742909 | W32: 0 | X32: 0.9683951244 | Y32: 0.0298038342 | Z32: 0.0001883319034 | AA32: 0.001612709493 | AB32: 0.03022203685 | AC32: 0.01015323512 | AD32: 18.76901312 | AE32: 11.97869115 | AG32: 36900.83829 | AH32: 36900.83829 | AI32: 36807.05316 | AJ32: 59498.94 | AK32: 59498.94 | AL32: 4993.729262 | AM32: 0 | AN32: 0 | AO32: 0 | AP32: 42608.7816 | AQ32: 42608.7816 | AR32: 191.8432076 | AS32: 44203.19323 | AT32: 44203.19323 | AU32: 5.812349234 | AV32: 43980.06043 | AW32: Dominated
C33: 110 | D33: 1 | E33: 1 | F33: 0 | G33: G1_TN IE_SMV+PR12+24 | H33: G1_TE IE_SOF+LED12 | J33: G1 TE IE_F4SVR | K33: DC_SVRG1 | L33: G1_TN IE_SMV+PR12+24G1_TE IE_SOF+LED12 | M33: 25929.42346 | N33: 7451.329475 | O33: 0 | P33: 706.6079504 | Q33: 21.45734852 | R33: 965.8086957 | S33: 2229.946277 | T33: 37304.57321 | U33: 0.7553083472 | V33: 0.1792600905 | W33: 0 | X33: 0.9345684377 | Y33: 0.06038569642 | Z33: 0.0006860126871 | AA33: 0.004359853151 | AB33: 0.06188471199 | AC33: 0.02063070519 | AD33: 18.73155475 | AE33: 11.88677539 | AG33: 25997.92862 | AH33: 25997.92862 | AI33: 25929.42346 | AJ33: 38979.99 | AK33: 38979.99 | AL33: 7451.329475 | AM33: 0 | AN33: 0 | AO33: 0 | AP33: 42608.7816 | AQ33: 42608.7816 | AR33: 706.6079504 | AS33: 44203.19323 | AT33: 44203.19323 | AU33: 21.45734852 | AV33: 37304.57321 | AW33: Dominated
C34: 110 | D34: 1 | E34: 1 | F34: 0 | G34: G1_TN IE_SMV+PR12+24 | H34: G1_TE IE_SOF+PR12 | J34: G1 TE IE_F4SVR | K34: DC_SVRG1 | L34: G1_TN IE_SMV+PR12+24G1_TE IE_SOF+PR12 | M34: 25929.42346 | N34: 7156.007864 | O34: 0 | P34: 1755.74073 | Q34: 51.92836886 | R34: 983.5298792 | S34: 3116.262012 | T34: 38992.89232 | U34: 0.7553083472 | V34: 0.1384305539 | W34: 0 | X34: 0.8937389011 | Y34: 0.08963989882 | Z34: 0.00177171623 | AA34: 0.01484948388 | AB34: 0.09375997949 | AC34: 0.02960998184 | AD34: 18.71354431 | AE34: 11.81167762 | AG34: 25997.92862 | AH34: 25997.92862 | AI34: 25929.42346 | AJ34: 37435.08 | AK34: 37435.08 | AL34: 7156.007864 | AM34: 0 | AN34: 0 | AO34: 0 | AP34: 42608.7816 | AQ34: 42608.7816 | AR34: 1755.74073 | AS34: 44203.19323 | AT34: 44203.19323 | AU34: 51.92836886 | AV34: 38992.89232 | AW34: Dominated
C35: 110 | D35: 1 | E35: 1 | F35: 0 | G35: G1_TN IE_SMV+PR12+24 | H35: G1_TE IE_3D+/-R12 | J35: G1 TE IE_F4SVR | K35: DC_SVRG1 | L35: G1_TN IE_SMV+PR12+24G1_TE IE_3D+/-R12 | M35: 25929.42346 | N35: 6745.577058 | O35: 0 | P35: 622.848997 | Q35: 19.00009775 | R35: 962.9433404 | S35: 2158.863111 | T35: 36438.65607 | U35: 0.7553083472 | V35: 0.1825659132 | W35: 0 | X35: 0.9378742604 | Y35: 0.05804707092 | Z35: 0.0005985695899 | AA35: 0.003480099132 | AB35: 0.05933670218 | AC35: 0.01992425314 | AD35: 18.73302991 | AE35: 11.88989427 | AG35: 25997.92862 | AH35: 25997.92862 | AI35: 25929.42346 | AJ35: 35282.82166 | AK35: 35282.82166 | AL35: 6745.577058 | AM35: 0 | AN35: 0 | AO35: 0 | AP35: 42608.7816 | AQ35: 42608.7816 | AR35: 622.848997 | AS35: 44203.19323 | AT35: 44203.19323 | AU35: 19.00009775 | AV35: 36438.65607 | AW35: Dominated
C36: 110 | D36: 1 | E36: 1 | F36: 0 | G36: G1_TN IE_SMV+PR12+24 | H36: G1_TE IE_SOF+DCV12 | J36: G1 TE IE_F4SVR | K36: DC_SVRG1 | L36: G1_TN IE_SMV+PR12+24G1_TE IE_SOF+DCV12 | M36: 25929.42346 | N36: 11373.687 | O36: 0 | P36: 650.314774 | Q36: 19.81851174 | R36: 964.8591321 | S36: 2183.440335 | T36: 41121.54321 | U36: 0.7553083472 | V36: 0.1814615903 | W36: 0 | X36: 0.9367699375 | Y36: 0.05881419342 | Z36: 0.0006277031298 | AA36: 0.003788165974 | AB36: 0.06017345265 | AC36: 0.02017594768 | AD36: 18.73249641 | AE36: 11.88722811 | AG36: 25997.92862 | AH36: 25997.92862 | AI36: 25929.42346 | AJ36: 59498.94 | AK36: 59498.94 | AL36: 11373.687 | AM36: 0 | AN36: 0 | AO36: 0 | AP36: 42608.7816 | AQ36: 42608.7816 | AR36: 650.314774 | AS36: 44203.19323 | AT36: 44203.19323 | AU36: 19.81851174 | AV36: 41121.54321 | AW36: Dominated
C37: 110 | D37: 1 | E37: 1 | F37: 0 | G37: G1_TN IE_PR48 | H37: G1_TE IE_SOF+LED12 | J37: G1 TE IE_F4SVR | K37: DC_SVRG1 | L37: G1_TN IE_PR48G1_TE IE_SOF+LED12 | M37: 6109.602469 | N37: 18853.81901 | O37: 0 | P37: 2835.53378 | Q37: 86.23523675 | R37: 1123.32495 | S37: 4279.211972 | T37: 33287.72741 | U37: 0.4050247838 | V37: 0.4615279506 | W37: 0 | X37: 0.8665527344 | Y37: 0.1188071379 | Z37: 0.002725627678 | AA37: 0.01191450006 | AB37: 0.1246452029 | AC37: 0.04145117607 | AD37: 18.65926459 | AE37: 11.68220171 | AG37: 6121.55251 | AH37: 6121.55251 | AI37: 6109.602469 | AJ37: 38979.99 | AK37: 38979.99 | AL37: 18853.81901 | AM37: 0 | AN37: 0 | AO37: 0 | AP37: 42608.7816 | AQ37: 42608.7816 | AR37: 2835.53378 | AS37: 44203.19323 | AT37: 44203.19323 | AU37: 86.23523675 | AV37: 33287.72741 | AW37: Dominated
C38: 110 | D38: 1 | E38: 1 | F38: 0 | G38: G1_TN IE_PR48 | H38: G1_TE IE_SOF+PR12 | J38: G1 TE IE_F4SVR | K38: DC_SVRG1 | L38: G1_TN IE_PR48G1_TE IE_SOF+PR12 | M38: 6109.602469 | N38: 18106.57783 | O38: 0 | P38: 5441.909275 | Q38: 161.4742462 | R38: 1167.33881 | S38: 6498.207353 | T38: 37485.10999 | U38: 0.4050247838 | V38: 0.3565083894 | W38: 0 | X38: 0.7615331732 | Y38: 0.1931261451 | Z38: 0.005444051169 | AA38: 0.03989663054 | AB38: 0.2056049261 | AC38: 0.06389088194 | AD38: 18.61763719 | AE38: 11.49707099 | AG38: 6121.55251 | AH38: 6121.55251 | AI38: 6109.602469 | AJ38: 37435.08 | AK38: 37435.08 | AL38: 18106.57783 | AM38: 0 | AN38: 0 | AO38: 0 | AP38: 42608.7816 | AQ38: 42608.7816 | AR38: 5441.909275 | AS38: 44203.19323 | AT38: 44203.19323 | AU38: 161.4742462 | AV38: 37485.10999 | AW38: Dominated
C39: 110 | D39: 1 | E39: 1 | F39: 0 | G39: G1_TN IE_PR48 | H39: G1_TE IE_SMV+PR12+48 | J39: G1 TE IE_F4SVR | K39: DC_SVRG1 | L39: G1_TN IE_PR48G1_TE IE_SMV+PR12+48 | M39: 6109.602469 | N39: 19395.16536 | O39: 0 | P39: 6779.985272 | Q39: 200.328182 | R39: 1209.254161 | S39: 8240.977761 | T39: 41935.31321 | U39: 0.4050247838 | V39: 0.2834723797 | W39: 0 | X39: 0.6884971635 | Y39: 0.2500887467 | Z39: 0.006854788358 | AA39: 0.05455930148 | AB39: 0.2659924658 | AC39: 0.08157543574 | AD39: 18.57698624 | AE39: 11.34276013 | AG39: 6121.55251 | AH39: 6121.55251 | AI39: 6109.602469 | AJ39: 40115.12015 | AK39: 40115.12015 | AL39: 19395.16536 | AM39: 0 | AN39: 0 | AO39: 0 | AP39: 42608.7816 | AQ39: 42608.7816 | AR39: 6779.985272 | AS39: 44203.19323 | AT39: 44203.19323 | AU39: 200.328182 | AV39: 41935.31321 | AW39: Dominated
C40: 110 | D40: 1 | E40: 1 | F40: 0 | G40: G1_TN IE_PR48 | H40: G1_TE IE_3D+/-R12 | J40: G1 TE IE_F4SVR | K40: DC_SVRG1 | L40: G1_TN IE_PR48G1_TE IE_3D+/-R12 | M40: 6109.602469 | N40: 17067.96352 | O40: 0 | P40: 2628.897766 | Q40: 80.20609764 | R40: 1116.163079 | S40: 4102.329108 | T40: 31105.16204 | U40: 0.4050247838 | V40: 0.4699810246 | W40: 0 | X40: 0.8750058083 | Y40: 0.1129037027 | Z40: 0.002507991723 | AA40: 0.009582497241 | AB40: 0.1182144155 | AC40: 0.03969856765 | AD40: 18.6626582 | AE40: 11.68973942 | AG40: 6121.55251 | AH40: 6121.55251 | AI40: 6109.602469 | AJ40: 35282.82166 | AK40: 35282.82166 | AL40: 17067.96352 | AM40: 0 | AN40: 0 | AO40: 0 | AP40: 42608.7816 | AQ40: 42608.7816 | AR40: 2628.897766 | AS40: 44203.19323 | AT40: 44203.19323 | AU40: 80.20609764 | AV40: 31105.16204 | AW40: Dominated
C41: 110 | D41: 1 | E41: 1 | F41: 0 | G41: G1_TN IE_PR48 | H41: G1_TE IE_SOF+DCV12 | J41: G1 TE IE_F4SVR | K41: DC_SVRG1 | L41: G1_TN IE_PR48G1_TE IE_SOF+DCV12 | M41: 6109.602469 | N41: 28778.41287 | O41: 0 | P41: 2696.121859 | Q41: 82.18021116 | R41: 1120.973358 | S41: 4162.986218 | T41: 42950.27698 | U41: 0.4050247838 | V41: 0.4671753734 | W41: 0 | X41: 0.8722001571 | Y41: 0.1148260834 | Z41: 0.002579204091 | AA41: 0.01039455532 | AB41: 0.1203092052 | AC41: 0.04031656942 | AD41: 18.66138955 | AE41: 11.68307847 | AG41: 6121.55251 | AH41: 6121.55251 | AI41: 6109.602469 | AJ41: 59498.94 | AK41: 59498.94 | AL41: 28778.41287 | AM41: 0 | AN41: 0 | AO41: 0 | AP41: 42608.7816 | AQ41: 42608.7816 | AR41: 2696.121859 | AS41: 44203.19323 | AT41: 44203.19323 | AU41: 82.18021116 | AV41: 42950.27698 | AW41: Dominated
C42: 110 | D42: 1 | E42: 1 | F42: 0 | G42: G1_TN IE_3D+/-R12 | H42: G1_TE IE_SOF+LED12 | J42: G1 TE IE_F4SVR | K42: DC_SVRG1 | L42: G1_TN IE_3D+/-R12G1_TE IE_SOF+LED12 | M42: 35230.99767 | N42: 1342.586908 | O42: 0 | P42: 89.00999764 | Q42: 2.675308399 | R42: 731.4367231 | S42: 1134.123513 | T42: 38530.83012 | U42: 0.9394110382 | V42: 0.03202116635 | W42: 0 | X42: 0.9714322045 | Y42: 0.02740443077 | Z42: 8.763779938e-05 | AA42: 0.001075726913 | AB42: 0.02760110625 | AC42: 0.009310362968 | AD42: 18.77169158 | AE42: 12.01711833 | AG42: 35327.36249 | AH42: 35327.36249 | AI42: 35230.99767 | AJ42: 38979.99 | AK42: 38979.99 | AL42: 1342.586908 | AM42: 0 | AN42: 0 | AO42: 0 | AP42: 42608.7816 | AQ42: 42608.7816 | AR42: 89.00999764 | AS42: 44203.19323 | AT42: 44203.19323 | AU42: 2.675308399 | AV42: 38530.83012 | AW42: Dominated
C43: 110 | D43: 1 | E43: 1 | F43: 0 | G43: G1_TN IE_3D+/-R12 | H43: G1_TE IE_SOF+PR12 | J43: G1 TE IE_F4SVR | K43: DC_SVRG1 | L43: G1_TN IE_3D+/-R12G1_TE IE_SOF+PR12 | M43: 35230.99767 | N43: 1289.375608 | O43: 0 | P43: 279.7527979 | Q43: 8.217219661 | R43: 734.6585896 | S43: 1294.540812 | T43: 38837.5427 | U43: 0.9394110382 | V43: 0.02471481603 | W43: 0 | X43: 0.9641258542 | Y43: 0.03266963924 | Z43: 0.0002838257282 | AA43: 0.002920680841 | AB43: 0.03333768954 | AC43: 0.01093496304 | AD43: 18.76830422 | AE43: 12.00342867 | AG43: 35327.36249 | AH43: 35327.36249 | AI43: 35230.99767 | AJ43: 37435.08 | AK43: 37435.08 | AL43: 1289.375608 | AM43: 0 | AN43: 0 | AO43: 0 | AP43: 42608.7816 | AQ43: 42608.7816 | AR43: 279.7527979 | AS43: 44203.19323 | AT43: 44203.19323 | AU43: 8.217219661 | AV43: 38837.5427 | AW43: Dominated
C44: 110 | D44: 1 | E44: 1 | F44: 0 | G44: G1_TN IE_3D+/-R12 | H44: G1_TE IE_SMV+PR12+48 | J44: G1 TE IE_F4SVR | K44: DC_SVRG1 | L44: G1_TN IE_3D+/-R12G1_TE IE_SMV+PR12+48 | M44: 35230.99767 | N44: 1381.445693 | O44: 0 | P44: 377.3161174 | Q44: 11.0715309 | R44: 737.6873079 | S44: 1421.799511 | T44: 39160.31783 | U44: 0.9394110382 | V44: 0.01954737601 | W44: 0 | X44: 0.9589584142 | Y44: 0.03676734137 | Z44: 0.0003854046694 | AA44: 0.003888839785 | AB44: 0.03767791631 | AC44: 0.01223056601 | AD44: 18.76500199 | AE44: 11.9918741 | AG44: 35327.36249 | AH44: 35327.36249 | AI44: 35230.99767 | AJ44: 40115.12015 | AK44: 40115.12015 | AL44: 1381.445693 | AM44: 0 | AN44: 0 | AO44: 0 | AP44: 42608.7816 | AQ44: 42608.7816 | AR44: 377.3161174 | AS44: 44203.19323 | AT44: 44203.19323 | AU44: 11.0715309 | AV44: 39160.31783 | AW44: Dominated
C45: 110 | D45: 1 | E45: 1 | F45: 0 | G45: G1_TN IE_3D+/-R12 | H45: G1_TE IE_PR48 | J45: G1 TE IE_F4SVR | K45: DC_SVRG1 | L45: G1_TN IE_3D+/-R12G1_TE IE_PR48 | M45: 35230.99767 | N45: 216.822444 | O45: 0 | P45: 752.6742385 | Q45: 22.00848761 | R45: 743.9798434 | S45: 1707.03906 | T45: 38673.52175 | U45: 0.9394110382 | V45: 0.006140702582 | W45: 0 | X45: 0.9455517408 | Y45: 0.04618240005 | Z45: 0.0007732342163 | AA45: 0.007492624983 | AB45: 0.0480231073 | AC45: 0.01510925596 | AD45: 18.75945121 | AE45: 11.9703843 | AG45: 35327.36249 | AH45: 35327.36249 | AI45: 35230.99767 | AJ45: 6297.541364 | AK45: 6297.541364 | AL45: 216.822444 | AM45: 0 | AN45: 0 | AO45: 0 | AP45: 42608.7816 | AQ45: 42608.7816 | AR45: 752.6742385 | AS45: 44203.19323 | AT45: 44203.19323 | AU45: 22.00848761 | AV45: 38673.52175 | AW45: Dominated
C46: 110 | D46: 1 | E46: 1 | F46: 0 | G46: G1_TN IE_3D+/-R12 | H46: G1_TE IE_SOF+DCV12 | J46: G1 TE IE_F4SVR | K46: DC_SVRG1 | L46: G1_TN IE_3D+/-R12G1_TE IE_SOF+DCV12 | M46: 35230.99767 | N46: 2049.320636 | O46: 0 | P46: 78.72882658 | Q46: 2.374346551 | R46: 731.262294 | S46: 1125.653713 | T46: 39218.33749 | U46: 0.9394110382 | V46: 0.03241528636 | W46: 0 | X46: 0.9718263245 | Y46: 0.02712048137 | Z46: 7.698096824e-05 | AA46: 0.0009762131306 | AB46: 0.02729164893 | AC46: 0.009227114021 | AD46: 18.77186568 | AE46: 12.01721737 | AG46: 35327.36249 | AH46: 35327.36249 | AI46: 35230.99767 | AJ46: 59498.94 | AK46: 59498.94 | AL46: 2049.320636 | AM46: 0 | AN46: 0 | AO46: 0 | AP46: 42608.7816 | AQ46: 42608.7816 | AR46: 78.72882658 | AS46: 44203.19323 | AT46: 44203.19323 | AU46: 2.374346551 | AV46: 39218.33749 | AW46: Dominated
C47: 110 | D47: 1 | E47: 1 | F47: 0 | G47: G1_TN IE_SOF+DCV12 | H47: G1_TE IE_SOF+LED12 | J47: G1 TE IE_F4SVR | K47: DC_SVRG1 | L47: G1_TN IE_SOF+DCV12G1_TE IE_SOF+LED12 | M47: 59143.58169 | N47: 886.6860701 | O47: 0 | P47: 59.55822503 | Q47: 1.80022807 | R47: 727.0012544 | S47: 1110.306022 | T47: 61928.93349 | U47: 0.9512312619 | V47: 0.02113917848 | W47: 0 | X47: 0.9723704404 | Y47: 0.02668830437 | Z47: 5.887744649e-05 | AA47: 0.0008823777802 | AB47: 0.02681990519 | AC47: 0.009074053174 | AD47: 18.77242108 | AE47: 12.01430018 | AG47: 59300.6102 | AH47: 59300.6102 | AI47: 59143.58169 | AJ47: 38979.99 | AK47: 38979.99 | AL47: 886.6860701 | AM47: 0 | AN47: 0 | AO47: 0 | AP47: 42608.7816 | AQ47: 42608.7816 | AR47: 59.55822503 | AS47: 44203.19323 | AT47: 44203.19323 | AU47: 1.80022807 | AV47: 61928.93349 | AW47: Dominated
C48: 110 | D48: 1 | E48: 1 | F48: 0 | G48: G1_TN IE_SOF+DCV12 | H48: G1_TE IE_SOF+PR12 | J48: G1 TE IE_F4SVR | K48: DC_SVRG1 | L48: G1_TN IE_SOF+DCV12G1_TE IE_SOF+PR12 | M48: 59143.58169 | N48: 851.5436759 | O48: 0 | P48: 187.0439063 | Q48: 5.535898706 | R48: 729.1519433 | S48: 1216.604023 | T48: 62133.46114 | U48: 0.9512312619 | V48: 0.01631180451 | W48: 0 | X48: 0.9675430664 | Y48: 0.03019374646 | Z48: 0.0001909487343 | AA48: 0.002072238372 | AB48: 0.03064138248 | AC48: 0.01016320645 | AD48: 18.77020676 | AE48: 12.00510954 | AG48: 59300.6102 | AH48: 59300.6102 | AI48: 59143.58169 | AJ48: 37435.08 | AK48: 37435.08 | AL48: 851.5436759 | AM48: 0 | AN48: 0 | AO48: 0 | AP48: 42608.7816 | AQ48: 42608.7816 | AR48: 187.0439063 | AS48: 44203.19323 | AT48: 44203.19323 | AU48: 5.535898706 | AV48: 62133.46114 | AW48: Dominated
C49: =D49&E49&F49 -> 110 | D49: 1 | E49: 1 | F49: 0 | G49: G1_TN IE_SOF+DCV12 | H49: G1_TE IE_SMV+PR12+48 | J49: G1 TE IE_F4SVR | K49: DC_SVRG1 | L49: =G49&H49&I49 -> G1_TN IE_SOF+DCV12G1_TE IE_SMV+PR12+48 | M49: 59143.58169 | N49: 911.6893756 | O49: 0 | P49: 251.8146859 | Q49: 7.426793331 | R49: 731.1804369 | S49: 1301.148052 | T49: 62346.84103 | U49: 0.9512312619 | V49: 0.01289261746 | W49: 0 | X49: 0.9641238794 | Y49: 0.03292280321 | Z49: 0.0002580609317 | AA49: 0.002695256469 | AB49: 0.03353063589 | AC49: 0.0110341538 | AD49: 18.768027 | AE49: 11.99732686 | AG49: 59300.6102 | AH49: 59300.6102 | AI49: 59143.58169 | AJ49: 40115.12015 | AK49: 40115.12015 | AL49: 911.6893756 | AM49: 0 | AN49: 0 | AO49: 0 | AP49: 42608.7816 | AQ49: 42608.7816 | AR49: 251.8146859 | AS49: 44203.19323 | AT49: 44203.19323 | AU49: 7.426793331 | AV49: 62346.84103 | AW49: Dominated
C50: 110 | D50: 1 | E50: 1 | F50: 0 | G50: G1_TN IE_SOF+DCV12 | H50: G1_TE IE_PR48 | J50: G1 TE IE_F4SVR | K50: DC_SVRG1 | L50: G1_TN IE_SOF+DCV12G1_TE IE_PR48 | M50: 59143.58169 | N50: 143.1286218 | O50: 0 | P50: 502.2022638 | Q50: 14.74868267 | R50: 735.3561785 | S50: 1489.758341 | T50: 62028.77578 | U50: 0.9512312619 | V50: 0.004062190164 | W50: 0 | X50: 0.9552934521 | Y50: 0.03917382311 | Z50: 0.0005172484312 | AA50: 0.005015476363 | AB50: 0.04040146371 | AC50: 0.01295913961 | AD50: 18.76435856 | AE50: 11.98294681 | AG50: 59300.6102 | AH50: 59300.6102 | AI50: 59143.58169 | AJ50: 6297.541364 | AK50: 6297.541364 | AL50: 143.1286218 | AM50: 0 | AN50: 0 | AO50: 0 | AP50: 42608.7816 | AQ50: 42608.7816 | AR50: 502.2022638 | AS50: 44203.19323 | AT50: 44203.19323 | AU50: 14.74868267 | AV50: 62028.77578 | AW50: Dominated
C51: 110 | D51: 1 | E51: 1 | F51: 0 | G51: G1_TN IE_SOF+DCV12 | H51: G1_TE IE_3D+/-R12 | J51: G1 TE IE_F4SVR | K51: DC_SVRG1 | L51: G1_TN IE_SOF+DCV12G1_TE IE_3D+/-R12 | M51: 59143.58169 | N51: 802.7202114 | O51: 0 | P51: 49.42922124 | Q51: 1.497990845 | R51: 726.6585212 | S51: 1101.734493 | T51: 61825.62213 | U51: 0.9512312619 | V51: 0.02153039521 | W51: 0 | X51: 0.9727616571 | Y51: 0.02640855327 | Z51: 4.819428009e-05 | AA51: 0.0007815953116 | AB51: 0.02651484488 | AC51: 0.008987786666 | AD51: 18.77261433 | AE51: 12.01468914 | AG51: 59300.6102 | AH51: 59300.6102 | AI51: 59143.58169 | AJ51: 35282.82166 | AK51: 35282.82166 | AL51: 802.7202114 | AM51: 0 | AN51: 0 | AO51: 0 | AP51: 42608.7816 | AQ51: 42608.7816 | AR51: 49.42922124 | AS51: 44203.19323 | AT51: 44203.19323 | AU51: 1.497990845 | AV51: 61825.62213 | AW51: Dominated
C52: =D52&E52&F52 -> 110 | D52: 1 | E52: 1 | F52: 0 | G52: G1_TN IE_SOF+LED8 | H52: G1_TE IE_SOF+PR12 | I52: G1_TE IE_SMV+PR12+48 | J52: G1 TE IE_F4SVR | K52: DC_SVRG1 | L52: =G52&H52&I52 -> G1_TN IE_SOF+LED8G1_TE IE_SOF+PR12G1_TE IE_SMV+PR12+48 | M52: 25917.98336 | N52: 2364.068418 | O52: 666.129161 | P52: 228.4941226 | Q52: 6.806345177 | R52: 515.5868317 | S52: 1022.915047 | T52: 30721.98328 | U52: 0.9189683103 | V52: 0.04517839766 | W52: 0.009481876952 | X52: 0.9736285849 | Y52: 0.02404916936 | Z52: 0.0002299769352 | AA52: 0.002092268757 | AB52: 0.02457885589 | AC52: 0.008100307462 | AD52: 18.77809739 | AE52: 12.03508517 | AG52: 25986.66 | AH52: 25986.66 | AI52: 25917.98336 | AJ52: 37435.08 | AK52: 37435.08 | AL52: 2364.068418 | AM52: 40115.12015 | AN52: 40115.12015 | AO52: 666.129161 | AP52: 42608.7816 | AQ52: 42608.7816 | AR52: 228.4941226 | AS52: 44203.19323 | AT52: 44203.19323 | AU52: 6.806345177 | AV52: 30721.98328 | AW52: Dominated
C53: 110 | D53: 1 | E53: 1 | F53: 0 | G53: G1_TN IE_SOF+LED8 | H53: G1_TE IE_SOF+PR12 | I53: G1_TE IE_3D+/-R12 | J53: G1 TE IE_F4SVR | K53: DC_SVRG1 | L53: G1_TN IE_SOF+LED8G1_TE IE_SOF+PR12G1_TE IE_3D+/-R12 | M53: 25917.98336 | N53: 2364.068418 | O53: 586.2083212 | P53: 82.75946322 | Q53: 2.550301268 | R53: 512.3525075 | S53: 878.4951762 | T53: 30344.41754 | U53: 0.9189683103 | V53: 0.04517839766 | W53: 0.01581663218 | X53: 0.9799633402 | Y53: 0.01933295438 | Z53: 7.829746764e-05 | AA53: 0.0006254079779 | AB53: 0.01949789083 | AC53: 0.006636846344 | AD53: 18.78136708 | AE53: 12.04742514 | AG53: 25986.66 | AH53: 25986.66 | AI53: 25917.98336 | AJ53: 37435.08 | AK53: 37435.08 | AL53: 2364.068418 | AM53: 35282.82166 | AN53: 35282.82166 | AO53: 586.2083212 | AP53: 42608.7816 | AQ53: 42608.7816 | AR53: 82.75946322 | AS53: 44203.19323 | AT53: 44203.19323 | AU53: 2.550301268 | AV53: 30344.41754 | AW53: Dominated
C54: 110 | D54: 1 | E54: 1 | F54: 0 | G54: G1_TN IE_SOF+LED8 | H54: G1_TE IE_SOF+PR12 | I54: G1_TE IE_SOF+DCV12 | J54: G1 TE IE_F4SVR | K54: DC_SVRG1 | L54: G1_TN IE_SOF+LED8G1_TE IE_SOF+PR12G1_TE IE_SOF+DCV12 | M54: 25917.98336 | N54: 2364.068418 | O54: 988.414433 | P54: 85.14763821 | Q54: 2.621656771 | R54: 512.5194372 | S54: 880.6504842 | T54: 30751.40542 | U54: 0.9189683103 | V54: 0.04517839766 | W54: 0.01572059136 | X54: 0.9798672994 | Y54: 0.01939897879 | Z54: 8.081390198e-05 | AA54: 0.0006529079569 | AB54: 0.01956988095 | AC54: 0.006658646871 | AD54: 18.78132792 | AE54: 12.04720699 | AG54: 25986.66 | AH54: 25986.66 | AI54: 25917.98336 | AJ54: 37435.08 | AK54: 37435.08 | AL54: 2364.068418 | AM54: 59498.94 | AN54: 59498.94 | AO54: 988.414433 | AP54: 42608.7816 | AQ54: 42608.7816 | AR54: 85.14763821 | AS54: 44203.19323 | AT54: 44203.19323 | AU54: 2.621656771 | AV54: 30751.40542 | AW54: Dominated
C55: 110 | D55: 1 | E55: 1 | F55: 0 | G55: G1_TN IE_SOF+LED8 | H55: G1_TE IE_SMV+PR12+48 | I55: G1_TE IE_SOF+PR12 | J55: G1 TE IE_F4SVR | K55: DC_SVRG1 | L55: G1_TN IE_SOF+LED8G1_TE IE_SMV+PR12+48G1_TE IE_SOF+PR12 | M55: 25917.98336 | N55: 2532.408679 | O55: 794.0930872 | P55: 284.3595926 | Q55: 8.531613404 | R55: 521.6472216 | S55: 1128.714571 | T55: 31187.73812 | U55: 0.9189683103 | V55: 0.03570105933 | W55: 0.01568782287 | X55: 0.9703571925 | Y55: 0.02713392833 | Z55: 0.0002827134957 | AA55: 0.002226165649 | AB55: 0.02777115974 | AC55: 0.00918591059 | AD55: 18.77406305 | AE55: 12.02352262 | AG55: 25986.66 | AH55: 25986.66 | AI55: 25917.98336 | AJ55: 40115.12015 | AK55: 40115.12015 | AL55: 2532.408679 | AM55: 37435.08 | AN55: 37435.08 | AO55: 794.0930872 | AP55: 42608.7816 | AQ55: 42608.7816 | AR55: 284.3595926 | AS55: 44203.19323 | AT55: 44203.19323 | AU55: 8.531613404 | AV55: 31187.73812 | AW55: Dominated
C56: 110 | D56: 1 | E56: 1 | F56: 0 | G56: G1_TN IE_SOF+LED8 | H56: G1_TE IE_SMV+PR12+48 | I56: G1_TE IE_3D+/-R12 | J56: G1 TE IE_F4SVR | K56: DC_SVRG1 | L56: G1_TN IE_SOF+LED8G1_TE IE_SMV+PR12+48G1_TE IE_3D+/-R12 | M56: 25917.98336 | N56: 2532.408679 | O56: 748.5484339 | P56: 160.8366739 | Q56: 4.948523242 | R56: 519.39982 | S56: 1023.483343 | T56: 30907.60883 | U56: 0.9189683103 | V56: 0.03570105933 | W56: 0.02072107059 | X56: 0.9753904402 | Y56: 0.02358970582 | Z56: 0.0001526945965 | AA56: 0.0008671593392 | AB56: 0.0239090502 | AC56: 0.0081222007 | AD56: 18.77597738 | AE56: 12.03192094 | AG56: 25986.66 | AH56: 25986.66 | AI56: 25917.98336 | AJ56: 40115.12015 | AK56: 40115.12015 | AL56: 2532.408679 | AM56: 35282.82166 | AN56: 35282.82166 | AO56: 748.5484339 | AP56: 42608.7816 | AQ56: 42608.7816 | AR56: 160.8366739 | AS56: 44203.19323 | AT56: 44203.19323 | AU56: 4.948523242 | AV56: 30907.60883 | AW56: Dominated
C57: 110 | D57: 1 | E57: 1 | F57: 0 | G57: G1_TN IE_SOF+LED8 | H57: G1_TE IE_SMV+PR12+48 | I57: G1_TE IE_SOF+DCV12 | J57: G1 TE IE_F4SVR | K57: DC_SVRG1 | L57: G1_TN IE_SOF+LED8G1_TE IE_SMV+PR12+48G1_TE IE_SOF+DCV12 | M57: 25917.98336 | N57: 2532.408679 | O57: 1262.123574 | P57: 163.6789997 | Q57: 5.032831348 | R57: 519.6092376 | S57: 1026.09276 | T57: 31426.92944 | U57: 0.9189683103 | V57: 0.03570105933 | W57: 0.02060013192 | X57: 0.9752695016 | Y57: 0.02367136432 | Z57: 0.0001557408924 | AA57: 0.0009033932135 | AB57: 0.0239980283 | AC57: 0.008148761445 | AD57: 18.77592412 | AE57: 12.03165244 | AG57: 25986.66 | AH57: 25986.66 | AI57: 25917.98336 | AJ57: 40115.12015 | AK57: 40115.12015 | AL57: 2532.408679 | AM57: 59498.94 | AN57: 59498.94 | AO57: 1262.123574 | AP57: 42608.7816 | AQ57: 42608.7816 | AR57: 163.6789997 | AS57: 44203.19323 | AT57: 44203.19323 | AU57: 5.032831348 | AV57: 31426.92944 | AW57: Dominated
C58: 110 | D58: 1 | E58: 1 | F58: 0 | G58: G1_TN IE_SOF+LED8 | H58: G1_TE IE_PR48 | I58: G1_TE IE_SOF+PR12 | J58: G1 TE IE_F4SVR | K58: DC_SVRG1 | L58: G1_TN IE_SOF+LED8G1_TE IE_PR48G1_TE IE_SOF+PR12 | M58: 25917.98336 | N58: 397.4938518 | O58: 1674.428061 | P58: 545.8892414 | Q58: 16.29848823 | R58: 542.7630629 | S58: 1287.26275 | T58: 30382.11881 | U58: 0.9189683103 | V58: 0.0112325194 | W58: 0.03310570371 | X58: 0.9633065334 | Y58: 0.03205155701 | Z58: 0.0005461448346 | AA58: 0.004095764711 | AB58: 0.03329428172 | AC58: 0.01078386257 | AD58: 18.77045578 | AE58: 12.00997682 | AG58: 25986.66 | AH58: 25986.66 | AI58: 25917.98336 | AJ58: 6297.541364 | AK58: 6297.541364 | AL58: 397.4938518 | AM58: 37435.08 | AN58: 37435.08 | AO58: 1674.428061 | AP58: 42608.7816 | AQ58: 42608.7816 | AR58: 545.8892414 | AS58: 44203.19323 | AT58: 44203.19323 | AU58: 16.29848823 | AV58: 30382.11881 | AW58: Dominated
C59: 110 | D59: 1 | E59: 1 | F59: 0 | G59: G1_TN IE_SOF+LED8 | H59: G1_TE IE_PR48 | I59: G1_TE IE_SMV+PR12+48 | J59: G1 TE IE_F4SVR | K59: DC_SVRG1 | L59: G1_TN IE_SOF+LED8G1_TE IE_PR48G1_TE IE_SMV+PR12+48 | M59: 25917.98336 | N59: 397.4938518 | O59: 1793.650698 | P59: 671.8552528 | Q59: 19.96237016 | R59: 546.660503 | S59: 1449.367254 | T59: 30796.97329 | U59: 0.9189683103 | V59: 0.0112325194 | W59: 0.02623976041 | X59: 0.9564405901 | Y59: 0.03737934317 | Z59: 0.0006797836565 | AA59: 0.005500283025 | AB59: 0.0389474177 | AC59: 0.0124289744 | AD59: 18.76675418 | AE59: 11.99574578 | AG59: 25986.66 | AH59: 25986.66 | AI59: 25917.98336 | AJ59: 6297.541364 | AK59: 6297.541364 | AL59: 397.4938518 | AM59: 40115.12015 | AN59: 40115.12015 | AO59: 1793.650698 | AP59: 42608.7816 | AQ59: 42608.7816 | AR59: 671.8552528 | AS59: 44203.19323 | AT59: 44203.19323 | AU59: 19.96237016 | AV59: 30796.97329 | AW59: Dominated
C60: 110 | D60: 1 | E60: 1 | F60: 0 | G60: G1_TN IE_SOF+LED8 | H60: G1_TE IE_PR48 | I60: G1_TE IE_3D+/-R12 | J60: G1 TE IE_F4SVR | K60: DC_SVRG1 | L60: G1_TN IE_SOF+LED8G1_TE IE_PR48G1_TE IE_3D+/-R12 | M60: 25917.98336 | N60: 397.4938518 | O60: 1578.356716 | P60: 286.095312 | Q60: 8.770811467 | R60: 538.0355522 | S60: 1065.820035 | T60: 29792.55564 | U60: 0.9189683103 | V60: 0.0112325194 | W60: 0.04369734785 | X60: 0.9738981776 | Y60: 0.02459487876 | Z60: 0.0002729596232 | AA60: 0.001233984028 | AB60: 0.02516941301 | AC60: 0.008547437712 | AD60: 18.77451464 | AE60: 12.027657 | AG60: 25986.66 | AH60: 25986.66 | AI60: 25917.98336 | AJ60: 6297.541364 | AK60: 6297.541364 | AL60: 397.4938518 | AM60: 35282.82166 | AN60: 35282.82166 | AO60: 1578.356716 | AP60: 42608.7816 | AQ60: 42608.7816 | AR60: 286.095312 | AS60: 44203.19323 | AT60: 44203.19323 | AU60: 8.770811467 | AV60: 29792.55564 | AW60: Dominated
C61: 110 | D61: 1 | E61: 1 | F61: 0 | G61: G1_TN IE_SOF+LED8 | H61: G1_TE IE_PR48 | I61: G1_TE IE_SOF+DCV12 | J61: G1 TE IE_F4SVR | K61: DC_SVRG1 | L61: G1_TN IE_SOF+LED8G1_TE IE_PR48G1_TE IE_SOF+DCV12 | M61: 25917.98336 | N61: 397.4938518 | O61: 2661.319135 | P61: 292.0157769 | Q61: 8.945249137 | R61: 538.476138 | S61: 1071.241072 | T61: 30887.47458 | U61: 0.9189683103 | V61: 0.0112325194 | W61: 0.04344540623 | X61: 0.973646236 | Y61: 0.02476540794 | Z61: 0.0002792691381 | AA61: 0.001309086959 | AB61: 0.02535512844 | AC61: 0.008602667166 | AD61: 18.77440681 | AE61: 12.02709163 | AG61: 25986.66 | AH61: 25986.66 | AI61: 25917.98336 | AJ61: 6297.541364 | AK61: 6297.541364 | AL61: 397.4938518 | AM61: 59498.94 | AN61: 59498.94 | AO61: 2661.319135 | AP61: 42608.7816 | AQ61: 42608.7816 | AR61: 292.0157769 | AS61: 44203.19323 | AT61: 44203.19323 | AU61: 8.945249137 | AV61: 30887.47458 | AW61: Dominated
C62: 110 | D62: 1 | E62: 1 | F62: 0 | G62: G1_TN IE_SOF+LED8 | H62: G1_TE IE_3D+/-R12 | I62: G1_TE IE_SOF+PR12 | J62: G1 TE IE_F4SVR | K62: DC_SVRG1 | L62: G1_TN IE_SOF+LED8G1_TE IE_3D+/-R12G1_TE IE_SOF+PR12 | M62: 25917.98336 | N62: 2228.433386 | O62: 90.48126969 | P62: 67.27476159 | Q62: 2.069569743 | R62: 501.6035336 | S62: 866.7255865 | T62: 29674.57146 | U62: 0.9189683103 | V62: 0.05960086829 | W62: 0.001741286232 | X62: 0.9803104649 | Y62: 0.01902239765 | Z62: 6.402306525e-05 | AA62: 0.0006031144318 | AB62: 0.01915841673 | AC62: 0.006515331106 | AD62: 18.78187294 | AE62: 12.05045891 | AG62: 25986.66 | AH62: 25986.66 | AI62: 25917.98336 | AJ62: 35282.82166 | AK62: 35282.82166 | AL62: 2228.433386 | AM62: 37435.08 | AN62: 37435.08 | AO62: 90.48126969 | AP62: 42608.7816 | AQ62: 42608.7816 | AR62: 67.27476159 | AS62: 44203.19323 | AT62: 44203.19323 | AU62: 2.069569743 | AV62: 29674.57146 | AW62: 5106.37757
C63: 110 | D63: 1 | E63: 1 | F63: 0 | G63: G1_TN IE_SOF+LED8 | H63: G1_TE IE_3D+/-R12 | I63: G1_TE IE_SMV+PR12+48 | J63: G1 TE IE_F4SVR | K63: DC_SVRG1 | L63: G1_TN IE_SOF+LED8G1_TE IE_3D+/-R12G1_TE IE_SMV+PR12+48 | M63: 25917.98336 | N63: 2228.433386 | O63: 96.92933966 | P63: 74.12018982 | Q63: 2.270182815 | R63: 501.8161417 | S63: 875.601576 | T63: 29697.15417 | U63: 0.9189683103 | V63: 0.05960086829 | W63: 0.001378842479 | X63: 0.9799480211 | Y63: 0.01930921611 | Z63: 7.119692361e-05 | AA63: 0.0006715658699 | AB63: 0.01946243857 | AC63: 0.006605727586 | AD63: 18.78164575 | AE63: 12.04965896 | AG63: 25986.66 | AH63: 25986.66 | AI63: 25917.98336 | AJ63: 35282.82166 | AK63: 35282.82166 | AL63: 2228.433386 | AM63: 40115.12015 | AN63: 40115.12015 | AO63: 96.92933966 | AP63: 42608.7816 | AQ63: 42608.7816 | AR63: 74.12018982 | AS63: 44203.19323 | AT63: 44203.19323 | AU63: 2.270182815 | AV63: 29697.15417 | AW63: Dominated
C64: 110 | D64: 1 | E64: 1 | F64: 0 | G64: G1_TN IE_SOF+LED8 | H64: G1_TE IE_3D+/-R12 | I64: G1_TE IE_PR48 | J64: G1 TE IE_F4SVR | K64: DC_SVRG1 | L64: G1_TN IE_SOF+LED8G1_TE IE_3D+/-R12G1_TE IE_PR48 | M64: 25917.98336 | N64: 2228.433386 | O64: 15.20490392 | P64: 100.3384874 | Q64: 3.037915454 | R64: 502.2542979 | S64: 895.592324 | T64: 29662.84467 | U64: 0.9189683103 | V64: 0.05960086829 | W64: 0.0004327643962 | X64: 0.979001943 | Y64: 0.01997186347 | Z64: 9.855652162e-05 | AA64: 0.0009276369932 | AB64: 0.02019092462 | AC64: 0.006807858875 | AD64: 18.78126682 | AE64: 12.04816241 | AG64: 25986.66 | AH64: 25986.66 | AI64: 25917.98336 | AJ64: 35282.82166 | AK64: 35282.82166 | AL64: 2228.433386 | AM64: 6297.541364 | AN64: 6297.541364 | AO64: 15.20490392 | AP64: 42608.7816 | AQ64: 42608.7816 | AR64: 100.3384874 | AS64: 44203.19323 | AT64: 44203.19323 | AU64: 3.037915454 | AV64: 29662.84467
C65: 110 | D65: 1 | E65: 1 | F65: 0 | G65: G1_TN IE_SOF+LED8 | H65: G1_TE IE_3D+/-R12 | I65: G1_TE IE_SOF+DCV12 | J65: G1 TE IE_F4SVR | K65: DC_SVRG1 | L65: G1_TN IE_SOF+LED8G1_TE IE_3D+/-R12G1_TE IE_SOF+DCV12 | M65: 25917.98336 | N65: 2228.433386 | O65: 143.8100209 | P65: 53.12912532 | Q65: 1.655103873 | R65: 501.3647335 | S65: 854.8210855 | T65: 29701.19681 | U65: 0.9189683103 | V65: 0.05960086829 | W65: 0.002288351115 | X65: 0.9808575297 | Y65: 0.01862966894 | Z65: 4.927812818e-05 | AA65: 0.000463523191 | AB65: 0.0187301621 | AC65: 0.006394924617 | AD65: 18.78211892 | AE65: 12.05142512 | AG65: 25986.66 | AH65: 25986.66 | AI65: 25917.98336 | AJ65: 35282.82166 | AK65: 35282.82166 | AL65: 2228.433386 | AM65: 59498.94 | AN65: 59498.94 | AO65: 143.8100209 | AP65: 42608.7816 | AQ65: 42608.7816 | AR65: 53.12912532 | AS65: 44203.19323 | AT65: 44203.19323 | AU65: 1.655103873 | AV65: 29701.19681 | AW65: 27556.50867
C66: 110 | D66: 1 | E66: 1 | F66: 0 | G66: G1_TN IE_SOF+LED8 | H66: G1_TE IE_SOF+DCV12 | I66: G1_TE IE_SOF+PR12 | J66: G1 TE IE_F4SVR | K66: DC_SVRG1 | L66: G1_TN IE_SOF+LED8G1_TE IE_SOF+DCV12G1_TE IE_SOF+PR12 | M66: 25917.98336 | N66: 3757.426589 | O66: 102.983234 | P66: 70.00474692 | Q66: 2.151994816 | R66: 502.3712186 | S66: 869.1604946 | T66: 31222.08163 | U66: 0.9189683103 | V66: 0.05926155956 | W66: 0.001976810247 | X66: 0.9802066801 | Y66: 0.01909533765 | Z66: 6.686890152e-05 | AA66: 0.0006311133059 | AB66: 0.01923797075 | AC66: 0.006540051074 | AD66: 18.78182243 | AE66: 12.05000139 | AG66: 25986.66 | AH66: 25986.66 | AI66: 25917.98336 | AJ66: 59498.94 | AK66: 59498.94 | AL66: 3757.426589 | AM66: 37435.08 | AN66: 37435.08 | AO66: 102.983234 | AP66: 42608.7816 | AQ66: 42608.7816 | AR66: 70.00474692 | AS66: 44203.19323 | AT66: 44203.19323 | AU66: 2.151994816 | AV66: 31222.08163 | AW66: Dominated
C67: 110 | D67: 1 | E67: 1 | F67: 0 | G67: G1_TN IE_SOF+LED8 | H67: G1_TE IE_SOF+DCV12 | I67: G1_TE IE_SMV+PR12+48 | J67: G1 TE IE_F4SVR | K67: DC_SVRG1 | L67: G1_TN IE_SOF+LED8G1_TE IE_SOF+DCV12G1_TE IE_SMV+PR12+48 | M67: 25917.98336 | N67: 3757.426589 | O67: 110.310163 | P67: 77.65984657 | Q67: 2.377003938 | R67: 502.6010308 | S67: 879.2230289 | T67: 31247.58102 | U67: 0.9189683103 | V67: 0.05926155956 | W67: 0.001568155989 | X67: 0.9797980259 | Y67: 0.01941783554 | Z67: 7.492400464e-05 | AA67: 0.0007092145801 | AB67: 0.01957972319 | AC67: 0.006642852443 | AD67: 18.78155475 | AE67: 12.04909951 | AG67: 25986.66 | AH67: 25986.66 | AI67: 25917.98336 | AJ67: 59498.94 | AK67: 59498.94 | AL67: 3757.426589 | AM67: 40115.12015 | AN67: 40115.12015 | AO67: 110.310163 | AP67: 42608.7816 | AQ67: 42608.7816 | AR67: 77.65984657 | AS67: 44203.19323 | AT67: 44203.19323 | AU67: 2.377003938 | AV67: 31247.58102 | AW67: Dominated
C68: 110 | D68: 1 | E68: 1 | F68: 0 | G68: G1_TN IE_SOF+LED8 | H68: G1_TE IE_SOF+DCV12 | I68: G1_TE IE_PR48 | J68: G1 TE IE_F4SVR | K68: DC_SVRG1 | L68: G1_TN IE_SOF+LED8G1_TE IE_SOF+DCV12G1_TE IE_PR48 | M68: 25917.98336 | N68: 3757.426589 | O68: 17.33627265 | P68: 107.3330025 | Q68: 3.246840361 | R68: 503.1003797 | S68: 902.0452609 | T68: 31208.4717 | U68: 0.9189683103 | V68: 0.05926155956 | W68: 0.0004910749517 | X68: 0.9787209448 | Y68: 0.02016862222 | Z68: 0.0001059147854 | AA68: 0.001004518148 | AB68: 0.02040494656 | AC68: 0.006873827423 | AD68: 18.78111997 | AE68: 12.04740861 | AG68: 25986.66 | AH68: 25986.66 | AI68: 25917.98336 | AJ68: 59498.94 | AK68: 59498.94 | AL68: 3757.426589 | AM68: 6297.541364 | AN68: 6297.541364 | AO68: 17.33627265 | AP68: 42608.7816 | AQ68: 42608.7816 | AR68: 107.3330025 | AS68: 44203.19323 | AT68: 44203.19323 | AU68: 3.246840361 | AV68: 31208.4717 | AW68: Dominated
C69: 110 | D69: 1 | E69: 1 | F69: 0 | G69: G1_TN IE_SOF+LED8 | H69: G1_TE IE_SOF+DCV12 | I69: G1_TE IE_3D+/-R12 | J69: G1 TE IE_F4SVR | K69: DC_SVRG1 | L69: G1_TN IE_SOF+LED8G1_TE IE_SOF+DCV12G1_TE IE_3D+/-R12 | M69: 25917.98336 | N69: 3757.426589 | O69: 97.07335421 | P69: 53.47093567 | Q69: 1.666173443 | R69: 502.0701771 | S69: 855.1006855 | T69: 31184.79127 | U69: 0.9189683103 | V69: 0.05926155956 | W69: 0.002619915946 | X69: 0.9808497858 | Y69: 0.01863658455 | Z69: 4.960753011e-05 | AA69: 0.0004640220861 | AB69: 0.01873772601 | AC69: 0.006397844059 | AD69: 18.78210757 | AE69: 12.05113775 | AG69: 25986.66 | AH69: 25986.66 | AI69: 25917.98336 | AJ69: 59498.94 | AK69: 59498.94 | AL69: 3757.426589 | AM69: 35282.82166 | AN69: 35282.82166 | AO69: 97.07335421 | AP69: 42608.7816 | AQ69: 42608.7816 | AR69: 53.47093567 | AS69: 44203.19323 | AT69: 44203.19323 | AU69: 1.666173443 | AV69: 31184.79127 | AW69: Dominated
C70: 110 | D70: 1 | E70: 1 | F70: 0 | G70: G1_TN IE_SOF+PR12 | H70: G1_TE IE_SOF+LED12 | I70: G1_TE IE_SMV+PR12+48 | J70: G1 TE IE_F4SVR | K70: DC_SVRG1 | L70: G1_TN IE_SOF+PR12G1_TE IE_SOF+LED12G1_TE IE_SMV+PR12+48 | M70: 36807.05316 | N70: 3271.579573 | O70: 184.9489156 | P70: 144.8490179 | Q70: 4.436793793 | R70: 767.8718501 | S70: 1182.040395 | T70: 42362.7797 | U70: 0.8893976953 | V70: 0.0780216985 | W70: 0.002636613429 | X70: 0.9700560072 | Y70: 0.02867121198 | Z70: 0.0001392252474 | AA70: 0.001133555528 | AB70: 0.02897059089 | AC70: 0.009803828007 | AD70: 18.76965009 | AE70: 11.9821863 | AG70: 36900.83829 | AH70: 36900.83829 | AI70: 36807.05316 | AJ70: 38979.99 | AK70: 38979.99 | AL70: 3271.579573 | AM70: 40115.12015 | AN70: 40115.12015 | AO70: 184.9489156 | AP70: 42608.7816 | AQ70: 42608.7816 | AR70: 144.8490179 | AS70: 44203.19323 | AT70: 44203.19323 | AU70: 4.436793793 | AV70: 42362.7797 | AW70: Dominated
C71: 110 | D71: 1 | E71: 1 | F71: 0 | G71: G1_TN IE_SOF+PR12 | H71: G1_TE IE_SOF+LED12 | I71: G1_TE IE_3D+/-R12 | J71: G1 TE IE_F4SVR | K71: DC_SVRG1 | L71: G1_TN IE_SOF+PR12G1_TE IE_SOF+LED12G1_TE IE_3D+/-R12 | M71: 36807.05316 | N71: 3271.579573 | O71: 162.7423738 | P71: 104.4386481 | Q71: 3.254332542 | R71: 766.9728305 | S71: 1141.911231 | T71: 42257.95215 | U71: 0.8893976953 | V71: 0.0780216985 | W71: 0.004404829002 | X71: 0.9718242228 | Y71: 0.02736023619 | Z71: 9.699393868e-05 | AA71: 0.0007185470577 | AB71: 0.0275579728 | AC71: 0.009399935129 | AD71: 18.77054407 | AE71: 11.98559219 | AG71: 36900.83829 | AH71: 36900.83829 | AI71: 36807.05316 | AJ71: 38979.99 | AK71: 38979.99 | AL71: 3271.579573 | AM71: 35282.82166 | AN71: 35282.82166 | AO71: 162.7423738 | AP71: 42608.7816 | AQ71: 42608.7816 | AR71: 104.4386481 | AS71: 44203.19323 | AT71: 44203.19323 | AU71: 3.254332542 | AV71: 42257.95215 | AW71: Dominated
C72: 110 | D72: 1 | E72: 1 | F72: 0 | G72: G1_TN IE_SOF+PR12 | H72: G1_TE IE_SOF+LED12 | I72: G1_TE IE_SOF+DCV12 | J72: G1 TE IE_F4SVR | K72: DC_SVRG1 | L72: G1_TN IE_SOF+PR12G1_TE IE_SOF+LED12G1_TE IE_SOF+DCV12 | M72: 36807.05316 | N72: 3271.579573 | O72: 274.395041 | P72: 105.1233827 | Q72: 3.274978357 | R72: 767.0193542 | S72: 1142.529347 | T72: 42370.97483 | U72: 0.8893976953 | V72: 0.0780216985 | W72: 0.004377381487 | X72: 0.9717967753 | Y72: 0.02737938219 | Z72: 9.772888665e-05 | AA72: 0.0007261136226 | AB72: 0.02757883355 | AC72: 0.009406189638 | AD72: 18.77053013 | AE72: 11.98552107 | AG72: 36900.83829 | AH72: 36900.83829 | AI72: 36807.05316 | AJ72: 38979.99 | AK72: 38979.99 | AL72: 3271.579573 | AM72: 59498.94 | AN72: 59498.94 | AO72: 274.395041 | AP72: 42608.7816 | AQ72: 42608.7816 | AR72: 105.1233827 | AS72: 44203.19323 | AT72: 44203.19323 | AU72: 3.274978357 | AV72: 42370.97483 | AW72: Dominated
C73: 110 | D73: 1 | E73: 1 | F73: 0 | G73: G1_TN IE_SOF+PR12 | H73: G1_TE IE_SMV+PR12+48 | I73: G1_TE IE_SOF+LED12 | J73: G1 TE IE_F4SVR | K73: DC_SVRG1 | L73: G1_TN IE_SOF+PR12G1_TE IE_SMV+PR12+48G1_TE IE_SOF+LED12 | M73: 36807.05316 | N73: 3365.507822 | O73: 1099.394062 | P73: 255.7780294 | Q73: 7.852625551 | R73: 789.7337818 | S73: 1373.160114 | T73: 43698.47959 | U73: 0.8893976953 | V73: 0.04764084207 | W73: 0.02712612099 | X73: 0.9641646584 | Y73: 0.03420336619 | Z73: 0.0002434782354 | AA73: 0.0013884972 | AB73: 0.03471576427 | AC73: 0.01175423171 | AD73: 18.76247416 | AE73: 11.95860703 | AG73: 36900.83829 | AH73: 36900.83829 | AI73: 36807.05316 | AJ73: 40115.12015 | AK73: 40115.12015 | AL73: 3365.507822 | AM73: 38979.99 | AN73: 38979.99 | AO73: 1099.394062 | AP73: 42608.7816 | AQ73: 42608.7816 | AR73: 255.7780294 | AS73: 44203.19323 | AT73: 44203.19323 | AU73: 7.852625551 | AV73: 43698.47959 | AW73: Dominated
C74: 110 | D74: 1 | E74: 1 | F74: 0 | G74: G1_TN IE_SOF+PR12 | H74: G1_TE IE_SMV+PR12+48 | I74: G1_TE IE_3D+/-R12 | J74: G1 TE IE_F4SVR | K74: DC_SVRG1 | L74: G1_TN IE_SOF+PR12G1_TE IE_SMV+PR12+48G1_TE IE_3D+/-R12 | M74: 36807.05316 | N74: 3365.507822 | O74: 995.2738497 | P74: 243.5258745 | Q74: 7.494705344 | R74: 789.3127757 | S74: 1362.618769 | T74: 43570.78695 | U74: 0.8893976953 | V74: 0.04764084207 | W74: 0.02763599689 | X74: 0.9646745343 | Y74: 0.03384951704 | Z74: 0.000230467718 | AA74: 0.001245480975 | AB74: 0.03433027717 | AC74: 0.01164974498 | AD74: 18.76266188 | AE74: 11.95906382 | AG74: 36900.83829 | AH74: 36900.83829 | AI74: 36807.05316 | AJ74: 40115.12015 | AK74: 40115.12015 | AL74: 3365.507822 | AM74: 35282.82166 | AN74: 35282.82166 | AO74: 995.2738497 | AP74: 42608.7816 | AQ74: 42608.7816 | AR74: 243.5258745 | AS74: 44203.19323 | AT74: 44203.19323 | AU74: 7.494705344 | AV74: 43570.78695 | AW74: Dominated
C75: 110 | D75: 1 | E75: 1 | F75: 0 | G75: G1_TN IE_SOF+PR12 | H75: G1_TE IE_SMV+PR12+48 | I75: G1_TE IE_SOF+DCV12 | J75: G1 TE IE_F4SVR | K75: DC_SVRG1 | L75: G1_TN IE_SOF+PR12G1_TE IE_SMV+PR12+48G1_TE IE_SOF+DCV12 | M75: 36807.05316 | N75: 3365.507822 | O75: 1678.111804 | P75: 247.4129925 | Q75: 7.610031917 | R75: 789.5923507 | S75: 1366.185406 | T75: 44261.47356 | U75: 0.8893976953 | V75: 0.04764084207 | W75: 0.02746923568 | X75: 0.9645077731 | Y75: 0.0339617479 | Z75: 0.0002346636802 | AA75: 0.001295815362 | AB75: 0.03445268688 | AC75: 0.01168555526 | AD75: 18.76258752 | AE75: 11.95866614 | AG75: 36900.83829 | AH75: 36900.83829 | AI75: 36807.05316 | AJ75: 40115.12015 | AK75: 40115.12015 | AL75: 3365.507822 | AM75: 59498.94 | AN75: 59498.94 | AO75: 1678.111804 | AP75: 42608.7816 | AQ75: 42608.7816 | AR75: 247.4129925 | AS75: 44203.19323 | AT75: 44203.19323 | AU75: 7.610031917 | AV75: 44261.47356 | AW75: Dominated
C76: 110 | D76: 1 | E76: 1 | F76: 0 | G76: G1_TN IE_SOF+PR12 | H76: G1_TE IE_3D+/-R12 | I76: G1_TE IE_SOF+LED12 | J76: G1 TE IE_F4SVR | K76: DC_SVRG1 | L76: G1_TN IE_SOF+PR12G1_TE IE_3D+/-R12G1_TE IE_SOF+LED12 | M76: 36807.05316 | N76: 2961.676953 | O76: 124.6319358 | P76: 102.9125961 | Q76: 3.205742564 | R76: 765.3327338 | S76: 1140.75104 | T76: 41905.56416 | U76: 0.8893976953 | V76: 0.07946257579 | W76: 0.002998123141 | X76: 0.9718583942 | Y76: 0.02732972737 | Z76: 9.554671071e-05 | AA76: 0.0007163316846 | AB76: 0.02752456571 | AC76: 0.009388022361 | AD76: 18.77059263 | AE76: 11.98481956 | AG76: 36900.83829 | AH76: 36900.83829 | AI76: 36807.05316 | AJ76: 35282.82166 | AK76: 35282.82166 | AL76: 2961.676953 | AM76: 38979.99 | AN76: 38979.99 | AO76: 124.6319358 | AP76: 42608.7816 | AQ76: 42608.7816 | AR76: 102.9125961 | AS76: 44203.19323 | AT76: 44203.19323 | AU76: 3.205742564 | AV76: 41905.56416 | AW76: Dominated
C77: 110 | D77: 1 | E77: 1 | F77: 0 | G77: G1_TN IE_SOF+PR12 | H77: G1_TE IE_3D+/-R12 | I77: G1_TE IE_SMV+PR12+48 | J77: G1 TE IE_F4SVR | K77: DC_SVRG1 | L77: G1_TN IE_SOF+PR12G1_TE IE_3D+/-R12G1_TE IE_SMV+PR12+48 | M77: 36807.05316 | N77: 2961.676953 | O77: 128.2102127 | P77: 129.5525764 | Q77: 3.982702026 | R77: 765.9122169 | S77: 1167.36197 | T77: 41963.74979 | U77: 0.8893976953 | V77: 0.07946257579 | W77: 0.001832046399 | X77: 0.9706923175 | Y77: 0.0282000064 | Z77: 0.0001233046298 | AA77: 0.000984371477 | AB77: 0.0284618805 | AC77: 0.009657310483 | AD77: 18.76999556 | AE77: 11.98251041 | AG77: 36900.83829 | AH77: 36900.83829 | AI77: 36807.05316 | AJ77: 35282.82166 | AK77: 35282.82166 | AL77: 2961.676953 | AM77: 40115.12015 | AN77: 40115.12015 | AO77: 128.2102127 | AP77: 42608.7816 | AQ77: 42608.7816 | AR77: 129.5525764 | AS77: 44203.19323 | AT77: 44203.19323 | AU77: 3.982702026 | AV77: 41963.74979 | AW77: Dominated
C78: 110 | D78: 1 | E78: 1 | F78: 0 | G78: G1_TN IE_SOF+PR12 | H78: G1_TE IE_3D+/-R12 | I78: G1_TE IE_SOF+DCV12 | J78: G1 TE IE_F4SVR | K78: DC_SVRG1 | L78: G1_TN IE_SOF+PR12G1_TE IE_3D+/-R12G1_TE IE_SOF+DCV12 | M78: 36807.05316 | N78: 2961.676953 | O78: 190.2378136 | P78: 101.9302863 | Q78: 3.176555992 | R78: 765.3161605 | S78: 1139.945594 | T78: 41969.33652 | U78: 0.8893976953 | V78: 0.07946257579 | W78: 0.003036218106 | X78: 0.9718964892 | Y78: 0.027302448 | Z78: 9.450950628e-05 | AA78: 0.0007065532913 | AB78: 0.02749479954 | AC78: 0.009380064201 | AD78: 18.77060746 | AE78: 11.98482945 | AG78: 36900.83829 | AH78: 36900.83829 | AI78: 36807.05316 | AJ78: 35282.82166 | AK78: 35282.82166 | AL78: 2961.676953 | AM78: 59498.94 | AN78: 59498.94 | AO78: 190.2378136 | AP78: 42608.7816 | AQ78: 42608.7816 | AR78: 101.9302863 | AS78: 44203.19323 | AT78: 44203.19323 | AU78: 3.176555992 | AV78: 41969.33652 | AW78: Dominated
C79: 110 | D79: 1 | E79: 1 | F79: 0 | G79: G1_TN IE_SOF+PR12 | H79: G1_TE IE_SOF+DCV12 | I79: G1_TE IE_SOF+LED12 | J79: G1 TE IE_F4SVR | K79: DC_SVRG1 | L79: G1_TN IE_SOF+PR12G1_TE IE_SOF+DCV12G1_TE IE_SOF+LED12 | M79: 36807.05316 | N79: 4993.729262 | O79: 142.4305775 | P79: 104.0528342 | Q79: 3.241131748 | R79: 766.3170331 | S79: 1141.742376 | T79: 43958.56637 | U79: 0.8893976953 | V79: 0.07899742909 | W79: 0.003425478017 | X79: 0.9718206024 | Y79: 0.02735809133 | Z79: 9.672239116e-05 | AA79: 0.0007245838643 | AB79: 0.02755552402 | AC79: 0.009398141549 | AD79: 18.77056271 | AE79: 11.98431555 | AG79: 36900.83829 | AH79: 36900.83829 | AI79: 36807.05316 | AJ79: 59498.94 | AK79: 59498.94 | AL79: 4993.729262 | AM79: 38979.99 | AN79: 38979.99 | AO79: 142.4305775 | AP79: 42608.7816 | AQ79: 42608.7816 | AR79: 104.0528342 | AS79: 44203.19323 | AT79: 44203.19323 | AU79: 3.241131748 | AV79: 43958.56637 | AW79: Dominated
C80: 110 | D80: 1 | E80: 1 | F80: 0 | G80: G1_TN IE_SOF+PR12 | H80: G1_TE IE_SOF+DCV12 | I80: G1_TE IE_SMV+PR12+48 | J80: G1 TE IE_F4SVR | K80: DC_SVRG1 | L80: G1_TN IE_SOF+PR12G1_TE IE_SOF+DCV12G1_TE IE_SMV+PR12+48 | M80: 36807.05316 | N80: 4993.729262 | O80: 146.5085568 | P80: 134.3690824 | Q80: 4.127915275 | R80: 766.9670109 | S80: 1172.280678 | T80: 44025.03566 | U80: 0.8893976953 | V80: 0.07899742909 | W80: 0.002091552704 | X80: 0.9704866771 | Y80: 0.0283482604 | Z80: 0.0001284084891 | AA80: 0.001036654009 | AB80: 0.02862213279 | AC80: 0.009707090898 | AD80: 18.76986785 | AE80: 11.98167426 | AG80: 36900.83829 | AH80: 36900.83829 | AI80: 36807.05316 | AJ80: 59498.94 | AK80: 59498.94 | AL80: 4993.729262 | AM80: 40115.12015 | AN80: 40115.12015 | AO80: 146.5085568 | AP80: 42608.7816 | AQ80: 42608.7816 | AR80: 134.3690824 | AS80: 44203.19323 | AT80: 44203.19323 | AU80: 4.127915275 | AV80: 44025.03566 | AW80: Dominated
C81: 110 | D81: 1 | E81: 1 | F81: 0 | G81: G1_TN IE_SOF+PR12 | H81: G1_TE IE_SOF+DCV12 | I81: G1_TE IE_3D+/-R12 | J81: G1 TE IE_F4SVR | K81: DC_SVRG1 | L81: G1_TN IE_SOF+PR12G1_TE IE_SOF+DCV12G1_TE IE_3D+/-R12 | M81: 36807.05316 | N81: 4993.729262 | O81: 128.9408368 | P81: 102.3857897 | Q81: 3.191299361 | R81: 766.2611029 | S81: 1140.318813 | T81: 43941.88026 | U81: 0.8893976953 | V81: 0.07899742909 | W81: 0.003491020497 | X81: 0.9718861449 | Y81: 0.02731166596 | Z81: 9.495023876e-05 | AA81: 0.0007072389061 | AB81: 0.0275048971 | AC81: 0.00938392888 | AD81: 18.77059148 | AE81: 11.98438546 | AG81: 36900.83829 | AH81: =VLOOKUP(G81,F3_treat_duration,17,FALSE) -> 36900.83829 | AI81: 36807.05316 | AJ81: 59498.94 | AK81: =IF(H81="",0,VLOOKUP(H81,F3_treat_duration,17,FALSE)) -> 59498.94 | AL81: 4993.729262 | AM81: 35282.82166 | AN81: =IF(I81="",0,VLOOKUP(I81,F3_treat_duration,17,FALSE)) -> 35282.82166 | AO81: 128.9408368 | AP81: =VLOOKUP(J81,F4_treatments,2,FALSE) -> 42608.7816 | AQ81: =VLOOKUP(J81,F4_treatments,3,FALSE) -> 42608.7816 | AR81: 102.3857897 | AS81: =VLOOKUP(K81,DC_treatments,2,FALSE) -> 44203.19323 | AT81: =VLOOKUP(K81,DC_treatments,3,FALSE) -> 44203.19323 | AU81: 3.191299361 | AV81: 43941.88026 | AW81: Dominated
C82: 110 | D82: 1 | E82: 1 | F82: 0 | G82: G1_TN IE_SMV+PR12+24 | H82: G1_TE IE_SOF+LED12 | I82: G1_TE IE_SOF+PR12 | J82: G1 TE IE_F4SVR | K82: DC_SVRG1 | L82: G1_TN IE_SMV+PR12+24G1_TE IE_SOF+LED12G1_TE IE_SOF+PR12 | M82: 25929.42346 | N82: 7451.329475 | O82: 393.4166556 | P82: 513.1328335 | Q82: 15.80579438 | R82: 970.0432076 | S82: 2066.0878 | T82: 37339.23923 | U82: 0.7553083472 | V82: 0.1792600905 | W82: 0.00765958253 | X82: 0.9422280203 | Y82: 0.05493919156 | Z82: 0.0004834617476 | AA82: 0.002349326414 | AB82: 0.05594841592 | AC82: 0.01897979812 | AD82: 18.73480764 | AE82: 11.89859831 | AG82: =VLOOKUP(G82,F3_treat_duration,13,FALSE) -> 25997.92862 | AH82: 25997.92862 | AI82: =IF(AG82=0,0,AH82*M82/AG82) -> 25929.42346 | AJ82: =IF(H82="",0,VLOOKUP(H82,F3_treat_duration,13,FALSE)) -> 38979.99 | AK82: 38979.99 | AL82: =IF(AJ82=0,0,AK82*N82/AJ82) -> 7451.329475 | AM82: =IF(I82="",0,VLOOKUP(I82,F3_treat_duration,13,FALSE)) -> 37435.08 | AN82: 37435.08 | AO82: =IF(AM82=0,0,AN82*O82/AM82) -> 393.4166556 | AP82: 42608.7816 | AQ82: 42608.7816 | AR82: =AQ82*P82/AP82 -> 513.1328335 | AS82: 44203.19323 | AT82: 44203.19323 | AU82: =AT82*Q82/AS82 -> 15.80579438 | AV82: =T82-SUM(M82:Q82)+SUM(AI82,AL82,AO82,AR82,AU82) -> 37339.23923 | AW82: Dominated
C83: 110 | D83: 1 | E83: 1 | F83: 0 | G83: G1_TN IE_SMV+PR12+24 | H83: G1_TE IE_SOF+LED12 | I83: G1_TE IE_3D+/-R12 | J83: G1 TE IE_F4SVR | K83: DC_SVRG1 | L83: G1_TN IE_SMV+PR12+24G1_TE IE_SOF+LED12G1_TE IE_3D+/-R12 | M83: 25929.42346 | N83: 7451.329475 | O83: 370.8570806 | P83: 451.227921 | Q83: 14.00775627 | R83: 968.9170111 | S83: 2013.481325 | T83: 37199.24403 | U83: 0.7553083472 | V83: 0.1792600905 | W83: 0.01012431441 | X83: 0.9446927522 | Y83: 0.053191703 | Z83: 0.0004189237171 | AA83: 0.001696621127 | AB83: 0.05404428478 | AC83: 0.01845120475 | AD83: 18.73583728 | AE83: 11.90284462 | AG83: 25997.92862 | AH83: 25997.92862 | AI83: 25929.42346 | AJ83: 38979.99 | AK83: 38979.99 | AL83: 7451.329475 | AM83: 35282.82166 | AN83: 35282.82166 | AO83: 370.8570806 | AP83: 42608.7816 | AQ83: 42608.7816 | AR83: 451.227921 | AS83: 44203.19323 | AT83: 44203.19323 | AU83: 14.00775627 | AV83: 37199.24403 | AW83: Dominated
C84: 110 | D84: 1 | E84: 1 | F84: 0 | G84: G1_TN IE_SMV+PR12+24 | H84: G1_TE IE_SOF+LED12 | I84: G1_TE IE_SOF+DCV12 | J84: G1 TE IE_F4SVR | K84: DC_SVRG1 | L84: G1_TN IE_SMV+PR12+24G1_TE IE_SOF+LED12G1_TE IE_SOF+DCV12 | M84: 25929.42346 | N84: 7451.329475 | O84: 625.2924793 | P84: 452.7938456 | Q84: 14.05455673 | R84: 969.0231957 | S84: 2014.895853 | T84: 37456.81287 | U84: 0.7553083472 | V84: 0.1792600905 | W84: 0.01006049026 | X84: 0.944628928 | Y84: 0.05323603025 | Z84: 0.0004205998468 | AA84: 0.001714441899 | AB84: 0.054092556 | AC84: 0.01846563371 | AD84: 18.73580679 | AE84: 11.90269008 | AG84: 25997.92862 | AH84: 25997.92862 | AI84: 25929.42346 | AJ84: 38979.99 | AK84: 38979.99 | AL84: 7451.329475 | AM84: 59498.94 | AN84: 59498.94 | AO84: 625.2924793 | AP84: 42608.7816 | AQ84: 42608.7816 | AR84: 452.7938456 | AS84: 44203.19323 | AT84: 44203.19323 | AU84: 14.05455673 | AV84: 37456.81287 | AW84: Dominated
C85: =D85&E85&F85 -> 110 | D85: 1 | E85: 1 | F85: 0 | G85: G1_TN IE_SMV+PR12+24 | H85: G1_TE IE_SOF+PR12 | I85: G1_TE IE_SOF+LED12 | J85: G1 TE IE_F4SVR | K85: DC_SVRG1 | L85: =G85&H85&I85 -> G1_TN IE_SMV+PR12+24G1_TE IE_SOF+PR12G1_TE IE_SOF+LED12 | M85: 25929.42346 | N85: 7156.007864 | O85: 1959.623677 | P85: 554.6139657 | Q85: 17.08369451 | R85: 999.106536 | S85: 2098.101441 | T85: 38713.96064 | U85: 0.7553083472 | V85: 0.1384305539 | W85: 0.04754277549 | X85: 0.9412816766 | Y85: 0.05578575943 | Z85: 0.000521812229 | AA85: 0.002410751783 | AB85: 0.05687310111 | AC85: 0.01930845349 | AD85: 18.73348384 | AE85: 11.8882599 | AG85: 25997.92862 | AH85: 25997.92862 | AI85: 25929.42346 | AJ85: 37435.08 | AK85: 37435.08 | AL85: 7156.007864 | AM85: 38979.99 | AN85: 38979.99 | AO85: 1959.623677 | AP85: 42608.7816 | AQ85: 42608.7816 | AR85: 554.6139657 | AS85: 44203.19323 | AT85: 44203.19323 | AU85: 17.08369451 | AV85: 38713.96064 | AW85: Dominated
C86: 110 | D86: 1 | E86: 1 | F86: 0 | G86: G1_TN IE_SMV+PR12+24 | H86: G1_TE IE_SOF+PR12 | I86: G1_TE IE_3D+/-R12 | J86: G1 TE IE_F4SVR | K86: DC_SVRG1 | L86: G1_TN IE_SMV+PR12+24G1_TE IE_SOF+PR12G1_TE IE_3D+/-R12 | M86: 25929.42346 | N86: 7156.007864 | O86: 1774.050007 | P86: 532.7031871 | Q86: 16.44859708 | R86: 998.3560024 | S86: 2079.361604 | T86: 38486.35072 | U86: 0.7553083472 | V86: 0.1384305539 | W86: 0.04842691458 | X86: 0.9421658156 | Y86: 0.05516547551 | Z86: 0.0004990272026 | AA86: 0.002169681634 | AB86: 0.05619771899 | AC86: 0.01912281453 | AD86: 18.73385246 | AE86: 11.88907009 | AG86: 25997.92862 | AH86: 25997.92862 | AI86: 25929.42346 | AJ86: 37435.08 | AK86: 37435.08 | AL86: 7156.007864 | AM86: 35282.82166 | AN86: 35282.82166 | AO86: 1774.050007 | AP86: 42608.7816 | AQ86: 42608.7816 | AR86: 532.7031871 | AS86: 44203.19323 | AT86: 44203.19323 | AU86: 16.44859708 | AV86: 38486.35072 | AW86: Dominated
C87: 110 | D87: 1 | E87: 1 | F87: 0 | G87: G1_TN IE_SMV+PR12+24 | H87: G1_TE IE_SOF+PR12 | I87: G1_TE IE_SOF+DCV12 | J87: G1 TE IE_F4SVR | K87: DC_SVRG1 | L87: G1_TN IE_SMV+PR12+24G1_TE IE_SOF+PR12G1_TE IE_SOF+DCV12 | M87: 25929.42346 | N87: 7156.007864 | O87: 2991.163712 | P87: 540.2448793 | Q87: 16.67360164 | R87: 998.8645998 | S87: 2086.135827 | T87: 39718.51395 | U87: 0.7553083472 | V87: 0.1384305539 | W87: 0.04811868446 | X87: 0.9418575855 | Y87: 0.05537696438 | Z87: 0.0005070643372 | AA87: 0.002258385766 | AB87: 0.05642860579 | AC87: 0.0191913808 | AD87: 18.73373069 | AE87: 11.88835632 | AG87: 25997.92862 | AH87: 25997.92862 | AI87: 25929.42346 | AJ87: 37435.08 | AK87: 37435.08 | AL87: 7156.007864 | AM87: 59498.94 | AN87: 59498.94 | AO87: 2991.163712 | AP87: 42608.7816 | AQ87: 42608.7816 | AR87: 540.2448793 | AS87: 44203.19323 | AT87: 44203.19323 | AU87: 16.67360164 | AV87: 39718.51395 | AW87: Dominated
C88: 110 | D88: 1 | E88: 1 | F88: 0 | G88: G1_TN IE_SMV+PR12+24 | H88: G1_TE IE_3D+/-R12 | I88: G1_TE IE_SOF+LED12 | J88: G1 TE IE_F4SVR | K88: DC_SVRG1 | L88: G1_TN IE_SMV+PR12+24G1_TE IE_3D+/-R12G1_TE IE_SOF+LED12 | M88: 25929.42346 | N88: 6745.577058 | O88: 284.1569292 | P88: 447.882075 | Q88: 13.90270112 | R88: 965.1884188 | S88: 2010.905664 | T88: 36397.03631 | U88: 0.7553083472 | V88: 0.1825659132 | W88: 0.006894547014 | X88: 0.9447688074 | Y88: 0.05312374939 | Z88: 0.0004157732318 | AA88: 0.001691670002 | AB88: 0.05396998317 | AC88: 0.01842484695 | AD88: 18.73594472 | AE88: 11.90099175 | AG88: 25997.92862 | AH88: 25997.92862 | AI88: 25929.42346 | AJ88: 35282.82166 | AK88: 35282.82166 | AL88: 6745.577058 | AM88: 38979.99 | AN88: 38979.99 | AO88: 284.1569292 | AP88: 42608.7816 | AQ88: 42608.7816 | AR88: 447.882075 | AS88: 44203.19323 | AT88: 44203.19323 | AU88: 13.90270112 | AV88: 36397.03631 | AW88: Dominated
C89: 110 | D89: 1 | E89: 1 | F89: 0 | G89: G1_TN IE_SMV+PR12+24 | H89: G1_TE IE_3D+/-R12 | I89: G1_TE IE_SOF+PR12 | J89: G1 TE IE_F4SVR | K89: DC_SVRG1 | L89: G1_TN IE_SMV+PR12+24G1_TE IE_3D+/-R12G1_TE IE_SOF+PR12 | M89: 25929.42346 | N89: 6745.577058 | O89: 272.8948206 | P89: 487.8762089 | Q89: 15.0656418 | R89: 965.8635099 | S89: 2044.772302 | T89: 36461.473 | U89: 0.7553083472 | V89: 0.1825659132 | W89: 0.005313954223 | X89: 0.9431882146 | Y89: 0.05425095404 | Z89: 0.000457526236 | AA89: 0.00210330514 | AB89: 0.0551987322 | AC89: 0.01876780136 | AD89: 18.7352837 | AE89: 11.89814851 | AG89: 25997.92862 | AH89: 25997.92862 | AI89: 25929.42346 | AJ89: 35282.82166 | AK89: 35282.82166 | AL89: 6745.577058 | AM89: 37435.08 | AN89: 37435.08 | AO89: 272.8948206 | AP89: 42608.7816 | AQ89: 42608.7816 | AR89: 487.8762089 | AS89: 44203.19323 | AT89: 44203.19323 | AU89: 15.0656418 | AV89: 36461.473 | AW89: Dominated
C90: 110 | D90: 1 | E90: 1 | F90: 0 | G90: G1_TN IE_SMV+PR12+24 | H90: G1_TE IE_3D+/-R12 | I90: G1_TE IE_SOF+DCV12 | J90: G1 TE IE_F4SVR | K90: DC_SVRG1 | L90: G1_TN IE_SMV+PR12+24G1_TE IE_3D+/-R12G1_TE IE_SOF+DCV12 | M90: 25929.42346 | N90: 6745.577058 | O90: 433.7362857 | P90: 445.7030632 | Q90: 13.83837593 | R90: 965.1517726 | S90: 2009.111239 | T90: 36542.54126 | U90: 0.7553083472 | V90: 0.1825659132 | W90: 0.006980651049 | X90: 0.9448549114 | Y90: 0.0530625551 | Z90: 0.0004134717025 | AA90: 0.001669061785 | AB90: 0.05390323037 | AC90: 0.01840725119 | AD90: 18.73597791 | AE90: 11.90100994 | AG90: 25997.92862 | AH90: 25997.92862 | AI90: 25929.42346 | AJ90: 35282.82166 | AK90: 35282.82166 | AL90: 6745.577058 | AM90: 59498.94 | AN90: 59498.94 | AO90: 433.7362857 | AP90: 42608.7816 | AQ90: 42608.7816 | AR90: 445.7030632 | AS90: 44203.19323 | AT90: 44203.19323 | AU90: 13.83837593 | AV90: 36542.54126 | AW90: Dominated
C91: 110 | D91: 1 | E91: 1 | F91: 0 | G91: G1_TN IE_SMV+PR12+24 | H91: G1_TE IE_SOF+DCV12 | I91: G1_TE IE_SOF+LED12 | J91: G1 TE IE_F4SVR | K91: DC_SVRG1 | L91: G1_TN IE_SMV+PR12+24G1_TE IE_SOF+DCV12G1_TE IE_SOF+LED12 | M91: 25929.42346 | N91: 11373.687 | O91: 326.0792404 | P91: 450.5089774 | Q91: 13.98337646 | R91: 967.4581422 | S91: 2013.190718 | T91: 41074.33091 | U91: 0.7553083472 | V91: 0.1814615903 | W91: 0.007910693996 | X91: 0.9446806315 | Y91: 0.0531898171 | Z91: 0.0004184689783 | AA91: 0.001711082449 | AB91: 0.05404202033 | AC91: 0.01844840505 | AD91: 18.73587931 | AE91: 11.89993548 | AG91: 25997.92862 | AH91: 25997.92862 | AI91: 25929.42346 | AJ91: 59498.94 | AK91: 59498.94 | AL91: 11373.687 | AM91: 38979.99 | AN91: 38979.99 | AO91: 326.0792404 | AP91: 42608.7816 | AQ91: 42608.7816 | AR91: 450.5089774 | AS91: 44203.19323 | AT91: 44203.19323 | AU91: 13.98337646 | AV91: 41074.33091 | AW91: Dominated
C92: 110 | D92: 1 | E92: 1 | F92: 0 | G92: G1_TN IE_SMV+PR12+24 | H92: G1_TE IE_SOF+DCV12 | I92: G1_TE IE_SOF+PR12 | J92: G1 TE IE_F4SVR | K92: DC_SVRG1 | L92: G1_TN IE_SMV+PR12+24G1_TE IE_SOF+DCV12G1_TE IE_SOF+PR12 | M92: 25929.42346 | N92: 11373.687 | O92: 313.1556075 | P92: 496.4788789 | Q92: 15.32452125 | R92: 968.2362179 | S92: 2052.417051 | T92: 41148.72273 | U92: 0.7553083472 | V92: 0.1814615903 | W92: 0.006085695235 | X92: 0.9428556327 | Y92: 0.05448418335 | Z92: 0.0004665829873 | AA92: 0.002193600947 | AB92: 0.05545338494 | AC92: 0.01884549677 | AD92: 18.73512701 | AE92: 11.89666824 | AG92: 25997.92862 | AH92: 25997.92862 | AI92: 25929.42346 | AJ92: 59498.94 | AK92: 59498.94 | AL92: 11373.687 | AM92: 37435.08 | AN92: 37435.08 | AO92: 313.1556075 | AP92: 42608.7816 | AQ92: 42608.7816 | AR92: 496.4788789 | AS92: 44203.19323 | AT92: 44203.19323 | AU92: 15.32452125 | AV92: 41148.72273 | AW92: Dominated
C93: 110 | D93: 1 | E93: 1 | F93: 0 | G93: G1_TN IE_SMV+PR12+24 | H93: G1_TE IE_SOF+DCV12 | I93: G1_TE IE_3D+/-R12 | J93: G1 TE IE_F4SVR | K93: DC_SVRG1 | L93: G1_TN IE_SMV+PR12+24G1_TE IE_SOF+DCV12G1_TE IE_3D+/-R12 | M93: 25929.42346 | N93: 11373.687 | O93: 295.1918277 | P93: 446.764041 | Q93: 13.87225081 | R93: 967.331194 | S93: 2009.981765 | T93: 41036.25154 | U93: 0.7553083472 | V93: 0.1814615903 | W93: 0.00806062219 | X93: 0.9448305597 | Y93: 0.05308429555 | Z93: 0.0004144913192 | AA93: 0.001670653459 | AB93: 0.05392699631 | AC93: 0.01841638033 | AD93: 18.73594299 | AE93: 11.90008533 | AG93: 25997.92862 | AH93: 25997.92862 | AI93: 25929.42346 | AJ93: 59498.94 | AK93: 59498.94 | AL93: 11373.687 | AM93: 35282.82166 | AN93: 35282.82166 | AO93: 295.1918277 | AP93: 42608.7816 | AQ93: 42608.7816 | AR93: 446.764041 | AS93: 44203.19323 | AT93: 44203.19323 | AU93: 13.87225081 | AV93: 41036.25154 | AW93: Dominated
C94: 110 | D94: 1 | E94: 1 | F94: 0 | G94: G1_TN IE_PR48 | H94: G1_TE IE_SOF+LED12 | I94: G1_TE IE_SOF+PR12 | J94: G1 TE IE_F4SVR | K94: DC_SVRG1 | L94: G1_TN IE_PR48G1_TE IE_SOF+LED12G1_TE IE_SOF+PR12 | M94: 6109.602469 | N94: 18853.81901 | O94: 994.1191515 | P94: 2354.877057 | Q94: 72.27324581 | R94: 1134.163124 | S94: 3869.107982 | T94: 33387.96204 | U94: 0.4050247838 | V94: 0.4615279506 | W94: 0.01969602511 | X94: 0.8862487595 | Y94: 0.1049746696 | Z94: 0.002218348963 | AA94: 0.006558221983 | AB94: 0.1095716039 | AC94: 0.03732642684 | AD94: 18.66676018 | AE94: 11.71124699 | AG94: 6121.55251 | AH94: 6121.55251 | AI94: 6109.602469 | AJ94: 38979.99 | AK94: 38979.99 | AL94: 18853.81901 | AM94: 37435.08 | AN94: 37435.08 | AO94: 994.1191515 | AP94: 42608.7816 | AQ94: 42608.7816 | AR94: 2354.877057 | AS94: 44203.19323 | AT94: 44203.19323 | AU94: 72.27324581 | AV94: 33387.96204 | AW94: Dominated
C95: 110 | D95: 1 | E95: 1 | F95: 0 | G95: G1_TN IE_PR48 | H95: G1_TE IE_SOF+LED12 | I95: G1_TE IE_SMV+PR12+48 | J95: G1 TE IE_F4SVR | K95: DC_SVRG1 | L95: G1_TN IE_PR48G1_TE IE_SOF+LED12G1_TE IE_SMV+PR12+48 | M95: 6109.602469 | N95: 18853.81901 | O95: 1064.896386 | P95: 2427.920922 | Q95: 74.40351829 | R95: 1136.44299 | S95: 3963.831378 | T95: 33630.91667 | U95: 0.4050247838 | V95: 0.4615279506 | W95: 0.01566741962 | X95: 0.882220154 | Y95: 0.1080865271 | Z95: 0.002296198004 | AA95: 0.007397120876 | AB95: 0.1128732395 | AC95: 0.03828065395 | AD95: 18.66460483 | AE95: 11.70294626 | AG95: 6121.55251 | AH95: 6121.55251 | AI95: 6109.602469 | AJ95: 38979.99 | AK95: 38979.99 | AL95: 18853.81901 | AM95: 40115.12015 | AN95: 40115.12015 | AO95: 1064.896386 | AP95: 42608.7816 | AQ95: 42608.7816 | AR95: 2427.920922 | AS95: 44203.19323 | AT95: 44203.19323 | AU95: 74.40351829 | AV95: 33630.91667 | AW95: Dominated
C96: 110 | D96: 1 | E96: 1 | F96: 0 | G96: G1_TN IE_PR48 | H96: G1_TE IE_SOF+LED12 | I96: G1_TE IE_3D+/-R12 | J96: G1 TE IE_F4SVR | K96: DC_SVRG1 | L96: G1_TN IE_PR48G1_TE IE_SOF+LED12G1_TE IE_3D+/-R12 | M96: 6109.602469 | N96: 18853.81901 | O96: 937.1054548 | P96: 2201.281139 | Q96: 67.8367153 | R96: 1131.365827 | S96: 3737.650209 | T96: 33038.66082 | U96: 0.4050247838 | V96: 0.4615279506 | W96: 0.02602435907 | X96: 0.8925770935 | Y96: 0.1005432105 | Z96: 0.002056933935 | AA96: 0.004822762075 | AB96: 0.1047437824 | AC96: 0.03600793683 | AD96: 18.6691268 | AE96: 11.72170139 | AG96: 6121.55251 | AH96: 6121.55251 | AI96: 6109.602469 | AJ96: 38979.99 | AK96: 38979.99 | AL96: 18853.81901 | AM96: 35282.82166 | AN96: 35282.82166 | AO96: 937.1054548 | AP96: 42608.7816 | AQ96: 42608.7816 | AR96: 2201.281139 | AS96: 44203.19323 | AT96: 44203.19323 | AU96: 67.8367153 | AV96: 33038.66082 | AW96: Dominated
C97: 110 | D97: 1 | E97: 1 | F97: 0 | G97: G1_TN IE_PR48 | H97: G1_TE IE_SOF+LED12 | I97: G1_TE IE_SOF+DCV12 | J97: G1 TE IE_F4SVR | K97: DC_SVRG1 | L97: G1_TN IE_PR48G1_TE IE_SOF+LED12G1_TE IE_SOF+DCV12 | M97: 6109.602469 | N97: 18853.81901 | O97: 1580.04299 | P97: 2205.109064 | Q97: 67.9495896 | R97: 1131.631961 | S97: 3741.13148 | T97: 33689.28656 | U97: 0.4050247838 | V97: 0.4615279506 | W97: 0.02586284923 | X97: 0.8924155836 | Y97: 0.1006540042 | Z97: 0.002061030295 | AA97: 0.004869381905 | AB97: 0.1048643413 | AC97: 0.0360433137 | AD97: 18.6690545 | AE97: 11.72131519 | AG97: 6121.55251 | AH97: 6121.55251 | AI97: 6109.602469 | AJ97: 38979.99 | AK97: 38979.99 | AL97: 18853.81901 | AM97: 59498.94 | AN97: 59498.94 | AO97: 1580.04299 | AP97: 42608.7816 | AQ97: 42608.7816 | AR97: 2205.109064 | AS97: 44203.19323 | AT97: 44203.19323 | AU97: 67.9495896 | AV97: 33689.28656 | AW97: Dominated
C98: 110 | D98: 1 | E98: 1 | F98: 0 | G98: G1_TN IE_PR48 | H98: G1_TE IE_SOF+PR12 | I98: G1_TE IE_SOF+LED12 | J98: G1 TE IE_F4SVR | K98: DC_SVRG1 | L98: G1_TN IE_PR48G1_TE IE_SOF+PR12G1_TE IE_SOF+LED12 | M98: 6109.602469 | N98: 18106.57783 | O98: 4959.098527 | P98: 2453.718936 | Q98: 75.29348037 | R98: 1207.625892 | S98: 3946.823568 | T98: 36858.7407 | U98: 0.4050247838 | V98: 0.3565083894 | W98: 0.1224018915 | X98: 0.8839350647 | Y98: 0.107038213 | Z98: 0.002310468008 | AA98: 0.006716254321 | AB98: 0.1118238892 | AC98: 0.038118764 | AD98: 18.66367358 | AE98: 11.68553728 | AG98: 6121.55251 | AH98: 6121.55251 | AI98: 6109.602469 | AJ98: 37435.08 | AK98: 37435.08 | AL98: 18106.57783 | AM98: 38979.99 | AN98: 38979.99 | AO98: 4959.098527 | AP98: 42608.7816 | AQ98: 42608.7816 | AR98: 2453.718936 | AS98: 44203.19323 | AT98: 44203.19323 | AU98: 75.29348037 | AV98: 36858.7407 | AW98: Dominated
C99: 110 | D99: 1 | E99: 1 | F99: 0 | G99: G1_TN IE_PR48 | H99: G1_TE IE_SOF+PR12 | I99: G1_TE IE_3D+/-R12 | J99: G1 TE IE_F4SVR | K99: DC_SVRG1 | L99: G1_TN IE_PR48G1_TE IE_SOF+PR12G1_TE IE_3D+/-R12 | M99: 6109.602469 | N99: 18106.57783 | O99: 4489.455242 | P99: 2399.574113 | Q99: 73.7326785 | R99: 1205.748337 | S99: 3900.145192 | T99: 36284.83586 | U99: 0.4050247838 | V99: 0.3565083894 | W99: 0.124664968 | X99: 0.8861981412 | Y99: 0.105470838 | Z99: 0.002253694601 | AA99: 0.006077326264 | AB99: 0.1101175901 | AC99: 0.03765775691 | AD99: 18.66451782 | AE99: 11.68750382 | AG99: 6121.55251 | AH99: 6121.55251 | AI99: 6109.602469 | AJ99: 37435.08 | AK99: 37435.08 | AL99: 18106.57783 | AM99: 35282.82166 | AN99: 35282.82166 | AO99: 4489.455242 | AP99: 42608.7816 | AQ99: 42608.7816 | AR99: 2399.574113 | AS99: 44203.19323 | AT99: 44203.19323 | AU99: 73.7326785 | AV99: 36284.83586 | AW99: Dominated
C100: 110 | D100: 1 | E100: 1 | F100: 0 | G100: G1_TN IE_PR48 | H100: G1_TE IE_SOF+PR12 | I100: G1_TE IE_SOF+DCV12 | J100: G1 TE IE_F4SVR | K100: DC_SVRG1 | L100: G1_TN IE_PR48G1_TE IE_SOF+PR12G1_TE IE_SOF+DCV12 | M100: 6109.602469 | N100: 18106.57783 | O100: 7569.553141 | P100: 2417.945269 | Q100: 74.27212396 | R100: 1207.023582 | S100: 3916.798005 | T100: 39401.77242 | U100: 0.4050247838 | V100: 0.3565083894 | W100: 0.1238844623 | X100: 0.8854176354 | Y100: 0.1059985455 | Z100: 0.002273216666 | AA100: 0.006310602386 | AB100: 0.1106930621 | AC100: 0.03782523659 | AD100: 18.66422876 | AE100: 11.6857218 | AG100: 6121.55251 | AH100: 6121.55251 | AI100: 6109.602469 | AJ100: 37435.08 | AK100: 37435.08 | AL100: 18106.57783 | AM100: 59498.94 | AN100: 59498.94 | AO100: 7569.553141 | AP100: 42608.7816 | AQ100: 42608.7816 | AR100: 2417.945269 | AS100: 44203.19323 | AT100: 44203.19323 | AU100: 74.27212396 | AV100: 39401.77242 | AW100: Dominated
C101: 110 | D101: 1 | E101: 1 | F101: 0 | G101: G1_TN IE_PR48 | H101: G1_TE IE_SMV+PR12+48 | I101: G1_TE IE_SOF+LED12 | J101: G1 TE IE_F4SVR | K101: DC_SVRG1 | L101: G1_TN IE_PR48G1_TE IE_SMV+PR12+48G1_TE IE_SOF+LED12 | M101: 6109.602469 | N101: 19395.16536 | O101: 6372.267194 | P101: 3018.561319 | Q101: 92.35203369 | R101: 1262.338242 | S101: 5008.102342 | T101: 41258.38896 | U101: 0.4050247838 | V101: 0.2834723797 | W101: 0.161275225 | X101: 0.8497723885 | Y101: 0.1384585533 | Z101: 0.002857603755 | AA101: 0.008911454465 | AB101: 0.1444026676 | AC101: 0.04885046651 | AD101: 18.62781477 | AE101: 11.57506653 | AG101: 6121.55251 | AH101: 6121.55251 | AI101: 6109.602469 | AJ101: 40115.12015 | AK101: 40115.12015 | AL101: 19395.16536 | AM101: 38979.99 | AN101: 38979.99 | AO101: 6372.267194 | AP101: 42608.7816 | AQ101: 42608.7816 | AR101: 3018.561319 | AS101: 44203.19323 | AT101: 44203.19323 | AU101: 92.35203369 | AV101: 41258.38896 | AW101: Dominated
C102: 110 | D102: 1 | E102: 1 | F102: 0 | G102: G1_TN IE_PR48 | H102: G1_TE IE_SMV+PR12+48 | I102: G1_TE IE_3D+/-R12 | J102: G1 TE IE_F4SVR | K102: DC_SVRG1 | L102: G1_TN IE_PR48G1_TE IE_SMV+PR12+48G1_TE IE_3D+/-R12 | M102: 6109.602469 | N102: 19395.16536 | O102: 5768.813772 | P102: 2949.987391 | Q102: 90.37105817 | R102: 1259.940987 | S102: 4948.547591 | T102: 40522.42863 | U102: 0.4050247838 | V102: 0.2834723797 | W102: 0.1642782468 | X102: 0.8527754103 | Y102: 0.1364148215 | Z102: 0.002784254349 | AA102: 0.00802551388 | AB102: 0.1421771011 | AC102: 0.04826214294 | AD102: 18.62875968 | AE102: 11.57744709 | AG102: 6121.55251 | AH102: 6121.55251 | AI102: 6109.602469 | AJ102: 40115.12015 | AK102: 40115.12015 | AL102: 19395.16536 | AM102: 35282.82166 | AN102: 35282.82166 | AO102: 5768.813772 | AP102: 42608.7816 | AQ102: 42608.7816 | AR102: 2949.987391 | AS102: 44203.19323 | AT102: 44203.19323 | AU102: 90.37105817 | AV102: 40522.42863 | AW102: Dominated
C103: 110 | D103: 1 | E103: 1 | F103: 0 | G103: G1_TN IE_PR48 | H103: G1_TE IE_SMV+PR12+48 | I103: G1_TE IE_SOF+DCV12 | J103: G1 TE IE_F4SVR | K103: DC_SVRG1 | L103: G1_TN IE_PR48G1_TE IE_SMV+PR12+48G1_TE IE_SOF+DCV12 | M103: 6109.602469 | N103: 19395.16536 | O103: 9726.609562 | P103: 2972.366394 | Q103: 91.02395656 | R103: 1261.559571 | S103: 4969.09547 | T103: 44525.42278 | U103: 0.4050247838 | V103: 0.2834723797 | W103: 0.1632761524 | X103: 0.8517733159 | Y103: 0.1370807967 | Z103: 0.002808399016 | AA103: 0.008337488315 | AB103: 0.1429029522 | AC103: 0.04847035437 | AD103: 18.62838035 | AE103: 11.57523763 | AG103: 6121.55251 | AH103: 6121.55251 | AI103: 6109.602469 | AJ103: 40115.12015 | AK103: 40115.12015 | AL103: 19395.16536 | AM103: 59498.94 | AN103: 59498.94 | AO103: 9726.609562 | AP103: 42608.7816 | AQ103: 42608.7816 | AR103: 2972.366394 | AS103: 44203.19323 | AT103: 44203.19323 | AU103: 91.02395656 | AV103: 44525.42278 | AW103: Dominated
C104: 110 | D104: 1 | E104: 1 | F104: 0 | G104: G1_TN IE_PR48 | H104: G1_TE IE_3D+/-R12 | I104: G1_TE IE_SOF+LED12 | J104: G1 TE IE_F4SVR | K104: DC_SVRG1 | L104: G1_TN IE_PR48G1_TE IE_3D+/-R12G1_TE IE_SOF+LED12 | M104: 6109.602469 | N104: 17067.96352 | O104: 719.3046722 | P104: 2193.411893 | Q104: 67.5915414 | R104: 1121.970633 | S104: 3731.467226 | T104: 31011.31196 | U104: 0.4050247838 | V104: 0.4699810246 | W104: 0.01775511707 | X104: 0.8927609254 | Y104: 0.1003794713 | Z104: 0.002049462188 | AA104: 0.004810141141 | AB104: 0.1045648933 | AC104: 0.03594528606 | AD104: 18.66937708 | AE104: 11.71707257 | AG104: 6121.55251 | AH104: 6121.55251 | AI104: 6109.602469 | AJ104: 35282.82166 | AK104: 35282.82166 | AL104: 17067.96352 | AM104: 38979.99 | AN104: 38979.99 | AO104: 719.3046722 | AP104: 42608.7816 | AQ104: 42608.7816 | AR104: 2193.411893 | AS104: 44203.19323 | AT104: 44203.19323 | AU104: 67.5915414 | AV104: 31011.31196 | AW104: Dominated
C105: 110 | D105: 1 | E105: 1 | F105: 0 | G105: G1_TN IE_PR48 | H105: G1_TE IE_3D+/-R12 | I105: G1_TE IE_SOF+PR12 | J105: G1 TE IE_F4SVR | K105: DC_SVRG1 | L105: G1_TN IE_PR48G1_TE IE_3D+/-R12G1_TE IE_SOF+PR12 | M105: 6109.602469 | N105: 17067.96352 | O105: 690.7961739 | P105: 2292.862988 | Q105: 70.46727004 | R105: 1123.648642 | S105: 3816.246623 | T105: 31171.58769 | U105: 0.4050247838 | V105: 0.4699810246 | W105: 0.01368985959 | X105: 0.8886956679 | Y105: 0.1032435553 | Z105: 0.00215410381 | AA105: 0.005906672992 | AB105: 0.1076864157 | AC105: 0.03680276897 | AD105: 18.6678547 | AE105: 11.71005841 | AG105: 6121.55251 | AH105: 6121.55251 | AI105: 6109.602469 | AJ105: 35282.82166 | AK105: 35282.82166 | AL105: 17067.96352 | AM105: 37435.08 | AN105: 37435.08 | AO105: 690.7961739 | AP105: 42608.7816 | AQ105: 42608.7816 | AR105: 2292.862988 | AS105: 44203.19323 | AT105: 44203.19323 | AU105: 70.46727004 | AV105: 31171.58769 | AW105: Dominated
C106: 110 | D106: 1 | E106: 1 | F106: 0 | G106: G1_TN IE_PR48 | H106: G1_TE IE_3D+/-R12 | I106: G1_TE IE_SMV+PR12+48 | J106: G1 TE IE_F4SVR | K106: DC_SVRG1 | L106: G1_TN IE_PR48G1_TE IE_3D+/-R12G1_TE IE_SMV+PR12+48 | M106: 6109.602469 | N106: 17067.96352 | O106: 739.9564186 | P106: 2343.486939 | Q106: 71.93202752 | R106: 1125.25655 | S106: 3881.943417 | T106: 31340.14134 | U106: 0.4050247838 | V106: 0.4699810246 | W106: 0.01090544641 | X106: 0.8859112547 | Y106: 0.1054057031 | Z106: 0.002207652133 | AA106: 0.006475390005 | AB106: 0.109979566 | AC106: 0.03746828152 | AD106: 18.66636549 | AE106: 11.70428719 | AG106: 6121.55251 | AH106: 6121.55251 | AI106: 6109.602469 | AJ106: 35282.82166 | AK106: 35282.82166 | AL106: 17067.96352 | AM106: 40115.12015 | AN106: 40115.12015 | AO106: 739.9564186 | AP106: 42608.7816 | AQ106: 42608.7816 | AR106: 2343.486939 | AS106: 44203.19323 | AT106: 44203.19323 | AU106: 71.93202752 | AV106: 31340.14134 | AW106: Dominated
C107: 110 | D107: 1 | E107: 1 | F107: 0 | G107: G1_TN IE_PR48 | H107: G1_TE IE_3D+/-R12 | I107: G1_TE IE_SOF+DCV12 | J107: G1 TE IE_F4SVR | K107: DC_SVRG1 | L107: G1_TN IE_PR48G1_TE IE_3D+/-R12G1_TE IE_SOF+DCV12 | M107: 6109.602469 | N107: 17067.96352 | O107: 1097.944498 | P107: 2187.996547 | Q107: 67.43216838 | R107: 1121.879489 | S107: 3726.971722 | T107: 31379.79041 | U107: 0.4050247838 | V107: 0.4699810246 | W107: 0.01797664897 | X107: 0.8929824573 | Y107: 0.1002239941 | Z107: 0.002043680114 | AA107: 0.00474986846 | AB107: 0.104395291 | AC107: 0.03590128097 | AD107: 18.66945211 | AE107: 11.71711017 | AG107: 6121.55251 | AH107: 6121.55251 | AI107: 6109.602469 | AJ107: 35282.82166 | AK107: 35282.82166 | AL107: 17067.96352 | AM107: 59498.94 | AN107: 59498.94 | AO107: 1097.944498 | AP107: 42608.7816 | AQ107: 42608.7816 | AR107: 2187.996547 | AS107: 44203.19323 | AT107: 44203.19323 | AU107: 67.43216838 | AV107: 31379.79041 | AW107: Dominated
C108: 110 | D108: 1 | E108: 1 | F108: 0 | G108: G1_TN IE_PR48 | H108: G1_TE IE_SOF+DCV12 | I108: G1_TE IE_SOF+LED12 | J108: G1 TE IE_F4SVR | K108: DC_SVRG1 | L108: G1_TN IE_PR48G1_TE IE_SOF+DCV12G1_TE IE_SOF+LED12 | M108: 6109.602469 | N108: 28778.41287 | O108: 824.13508 | P108: 2199.761337 | Q108: 67.78409445 | R108: 1127.684999 | S108: 3737.04792 | T108: 42844.42877 | U108: 0.4050247838 | V108: 0.4671753734 | W108: 0.02033998983 | X108: 0.892540147 | Y108: 0.1005430169 | Z108: 0.002055994186 | AA108: 0.004860841955 | AB108: 0.1047430802 | AC108: 0.03600249047 | AD108: 18.66922154 | AE108: 11.7143181 | AG108: 6121.55251 | AH108: 6121.55251 | AI108: 6109.602469 | AJ108: 59498.94 | AK108: 59498.94 | AL108: 28778.41287 | AM108: 38979.99 | AN108: 38979.99 | AO108: 824.13508 | AP108: 42608.7816 | AQ108: 42608.7816 | AR108: 2199.761337 | AS108: 44203.19323 | AT108: 44203.19323 | AU108: 67.78409445 | AV108: 42844.42877 | AW108: Dominated
C109: 110 | D109: 1 | E109: 1 | F109: 0 | G109: G1_TN IE_PR48 | H109: G1_TE IE_SOF+DCV12 | I109: G1_TE IE_SOF+PR12 | J109: G1 TE IE_F4SVR | K109: DC_SVRG1 | L109: G1_TN IE_PR48G1_TE IE_SOF+DCV12G1_TE IE_SOF+PR12 | M109: 6109.602469 | N109: 28778.41287 | O109: 791.4717949 | P109: 2313.755663 | Q109: 71.08639425 | R109: 1129.613851 | S109: 3834.998859 | T109: 43028.9419 | U109: 0.4050247838 | V109: 0.4671753734 | W109: 0.01565573646 | X109: 0.8878558936 | Y109: 0.1038240148 | Z109: 0.002176061512 | AA109: 0.006144030098 | AB109: 0.1083195158 | AC109: 0.03699207619 | AD109: 18.6674824 | AE109: 11.70627706 | AG109: 6121.55251 | AH109: 6121.55251 | AI109: 6109.602469 | AJ109: 59498.94 | AK109: 59498.94 | AL109: 28778.41287 | AM109: 37435.08 | AN109: 37435.08 | AO109: 791.4717949 | AP109: 42608.7816 | AQ109: 42608.7816 | AR109: 2313.755663 | AS109: 44203.19323 | AT109: 44203.19323 | AU109: 71.08639425 | AV109: 43028.9419 | AW109: Dominated
C110: 110 | D110: 1 | E110: 1 | F110: 0 | G110: G1_TN IE_PR48 | H110: G1_TE IE_SOF+DCV12 | I110: G1_TE IE_SMV+PR12+48 | J110: G1 TE IE_F4SVR | K110: DC_SVRG1 | L110: G1_TN IE_PR48G1_TE IE_SOF+DCV12G1_TE IE_SMV+PR12+48 | M110: 6109.602469 | N110: 28778.41287 | O110: 847.6983132 | P110: 2371.015894 | Q110: 72.74697794 | R110: 1131.368818 | S110: 3910.138752 | T110: 43220.98409 | U110: 0.4050247838 | V110: 0.4671753734 | W110: 0.01248567915 | X110: 0.8846858363 | Y110: 0.1062782322 | Z110: 0.002236832563 | AA110: 0.006799098965 | AB110: 0.1109221124 | AC110: 0.03775570815 | AD110: 18.66570727 | AE110: 11.69967563 | AG110: 6121.55251 | AH110: 6121.55251 | AI110: 6109.602469 | AJ110: 59498.94 | AK110: 59498.94 | AL110: 28778.41287 | AM110: 40115.12015 | AN110: 40115.12015 | AO110: 847.6983132 | AP110: 42608.7816 | AQ110: 42608.7816 | AR110: 2371.015894 | AS110: 44203.19323 | AT110: 44203.19323 | AU110: 72.74697794 | AV110: 43220.98409 | AW110: Dominated
C111: 110 | D111: 1 | E111: 1 | F111: 0 | G111: G1_TN IE_PR48 | H111: G1_TE IE_SOF+DCV12 | I111: G1_TE IE_3D+/-R12 | J111: G1 TE IE_F4SVR | K111: DC_SVRG1 | L111: G1_TN IE_PR48G1_TE IE_SOF+DCV12G1_TE IE_3D+/-R12 | M111: 6109.602469 | N111: 28778.41287 | O111: 746.0609585 | P111: 2190.518065 | Q111: 67.51184712 | R111: 1127.367882 | S111: 3729.071145 | T111: 42748.54524 | U111: 0.4050247838 | V111: 0.4671753734 | W111: 0.02072303157 | X111: 0.8929231887 | Y111: 0.1002767461 | Z111: 0.002046115752 | AA111: 0.004753949444 | AB111: 0.104452919 | AC111: 0.0359231085 | AD111: 18.66936887 | AE111: 11.7146832 | AG111: 6121.55251 | AH111: 6121.55251 | AI111: 6109.602469 | AJ111: 59498.94 | AK111: 59498.94 | AL111: 28778.41287 | AM111: 35282.82166 | AN111: 35282.82166 | AO111: 746.0609585 | AP111: 42608.7816 | AQ111: 42608.7816 | AR111: 2190.518065 | AS111: 44203.19323 | AT111: 44203.19323 | AU111: 67.51184712 | AV111: 42748.54524 | AW111: Dominated
C112: 110 | D112: 1 | E112: 1 | F112: 0 | G112: G1_TN IE_3D+/-R12 | H112: G1_TE IE_SOF+LED12 | I112: G1_TE IE_SOF+PR12 | J112: G1 TE IE_F4SVR | K112: DC_SVRG1 | L112: G1_TN IE_3D+/-R12G1_TE IE_SOF+LED12G1_TE IE_SOF+PR12 | M112: 35230.99767 | N112: 1342.586908 | O112: 70.85719196 | P112: 53.95702345 | Q112: 1.650023932 | R112: 732.1959971 | S112: 1104.564023 | T112: 38536.80884 | U112: 0.9394110382 | V112: 0.03202116635 | W112: 0.001367397121 | X112: 0.9727996016 | Y112: 0.02642707903 | Z112: 5.11081246e-05 | AA112: 0.0007222112066 | AB112: 0.02653581508 | AC112: 0.009012918412 | AD112: 18.7723021 | AE112: 12.01927291 | AG112: 35327.36249 | AH112: 35327.36249 | AI112: 35230.99767 | AJ112: 38979.99 | AK112: 38979.99 | AL112: 1342.586908 | AM112: 37435.08 | AN112: 37435.08 | AO112: 70.85719196 | AP112: 42608.7816 | AQ112: 42608.7816 | AR112: 53.95702345 | AS112: 44203.19323 | AT112: 44203.19323 | AU112: 1.650023932 | AV112: 38536.80884 | AW112: Dominated
C113: 110 | D113: 1 | E113: 1 | F113: 0 | G113: G1_TN IE_3D+/-R12 | H113: G1_TE IE_SOF+LED12 | I113: G1_TE IE_SMV+PR12+48 | J113: G1 TE IE_F4SVR | K113: DC_SVRG1 | L113: G1_TN IE_3D+/-R12G1_TE IE_SOF+LED12G1_TE IE_SMV+PR12+48 | M113: 35230.99767 | N113: 1342.586908 | O113: 75.92396946 | P113: 59.28794931 | Q113: 1.806475607 | R113: 732.3605545 | S113: 1111.473001 | T113: 38554.43653 | U113: 0.9394110382 | V113: 0.03202116635 | W113: 0.001082535942 | X113: 0.9725147405 | Y113: 0.02665074657 | Z113: 5.671590336e-05 | AA113: 0.0007777970679 | AB113: 0.02677293664 | AC113: 0.009082690384 | AD113: 18.77212715 | AE113: 12.01865193 | AG113: 35327.36249 | AH113: 35327.36249 | AI113: 35230.99767 | AJ113: 38979.99 | AK113: 38979.99 | AL113: 1342.586908 | AM113: 40115.12015 | AN113: 40115.12015 | AO113: 75.92396946 | AP113: 42608.7816 | AQ113: 42608.7816 | AR113: 59.28794931 | AS113: 44203.19323 | AT113: 44203.19323 | AU113: 1.806475607 | AV113: 38554.43653 | AW113: Dominated
C114: 110 | D114: 1 | E114: 1 | F114: 0 | G114: G1_TN IE_3D+/-R12 | H114: G1_TE IE_SOF+LED12 | I114: G1_TE IE_PR48 | J114: G1 TE IE_F4SVR | K114: DC_SVRG1 | L114: G1_TN IE_3D+/-R12G1_TE IE_SOF+LED12G1_TE IE_PR48 | M114: 35230.99767 | N114: 1342.586908 | O114: 11.91949765 | P114: 79.61710158 | Q114: 2.399844248 | R114: 732.701911 | S114: 1127.024191 | T114: 38527.24713 | U114: 0.9394110382 | V114: 0.03202116635 | W114: 0.0003388338237 | X114: 0.9717710383 | Y114: 0.02716822134 | Z114: 7.792098459e-05 | AA114: 0.0009828193336 | AB114: 0.0273415539 | AC114: 0.009238628942 | AD114: 18.77183576 | AE114: 12.01749367 | AG114: 35327.36249 | AH114: 35327.36249 | AI114: 35230.99767 | AJ114: 38979.99 | AK114: 38979.99 | AL114: 1342.586908 | AM114: 6297.541364 | AN114: 6297.541364 | AO114: 11.91949765 | AP114: 42608.7816 | AQ114: 42608.7816 | AR114: 79.61710158 | AS114: 44203.19323 | AT114: 44203.19323 | AU114: 2.399844248 | AV114: 38527.24713 | AW114: Dominated
C115: 110 | D115: 1 | E115: 1 | F115: 0 | G115: G1_TN IE_3D+/-R12 | H115: G1_TE IE_SOF+LED12 | I115: G1_TE IE_SOF+DCV12 | J115: G1 TE IE_F4SVR | K115: DC_SVRG1 | L115: G1_TN IE_3D+/-R12G1_TE IE_SOF+LED12G1_TE IE_SOF+DCV12 | M115: 35230.99767 | N115: 1342.586908 | O115: 112.6197089 | P115: 43.00109662 | Q115: 1.331541471 | R115: 732.0107046 | S115: 1095.312444 | T115: 38557.86008 | U115: 0.9394110382 | V115: 0.03202116635 | W115: 0.001796559343 | X115: 0.9732287639 | Y115: 0.0261208237 | Z115: 3.974254842e-05 | AA115: 0.0006106698902 | AB115: 0.0262020796 | AC115: 0.008920040543 | AD115: 18.77248922 | AE115: 12.02001845 | AG115: 35327.36249 | AH115: 35327.36249 | AI115: 35230.99767 | AJ115: 38979.99 | AK115: 38979.99 | AL115: 1342.586908 | AM115: 59498.94 | AN115: 59498.94 | AO115: 112.6197089 | AP115: 42608.7816 | AQ115: 42608.7816 | AR115: 43.00109662 | AS115: 44203.19323 | AT115: 44203.19323 | AU115: 1.331541471 | AV115: 38557.86008 | AW115: Dominated
C116: 110 | D116: 1 | E116: 1 | F116: 0 | G116: G1_TN IE_3D+/-R12 | H116: G1_TE IE_SOF+PR12 | I116: G1_TE IE_SOF+LED12 | J116: G1 TE IE_F4SVR | K116: DC_SVRG1 | L116: G1_TN IE_3D+/-R12G1_TE IE_SOF+PR12G1_TE IE_SOF+LED12 | M116: 35230.99767 | N116: 1289.375608 | O116: 353.3558069 | P116: 61.65834036 | Q116: 1.88706487 | R116: 737.4413435 | S116: 1110.432454 | T116: 38785.14829 | U116: 0.9394110382 | V116: 0.02471481603 | W116: 0.008500194466 | X116: 0.9726260487 | Y116: 0.02658240192 | Z116: 5.816610767e-05 | AA116: 0.000733383307 | AB116: 0.02670549232 | AC116: 0.009073320672 | AD116: 18.77205317 | AE116: 12.01739413 | AG116: 35327.36249 | AH116: 35327.36249 | AI116: 35230.99767 | AJ116: 37435.08 | AK116: 37435.08 | AL116: 1289.375608 | AM116: 38979.99 | AN116: 38979.99 | AO116: 353.3558069 | AP116: 42608.7816 | AQ116: 42608.7816 | AR116: 61.65834036 | AS116: 44203.19323 | AT116: 44203.19323 | AU116: 1.88706487 | AV116: 38785.14829 | AW116: Dominated
C117: =D117&E117&F117 -> 110 | D117: 1 | E117: 1 | F117: 0 | G117: G1_TN IE_3D+/-R12 | H117: G1_TE IE_SOF+PR12 | I117: G1_TE IE_SMV+PR12+48 | J117: G1 TE IE_F4SVR | K117: DC_SVRG1 | L117: =G117&H117&I117 -> G1_TN IE_3D+/-R12G1_TE IE_SOF+PR12G1_TE IE_SMV+PR12+48 | M117: 35230.99767 | N117: 1289.375608 | O117: 363.5587278 | P117: 136.9033928 | Q117: 4.069701422 | R117: 739.0709616 | S117: 1185.592381 | T117: 38949.56845 | U117: 0.9394110382 | V117: 0.02471481603 | W117: 0.005194548213 | X117: 0.9693204024 | Y117: 0.02904503037 | Z117: 0.0001361897444 | AA117: 0.001498377475 | AB117: 0.02935661028 | AC117: 0.009834562594 | AD117: 18.77038 | AE117: 12.01084444 | AG117: 35327.36249 | AH117: 35327.36249 | AI117: 35230.99767 | AJ117: 37435.08 | AK117: 37435.08 | AL117: 1289.375608 | AM117: 40115.12015 | AN117: 40115.12015 | AO117: 363.5587278 | AP117: 42608.7816 | AQ117: 42608.7816 | AR117: 136.9033928 | AS117: 44203.19323 | AT117: 44203.19323 | AU117: 4.069701422 | AV117: 38949.56845 | AW117: Dominated
C118: 110 | D118: 1 | E118: 1 | F118: 0 | G118: G1_TN IE_3D+/-R12 | H118: G1_TE IE_SOF+PR12 | I118: G1_TE IE_SOF+DCV12 | J118: G1 TE IE_F4SVR | K118: DC_SVRG1 | L118: G1_TN IE_3D+/-R12G1_TE IE_SOF+PR12G1_TE IE_SOF+DCV12 | M118: 35230.99767 | N118: 1289.375608 | O118: 539.3612454 | P118: 59.04222835 | Q118: 1.811823232 | R118: 737.3970971 | S118: 1108.260226 | T118: 38966.2459 | U118: 0.9394110382 | V118: 0.02471481603 | W118: 0.008602913463 | X118: 0.9727287677 | Y118: 0.02650877892 | Z118: 5.547147518e-05 | AA118: 0.0007069819439 | AB118: 0.02662535635 | AC118: 0.009051927657 | AD118: 18.77209892 | AE118: 12.01741528 | AG118: 35327.36249 | AH118: 35327.36249 | AI118: 35230.99767 | AJ118: 37435.08 | AK118: 37435.08 | AL118: 1289.375608 | AM118: 59498.94 | AN118: 59498.94 | AO118: 539.3612454 | AP118: 42608.7816 | AQ118: 42608.7816 | AR118: 59.04222835 | AS118: 44203.19323 | AT118: 44203.19323 | AU118: 1.811823232 | AV118: 38966.2459 | AW118: Dominated
C119: 110 | D119: 1 | E119: 1 | F119: 0 | G119: G1_TN IE_3D+/-R12 | H119: G1_TE IE_SMV+PR12+48 | I119: G1_TE IE_SOF+LED12 | J119: G1 TE IE_F4SVR | K119: DC_SVRG1 | L119: G1_TN IE_3D+/-R12G1_TE IE_SMV+PR12+48G1_TE IE_SOF+LED12 | M119: 35230.99767 | N119: 1381.445693 | O119: 451.7167027 | P119: 104.6306647 | Q119: 3.196767194 | R119: 741.3482949 | S119: 1189.465811 | T119: 39102.80161 | U119: 0.9394110382 | V119: 0.01954737601 | W119: 0.0111468601 | X119: 0.9701052743 | Y119: 0.02891345561 | Z119: 9.914604533e-05 | AA119: 0.0008821240627 | AB119: 0.02912240743 | AC119: 0.00987960308 | AD119: 18.76917463 | AE119: 12.00899655 | AG119: 35327.36249 | AH119: 35327.36249 | AI119: 35230.99767 | AJ119: 40115.12015 | AK119: 40115.12015 | AL119: 1381.445693 | AM119: 38979.99 | AN119: 38979.99 | AO119: 451.7167027 | AP119: 42608.7816 | AQ119: 42608.7816 | AR119: 104.6306647 | AS119: 44203.19323 | AT119: 44203.19323 | AU119: 3.196767194 | AV119: 39102.80161 | AW119: Dominated
C120: 110 | D120: 1 | E120: 1 | F120: 0 | G120: G1_TN IE_3D+/-R12 | H120: G1_TE IE_SMV+PR12+48 | I120: G1_TE IE_SOF+PR12 | J120: G1 TE IE_F4SVR | K120: DC_SVRG1 | L120: G1_TN IE_3D+/-R12G1_TE IE_SMV+PR12+48G1_TE IE_SOF+PR12 | M120: 35230.99767 | N120: 1381.445693 | O120: 433.8136286 | P120: 166.8907201 | Q120: 4.989760408 | R120: 742.399223 | S120: 1242.549018 | T120: 39203.08572 | U120: 0.9394110382 | V120: 0.01954737601 | W120: 0.008596918709 | X120: 0.9675553329 | Y120: 0.03070871789 | Z120: 0.0001643895484 | AA120: 0.001571559676 | AB120: 0.03107796697 | AC120: 0.01041670639 | AD120: 18.76823209 | AE120: 12.00460725 | AG120: 35327.36249 | AH120: 35327.36249 | AI120: 35230.99767 | AJ120: 40115.12015 | AK120: 40115.12015 | AL120: 1381.445693 | AM120: 37435.08 | AN120: 37435.08 | AO120: 433.8136286 | AP120: 42608.7816 | AQ120: 42608.7816 | AR120: 166.8907201 | AS120: 44203.19323 | AT120: 44203.19323 | AU120: 4.989760408 | AV120: 39203.08572 | AW120: Dominated
C121: 110 | D121: 1 | E121: 1 | F121: 0 | G121: G1_TN IE_3D+/-R12 | H121: G1_TE IE_SMV+PR12+48 | I121: G1_TE IE_SOF+DCV12 | J121: G1 TE IE_F4SVR | K121: DC_SVRG1 | L121: G1_TN IE_3D+/-R12G1_TE IE_SMV+PR12+48G1_TE IE_SOF+DCV12 | M121: 35230.99767 | N121: 1381.445693 | O121: 689.4990223 | P121: 101.2483314 | Q121: 3.099117772 | R121: 741.29098 | S121: 1186.641688 | T121: 39334.2225 | U121: 0.9394110382 | V121: 0.01954737601 | W121: 0.01128568456 | X121: 0.9702440987 | Y121: 0.02881558951 | Z121: 9.558951715e-05 | AA121: 0.000844722227 | AB121: 0.02901582718 | AC121: 0.009851941971 | AD121: 18.76922123 | AE121: 12.00902075 | AG121: 35327.36249 | AH121: 35327.36249 | AI121: 35230.99767 | AJ121: 40115.12015 | AK121: 40115.12015 | AL121: 1381.445693 | AM121: 59498.94 | AN121: 59498.94 | AO121: 689.4990223 | AP121: 42608.7816 | AQ121: 42608.7816 | AR121: 101.2483314 | AS121: 44203.19323 | AT121: 44203.19323 | AU121: 3.099117772 | AV121: 39334.2225 | AW121: Dominated
C122: 110 | D122: 1 | E122: 1 | F122: 0 | G122: G1_TN IE_3D+/-R12 | H122: G1_TE IE_PR48 | I122: G1_TE IE_SOF+LED12 | J122: G1 TE IE_F4SVR | K122: DC_SVRG1 | L122: G1_TN IE_3D+/-R12G1_TE IE_PR48G1_TE IE_SOF+LED12 | M122: 35230.99767 | N122: 216.822444 | O122: 952.6439222 | P122: 177.5614476 | Q122: 5.401960054 | R122: 751.6993008 | S122: 1217.030584 | T122: 38552.15733 | U122: 0.9394110382 | V122: 0.006140702582 | W122: 0.02351420256 | X122: 0.9690659433 | Y122: 0.02961824566 | Z122: 0.000169504837 | AA122: 0.001146306193 | AB122: 0.02997881408 | AC122: 0.01015531561 | AD122: 18.76830711 | AE122: 12.00649859 | AG122: 35327.36249 | AH122: 35327.36249 | AI122: 35230.99767 | AJ122: 6297.541364 | AK122: 6297.541364 | AL122: 216.822444 | AM122: 38979.99 | AN122: 38979.99 | AO122: 952.6439222 | AP122: 42608.7816 | AQ122: 42608.7816 | AR122: 177.5614476 | AS122: 44203.19323 | AT122: 44203.19323 | AU122: 5.401960054 | AV122: 38552.15733 | AW122: Dominated
C123: 110 | D123: 1 | E123: 1 | F123: 0 | G123: G1_TN IE_3D+/-R12 | H123: G1_TE IE_PR48 | I123: G1_TE IE_SOF+PR12 | J123: G1 TE IE_F4SVR | K123: DC_SVRG1 | L123: G1_TN IE_3D+/-R12G1_TE IE_PR48G1_TE IE_SOF+PR12 | M123: 35230.99767 | N123: 216.822444 | O123: 914.8873933 | P123: 308.6554658 | Q123: 9.174571308 | R123: 753.9119168 | S123: 1328.841663 | T123: 38763.29113 | U123: 0.9394110382 | V123: 0.006140702582 | W123: 0.01814273177 | X123: 0.9636944725 | Y123: 0.03339888608 | Z123: 0.0003067948395 | AA123: 0.002599846551 | AB123: 0.03409692616 | AC123: 0.01128539913 | AD123: 18.76630657 | AE123: 11.99725095 | AG123: 35327.36249 | AH123: 35327.36249 | AI123: 35230.99767 | AJ123: 6297.541364 | AK123: 6297.541364 | AL123: 216.822444 | AM123: 37435.08 | AN123: 37435.08 | AO123: 914.8873933 | AP123: 42608.7816 | AQ123: 42608.7816 | AR123: 308.6554658 | AS123: 44203.19323 | AT123: 44203.19323 | AU123: 9.174571308 | AV123: 38763.29113 | AW123: Dominated
C124: 110 | D124: 1 | E124: 1 | F124: 0 | G124: G1_TN IE_3D+/-R12 | H124: G1_TE IE_PR48 | I124: G1_TE IE_SMV+PR12+48 | J124: G1 TE IE_F4SVR | K124: DC_SVRG1 | L124: G1_TN IE_3D+/-R12G1_TE IE_PR48G1_TE IE_SMV+PR12+48 | M124: 35230.99767 | N124: 216.822444 | O124: 980.2122197 | P124: 377.1416956 | Q124: 11.15711088 | R124: 756.0561904 | S124: 1417.040736 | T124: 38989.42807 | U124: 0.9394110382 | V124: 0.006140702582 | W124: 0.01438695373 | X124: 0.9599386945 | Y124: 0.0363034527 | Z124: 0.0003792880584 | AA124: 0.003378564762 | AB124: 0.03717861475 | AC124: 0.0121776595 | AD124: 18.76432511 | AE124: 11.9895168 | AG124: 35327.36249 | AH124: 35327.36249 | AI124: 35230.99767 | AJ124: 6297.541364 | AK124: 6297.541364 | AL124: 216.822444 | AM124: 40115.12015 | AN124: 40115.12015 | AO124: 980.2122197 | AP124: 42608.7816 | AQ124: 42608.7816 | AR124: 377.1416956 | AS124: 44203.19323 | AT124: 44203.19323 | AU124: 11.15711088 | AV124: 38989.42807 | AW124: Dominated
C125: 110 | D125: 1 | E125: 1 | F125: 0 | G125: G1_TN IE_3D+/-R12 | H125: G1_TE IE_PR48 | I125: G1_TE IE_SOF+DCV12 | J125: G1 TE IE_F4SVR | K125: DC_SVRG1 | L125: G1_TN IE_3D+/-R12G1_TE IE_PR48G1_TE IE_SOF+DCV12 | M125: 35230.99767 | N125: 216.822444 | O125: 1454.11283 | P125: 170.508773 | Q125: 5.197675623 | R125: 751.5797044 | S125: 1211.137413 | T125: 39040.35651 | U125: 0.9394110382 | V125: 0.006140702582 | W125: 0.02380377004 | X125: 0.9693555108 | Y125: 0.029414393 | Z125: 0.0001620638506 | AA125: 0.001068032361 | AB125: 0.02975674516 | AC125: 0.01009762976 | AD125: 18.76840843 | AE125: 12.00654464 | AG125: 35327.36249 | AH125: 35327.36249 | AI125: 35230.99767 | AJ125: 6297.541364 | AK125: 6297.541364 | AL125: 216.822444 | AM125: 59498.94 | AN125: 59498.94 | AO125: 1454.11283 | AP125: 42608.7816 | AQ125: 42608.7816 | AR125: 170.508773 | AS125: 44203.19323 | AT125: 44203.19323 | AU125: 5.197675623 | AV125: 39040.35651 | AW125: Dominated
C126: 110 | D126: 1 | E126: 1 | F126: 0 | G126: G1_TN IE_3D+/-R12 | H126: G1_TE IE_SOF+DCV12 | I126: G1_TE IE_SOF+LED12 | J126: G1 TE IE_F4SVR | K126: DC_SVRG1 | L126: G1_TN IE_3D+/-R12G1_TE IE_SOF+DCV12G1_TE IE_SOF+LED12 | M126: 35230.99767 | N126: 2049.320636 | O126: 58.70056485 | P126: 42.57620343 | Q126: 1.318279079 | R126: 731.7262063 | S126: 1094.996391 | T126: 39209.63595 | U126: 0.9394110382 | V126: 0.03241528636 | W126: 0.001411926668 | X126: 0.9732382512 | Y126: 0.0261123441 | Z126: 3.934855891e-05 | AA126: 0.0006100561383 | AB126: 0.02619280132 | AC126: 0.008916817925 | AD126: 18.7725026 | AE126: 12.01952331 | AG126: 35327.36249 | AH126: 35327.36249 | AI126: 35230.99767 | AJ126: 59498.94 | AK126: 59498.94 | AL126: 2049.320636 | AM126: 38979.99 | AN126: 38979.99 | AO126: 58.70056485 | AP126: 42608.7816 | AQ126: 42608.7816 | AR126: 42.57620343 | AS126: 44203.19323 | AT126: 44203.19323 | AU126: 1.318279079 | AV126: 39209.63595 | AW126: Dominated
C127: 110 | D127: 1 | E127: 1 | F127: 0 | G127: G1_TN IE_3D+/-R12 | H127: G1_TE IE_SOF+DCV12 | I127: G1_TE IE_SOF+PR12 | J127: G1 TE IE_F4SVR | K127: DC_SVRG1 | L127: G1_TN IE_3D+/-R12G1_TE IE_SOF+DCV12G1_TE IE_SOF+PR12 | M127: 35230.99767 | N127: 2049.320636 | O127: 56.37406118 | P127: 50.91601825 | Q127: 1.561519902 | R127: 731.8672525 | S127: 1102.075741 | T127: 39223.1129 | U127: 0.9394110382 | V127: 0.03241528636 | W127: 0.001085483442 | X127: 0.972911808 | Y127: 0.02634497643 | Z127: 4.801950261e-05 | AA127: 0.0006951960917 | AB127: 0.02644640084 | AC127: 0.008988302779 | AD127: 18.77236123 | AE127: 12.01893027 | AG127: 35327.36249 | AH127: 35327.36249 | AI127: 35230.99767 | AJ127: 59498.94 | AK127: 59498.94 | AL127: 2049.320636 | AM127: 37435.08 | AN127: 37435.08 | AO127: 56.37406118 | AP127: 42608.7816 | AQ127: 42608.7816 | AR127: 50.91601825 | AS127: 44203.19323 | AT127: 44203.19323 | AU127: 1.561519902 | AV127: 39223.1129 | AW127: Dominated
C128: 110 | D128: 1 | E128: 1 | F128: 0 | G128: G1_TN IE_3D+/-R12 | H128: G1_TE IE_SOF+DCV12 | I128: G1_TE IE_SMV+PR12+48 | J128: G1 TE IE_F4SVR | K128: DC_SVRG1 | L128: G1_TN IE_3D+/-R12G1_TE IE_SOF+DCV12G1_TE IE_SMV+PR12+48 | M128: 35230.99767 | N128: 2049.320636 | O128: 60.38622624 | P128: 55.06416161 | Q128: 1.68280793 | R128: 731.9941768 | S128: 1107.528278 | T128: 39236.97396 | U128: 0.9394110382 | V128: 0.03241528636 | W128: 0.0008621820562 | X128: 0.9726885066 | Y128: 0.02652042105 | Z128: 5.237416161e-05 | AA128: 0.0007386982034 | AB128: 0.02663229304 | AC128: 0.009043771499 | AD128: 18.77221656 | AE128: 12.01843977 | AG128: 35327.36249 | AH128: 35327.36249 | AI128: 35230.99767 | AJ128: 59498.94 | AK128: 59498.94 | AL128: 2049.320636 | AM128: 40115.12015 | AN128: 40115.12015 | AO128: 60.38622624 | AP128: 42608.7816 | AQ128: 42608.7816 | AR128: 55.06416161 | AS128: 44203.19323 | AT128: 44203.19323 | AU128: 1.68280793 | AV128: 39236.97396 | AW128: Dominated
C129: 110 | D129: 1 | E129: 1 | F129: 0 | G129: G1_TN IE_3D+/-R12 | H129: G1_TE IE_SOF+DCV12 | I129: G1_TE IE_PR48 | J129: G1 TE IE_F4SVR | K129: DC_SVRG1 | L129: G1_TN IE_3D+/-R12G1_TE IE_SOF+DCV12G1_TE IE_PR48 | M129: 35230.99767 | N129: 2049.320636 | O129: 9.489493496 | P129: 71.26363778 | Q129: 2.155387898 | R129: 732.2660512 | S129: 1119.985732 | T129: 39215.47861 | U129: 0.9394110382 | V129: 0.03241528636 | W129: 0.0002692229553 | X129: 0.9720955475 | Y129: 0.0269328002 | Z129: 6.926041005e-05 | AA129: 0.0009023919084 | AB129: 0.02708542163 | AC129: 0.00916945628 | AD129: 18.77198225 | AE129: 12.0175161 | AG129: 35327.36249 | AH129: 35327.36249 | AI129: 35230.99767 | AJ129: 59498.94 | AK129: 59498.94 | AL129: 2049.320636 | AM129: 6297.541364 | AN129: 6297.541364 | AO129: 9.489493496 | AP129: 42608.7816 | AQ129: 42608.7816 | AR129: 71.26363778 | AS129: 44203.19323 | AT129: 44203.19323 | AU129: 2.155387898 | AV129: 39215.47861 | AW129: Dominated
C130: 110 | D130: 1 | E130: 1 | F130: 0 | G130: G1_TN IE_SOF+DCV12 | H130: G1_TE IE_SOF+LED12 | I130: G1_TE IE_SOF+PR12 | J130: G1 TE IE_F4SVR | K130: DC_SVRG1 | L130: G1_TN IE_SOF+DCV12G1_TE IE_SOF+LED12G1_TE IE_SOF+PR12 | M130: 59143.58169 | N130: 886.6860701 | O130: 46.68769669 | P130: 36.18955913 | Q130: 1.112020025 | R130: 727.4967352 | S130: 1090.715285 | T130: 61932.46906 | U130: 0.9512312619 | V130: 0.02113917848 | W130: 0.0009015243696 | X130: 0.9732719648 | Y130: 0.02603883676 | Z130: 3.440170197e-05 | AA130: 0.0006547967658 | AB130: 0.0261118027 | AC130: 0.008874408374 | AD130: 18.77283377 | AE130: 12.01574835 | AG130: 59300.6102 | AH130: 59300.6102 | AI130: 59143.58169 | AJ130: 38979.99 | AK130: 38979.99 | AL130: 886.6860701 | AM130: 37435.08 | AN130: 37435.08 | AO130: 46.68769669 | AP130: 42608.7816 | AQ130: 42608.7816 | AR130: 36.18955913 | AS130: 44203.19323 | AT130: 44203.19323 | AU130: 1.112020025 | AV130: 61932.46906 | AW130: Dominated
C131: 110 | D131: 1 | E131: 1 | F131: 0 | G131: G1_TN IE_SOF+DCV12 | H131: G1_TE IE_SOF+LED12 | I131: G1_TE IE_SMV+PR12+48 | J131: G1 TE IE_F4SVR | K131: DC_SVRG1 | L131: G1_TN IE_SOF+DCV12G1_TE IE_SOF+LED12G1_TE IE_SMV+PR12+48 | M131: 59143.58169 | N131: 886.6860701 | O131: 49.99408523 | P131: 39.7452758 | Q131: 1.2161748 | R131: 727.6059641 | S131: 1095.327041 | T131: 61944.1563 | U131: 0.9512312619 | V131: 0.02113917848 | W131: 0.0007120735575 | X131: 0.973082514 | Y131: 0.02618827517 | Z131: 3.81250505e-05 | AA131: 0.0006910858217 | AB131: 0.02627016114 | AC131: 0.008921470607 | AD131: 18.772715 | AE131: 12.01532854 | AG131: 59300.6102 | AH131: 59300.6102 | AI131: 59143.58169 | AJ131: 38979.99 | AK131: 38979.99 | AL131: 886.6860701 | AM131: 40115.12015 | AN131: 40115.12015 | AO131: 49.99408523 | AP131: 42608.7816 | AQ131: 42608.7816 | AR131: 39.7452758 | AS131: 44203.19323 | AT131: 44203.19323 | AU131: 1.2161748 | AV131: 61944.1563 | AW131: Dominated
C132: 110 | D132: 1 | E132: 1 | F132: 0 | G132: G1_TN IE_SOF+DCV12 | H132: G1_TE IE_SOF+LED12 | I132: G1_TE IE_PR48 | J132: G1 TE IE_F4SVR | K132: DC_SVRG1 | L132: G1_TN IE_SOF+DCV12G1_TE IE_SOF+LED12G1_TE IE_PR48 | M132: 59143.58169 | N132: 886.6860701 | O132: 7.845220285 | P132: 53.28100214 | Q132: 1.614561654 | R132: 727.8316397 | S132: 1105.596559 | T132: 61926.43674 | U132: 0.9512312619 | V132: 0.02113917848 | W132: 0.0002236662394 | X132: 0.9725941066 | Y132: 0.02653108142 | Z132: 5.233828633e-05 | AA132: 0.0008224736477 | AB132: 0.02664706795 | AC132: 0.009025842554 | AD132: 18.77251829 | AE132: 12.01455431 | AG132: 59300.6102 | AH132: 59300.6102 | AI132: 59143.58169 | AJ132: 38979.99 | AK132: 38979.99 | AL132: 886.6860701 | AM132: 6297.541364 | AN132: 6297.541364 | AO132: 7.845220285 | AP132: 42608.7816 | AQ132: 42608.7816 | AR132: 53.28100214 | AS132: 44203.19323 | AT132: 44203.19323 | AU132: 1.614561654 | AV132: 61926.43674 | AW132: Dominated
C133: 110 | D133: 1 | E133: 1 | F133: 0 | G133: G1_TN IE_SOF+DCV12 | H133: G1_TE IE_SOF+LED12 | I133: G1_TE IE_3D+/-R12 | J133: G1 TE IE_F4SVR | K133: DC_SVRG1 | L133: G1_TN IE_SOF+DCV12G1_TE IE_SOF+LED12G1_TE IE_3D+/-R12 | M133: 59143.58169 | N133: 886.6860701 | O133: 44.01264365 | P133: 28.72355954 | Q133: 0.8918122835 | R133: 727.3612652 | S133: 1084.440814 | T133: 61915.69786 | U133: 0.9512312619 | V133: 0.02113917848 | W133: 0.001190890803 | X133: 0.9735613312 | Y133: 0.02583087991 | Z133: 2.655443879e-05 | AA133: 0.0005812344437 | AB133: 0.02588501782 | AC133: 0.008810510829 | AD133: 18.7729635 | AE133: 12.0162659 | AG133: 59300.6102 | AH133: 59300.6102 | AI133: 59143.58169 | AJ133: 38979.99 | AK133: 38979.99 | AL133: 886.6860701 | AM133: 35282.82166 | AN133: 35282.82166 | AO133: 44.01264365 | AP133: 42608.7816 | AQ133: 42608.7816 | AR133: 28.72355954 | AS133: 44203.19323 | AT133: 44203.19323 | AU133: 0.8918122835 | AV133: 61915.69786 | AW133: Dominated
C134: 110 | D134: 1 | E134: 1 | F134: 0 | G134: G1_TN IE_SOF+DCV12 | H134: G1_TE IE_SOF+PR12 | I134: G1_TE IE_SOF+LED12 | J134: G1 TE IE_F4SVR | K134: DC_SVRG1 | L134: G1_TN IE_SOF+DCV12G1_TE IE_SOF+PR12G1_TE IE_SOF+LED12 | M134: 59143.58169 | N134: 851.5436759 | O134: 233.3318775 | P134: 41.38424306 | Q134: 1.273584129 | R134: 730.9590958 | S134: 1094.660166 | T134: 62096.73433 | U134: 0.9512312619 | V134: 0.01631180451 | W134: 0.005611897848 | X134: 0.9731549643 | Y134: 0.02614351407 | Z134: 3.921121446e-05 | AA134: 0.0006623104261 | AB134: 0.02622624244 | AC134: 0.008915466867 | AD134: 18.77267218 | AE134: 12.01449616 | AG134: 59300.6102 | AH134: 59300.6102 | AI134: 59143.58169 | AJ134: 37435.08 | AK134: 37435.08 | AL134: 851.5436759 | AM134: 38979.99 | AN134: 38979.99 | AO134: 233.3318775 | AP134: 42608.7816 | AQ134: 42608.7816 | AR134: 41.38424306 | AS134: 44203.19323 | AT134: 44203.19323 | AU134: 1.273584129 | AV134: 62096.73433 | AW134: Dominated
C135: 110 | D135: 1 | E135: 1 | F135: 0 | G135: G1_TN IE_SOF+DCV12 | H135: G1_TE IE_SOF+PR12 | I135: G1_TE IE_SMV+PR12+48 | J135: G1 TE IE_F4SVR | K135: DC_SVRG1 | L135: G1_TN IE_SOF+DCV12G1_TE IE_SOF+PR12G1_TE IE_SMV+PR12+48 | M135: 59143.58169 | N135: 851.5436759 | O135: 239.9201788 | P135: 91.6050675 | Q135: 2.743439001 | R135: 732.0521157 | S135: 1144.475416 | T135: 62205.92158 | U135: 0.9512312619 | V135: 0.01631180451 | W135: 0.003427307115 | X135: 0.9709703736 | Y135: 0.02778339891 | Z135: 9.167893038e-05 | AA135: 0.001154548604 | AB135: 0.0279923828 | AC135: 0.009426127002 | AD135: 18.77157657 | AE135: 12.01009087 | AG135: 59300.6102 | AH135: 59300.6102 | AI135: 59143.58169 | AJ135: 37435.08 | AK135: 37435.08 | AL135: 851.5436759 | AM135: 40115.12015 | AN135: 40115.12015 | AO135: 239.9201788 | AP135: 42608.7816 | AQ135: 42608.7816 | AR135: 91.6050675 | AS135: 44203.19323 | AT135: 44203.19323 | AU135: 2.743439001 | AV135: 62205.92158 | AW135: Dominated
C136: 110 | D136: 1 | E136: 1 | F136: 0 | G136: G1_TN IE_SOF+DCV12 | H136: G1_TE IE_SOF+PR12 | I136: G1_TE IE_3D+/-R12 | J136: G1 TE IE_F4SVR | K136: DC_SVRG1 | L136: G1_TN IE_SOF+DCV12G1_TE IE_SOF+PR12G1_TE IE_3D+/-R12 | M136: 59143.58169 | N136: 851.5436759 | O136: 211.2358063 | P136: 38.76003417 | Q136: 1.195892557 | R136: 730.8696661 | S136: 1092.424099 | T136: 62069.61086 | U136: 0.9512312619 | V136: 0.01631180451 | W136: 0.005715469679 | X136: 0.9732585361 | Y136: 0.026070008 | Z136: 3.644194757e-05 | AA136: 0.0006350139365 | AB136: 0.02614611741 | AC136: 0.008892999647 | AD136: 18.77272048 | AE136: 12.01459528 | AG136: 59300.6102 | AH136: 59300.6102 | AI136: 59143.58169 | AJ136: 37435.08 | AK136: 37435.08 | AL136: 851.5436759 | AM136: 35282.82166 | AN136: 35282.82166 | AO136: 211.2358063 | AP136: 42608.7816 | AQ136: 42608.7816 | AR136: 38.76003417 | AS136: 44203.19323 | AT136: 44203.19323 | AU136: 1.195892557 | AV136: 62069.61086 | AW136: Dominated
C137: 110 | D137: 1 | E137: 1 | F137: 0 | G137: G1_TN IE_SOF+DCV12 | H137: G1_TE IE_SMV+PR12+48 | I137: G1_TE IE_SOF+LED12 | J137: G1 TE IE_F4SVR | K137: DC_SVRG1 | L137: G1_TN IE_SOF+DCV12G1_TE IE_SMV+PR12+48G1_TE IE_SOF+LED12 | M137: 59143.58169 | N137: 911.6893756 | O137: 297.3518477 | P137: 70.30651115 | Q137: 2.156448102 | R137: 733.5531147 | S137: 1147.747079 | T137: 62306.38607 | U137: 0.9512312619 | V137: 0.01289261746 | W137: 0.007334607155 | X137: 0.9714584865 | Y137: 0.02771405262 | Z137: 6.680308826e-05 | AA137: 0.0007606577494 | AB137: 0.02785457443 | AC137: 0.009463419196 | AD137: 18.77078605 | AE137: 12.00879861 | AG137: 59300.6102 | AH137: 59300.6102 | AI137: 59143.58169 | AJ137: 40115.12015 | AK137: 40115.12015 | AL137: 911.6893756 | AM137: 38979.99 | AN137: 38979.99 | AO137: 297.3518477 | AP137: 42608.7816 | AQ137: 42608.7816 | AR137: 70.30651115 | AS137: 44203.19323 | AT137: 44203.19323 | AU137: 2.156448102 | AV137: 62306.38607 | AW137: Dominated
C138: 110 | D138: 1 | E138: 1 | F138: 0 | G138: G1_TN IE_SOF+DCV12 | H138: G1_TE IE_SMV+PR12+48 | I138: G1_TE IE_SOF+PR12 | J138: G1 TE IE_F4SVR | K138: DC_SVRG1 | L138: G1_TN IE_SOF+DCV12G1_TE IE_SMV+PR12+48G1_TE IE_SOF+PR12 | M138: 59143.58169 | N138: 911.6893756 | O138: 285.5667795 | P138: 111.8093216 | Q138: 3.3631648 | R138: 734.2520072 | S138: 1182.761896 | T138: 62373.02424 | U138: 0.9512312619 | V138: 0.01289261746 | W138: 0.005656787878 | X138: 0.9697806673 | Y138: 0.02890541203 | Z138: 0.0001106571821 | AA138: 0.001203263523 | AB138: 0.02915323299 | AC138: 0.009822071441 | AD138: 18.77016985 | AE138: 12.00586061 | AG138: 59300.6102 | AH138: 59300.6102 | AI138: 59143.58169 | AJ138: 40115.12015 | AK138: 40115.12015 | AL138: 911.6893756 | AM138: 37435.08 | AN138: 37435.08 | AO138: 285.5667795 | AP138: 42608.7816 | AQ138: 42608.7816 | AR138: 111.8093216 | AS138: 44203.19323 | AT138: 44203.19323 | AU138: 3.3631648 | AV138: 62373.02424 | AW138: Dominated
C139: 110 | D139: 1 | E139: 1 | F139: 0 | G139: G1_TN IE_SOF+DCV12 | H139: G1_TE IE_SMV+PR12+48 | I139: G1_TE IE_3D+/-R12 | J139: G1 TE IE_F4SVR | K139: DC_SVRG1 | L139: G1_TN IE_SOF+DCV12G1_TE IE_SMV+PR12+48G1_TE IE_3D+/-R12 | M139: 59143.58169 | N139: 911.6893756 | O139: 269.1979084 | P139: 66.99041169 | Q139: 2.058904497 | R139: 733.4396143 | S139: 1144.87511 | T139: 62271.83302 | U139: 0.9512312619 | V139: 0.01289261746 | W139: 0.007472700596 | X139: 0.97159658 | Y139: 0.02761806077 | Z139: 6.325997484e-05 | AA139: 0.0007220992741 | AB139: 0.02774998292 | AC139: 0.009434674016 | AD139: 18.770841 | AE139: 12.00892323 | AG139: 59300.6102 | AH139: 59300.6102 | AI139: 59143.58169 | AJ139: 40115.12015 | AK139: 40115.12015 | AL139: 911.6893756 | AM139: 35282.82166 | AN139: 35282.82166 | AO139: 269.1979084 | AP139: 42608.7816 | AQ139: 42608.7816 | AR139: 66.99041169 | AS139: 44203.19323 | AT139: 44203.19323 | AU139: 2.058904497 | AV139: 62271.83302 | AW139: Dominated
C140: 110 | D140: 1 | E140: 1 | F140: 0 | G140: G1_TN IE_SOF+DCV12 | H140: G1_TE IE_PR48 | I140: G1_TE IE_SOF+LED12 | J140: G1 TE IE_F4SVR | K140: DC_SVRG1 | L140: G1_TN IE_SOF+DCV12G1_TE IE_PR48G1_TE IE_SOF+LED12 | M140: 59143.58169 | N140: 143.1286218 | O140: 627.2921132 | P140: 119.3420508 | Q140: 3.644315654 | R140: 740.3620805 | S140: 1166.088654 | T140: 61943.43953 | U140: 0.9512312619 | V140: 0.004062190164 | W140: 0.01547749774 | X140: 0.9707709498 | Y140: 0.02818297865 | Z140: 0.0001142151935 | AA140: 0.0009318563195 | AB140: 0.0284254471 | AC140: 0.009648994877 | AD140: 18.77021055 | AE140: 12.00712057 | AG140: 59300.6102 | AH140: 59300.6102 | AI140: 59143.58169 | AJ140: 6297.541364 | AK140: 6297.541364 | AL140: 143.1286218 | AM140: 38979.99 | AN140: 38979.99 | AO140: 627.2921132 | AP140: 42608.7816 | AQ140: 42608.7816 | AR140: 119.3420508 | AS140: 44203.19323 | AT140: 44203.19323 | AU140: 3.644315654 | AV140: 61943.43953 | AW140: Dominated
C141: 110 | D141: 1 | E141: 1 | F141: 0 | G141: G1_TN IE_SOF+DCV12 | H141: G1_TE IE_PR48 | I141: G1_TE IE_SOF+PR12 | J141: G1 TE IE_F4SVR | K141: DC_SVRG1 | L141: G1_TN IE_SOF+DCV12G1_TE IE_PR48G1_TE IE_SOF+PR12 | M141: 59143.58169 | N141: 143.1286218 | O141: 602.4303865 | P141: 206.771625 | Q141: 6.181527494 | R141: 741.8351216 | S141: 1239.949287 | T141: 62083.87826 | U141: 0.9512312619 | V141: 0.004062190164 | W141: 0.01193860326 | X141: 0.9672320554 | Y141: 0.03069446335 | Z141: 0.000206436359 | AA141: 0.001867044934 | AB141: 0.03116272751 | AC141: 0.01040435949 | AD141: 18.76890067 | AE141: 12.00093151 | AG141: 59300.6102 | AH141: 59300.6102 | AI141: 59143.58169 | AJ141: 6297.541364 | AK141: 6297.541364 | AL141: 143.1286218 | AM141: 37435.08 | AN141: 37435.08 | AO141: 602.4303865 | AP141: 42608.7816 | AQ141: 42608.7816 | AR141: 206.771625 | AS141: 44203.19323 | AT141: 44203.19323 | AU141: 6.181527494 | AV141: 62083.87826 | AW141: Dominated
C142: 110 | D142: 1 | E142: 1 | F142: 0 | G142: G1_TN IE_SOF+DCV12 | H142: G1_TE IE_PR48 | I142: G1_TE IE_SMV+PR12+48 | J142: G1 TE IE_F4SVR | K142: DC_SVRG1 | L142: G1_TN IE_SOF+DCV12G1_TE IE_PR48G1_TE IE_SMV+PR12+48 | M142: 59143.58169 | N142: 143.1286218 | O142: 645.0257806 | P142: 252.124543 | Q142: 7.494462514 | R142: 743.2715749 | S142: 1298.348611 | T142: 62232.97529 | U142: 0.9512312619 | V142: 0.004062190164 | W142: 0.009462214779 | X142: 0.9647556669 | Y142: 0.03262249929 | Z142: 0.0002543173852 | AA142: 0.002367516448 | AB142: 0.03320766149 | AC142: 0.0110019812 | AD142: 18.76758708 | AE142: 11.99574412 | AG142: 59300.6102 | AH142: 59300.6102 | AI142: 59143.58169 | AJ142: 6297.541364 | AK142: 6297.541364 | AL142: 143.1286218 | AM142: 40115.12015 | AN142: 40115.12015 | AO142: 645.0257806 | AP142: 42608.7816 | AQ142: 42608.7816 | AR142: 252.124543 | AS142: 44203.19323 | AT142: 44203.19323 | AU142: 7.494462514 | AV142: 62232.97529 | AW142: Dominated
C143: 110 | D143: 1 | E143: 1 | F143: 0 | G143: G1_TN IE_SOF+DCV12 | H143: G1_TE IE_PR48 | I143: G1_TE IE_3D+/-R12 | J143: G1 TE IE_F4SVR | K143: DC_SVRG1 | L143: G1_TN IE_SOF+DCV12G1_TE IE_PR48G1_TE IE_3D+/-R12 | M143: 59143.58169 | N143: 143.1286218 | O143: 567.8871896 | P143: 112.3959495 | Q143: 3.439383054 | R143: 740.1233709 | S143: 1160.102844 | T143: 61870.65905 | U143: 0.9512312619 | V143: 0.004062190164 | W143: 0.0157655554 | X143: 0.9710590075 | Y143: 0.02798217124 | Z143: 0.0001067675675 | AA143: 0.0008520537014 | AB143: 0.02820657136 | AC143: 0.009589003505 | AD143: 18.77032575 | AE143: 12.0073773 | AG143: 59300.6102 | AH143: 59300.6102 | AI143: 59143.58169 | AJ143: 6297.541364 | AK143: 6297.541364 | AL143: 143.1286218 | AM143: 35282.82166 | AN143: 35282.82166 | AO143: 567.8871896 | AP143: 42608.7816 | AQ143: 42608.7816 | AR143: 112.3959495 | AS143: 44203.19323 | AT143: 44203.19323 | AU143: 3.439383054 | AV143: 61870.65905 | AW143: Dominated
C144: 110 | D144: 1 | E144: 1 | F144: 0 | G144: G1_TN IE_SOF+DCV12 | H144: G1_TE IE_3D+/-R12 | I144: G1_TE IE_SOF+LED12 | J144: G1 TE IE_F4SVR | K144: DC_SVRG1 | L144: G1_TN IE_SOF+DCV12G1_TE IE_3D+/-R12G1_TE IE_SOF+LED12 | M144: 59143.58169 | N144: 802.7202114 | O144: 33.64471042 | P144: 28.30736484 | Q144: 0.8786217629 | R144: 726.9170768 | S144: 1084.126172 | T144: 61820.17585 | U144: 0.9512312619 | V144: 0.02153039521 | W144: 0.0008089927094 | X144: 0.9735706498 | Y144: 0.02582255374 | Z144: 2.616193235e-05 | AA144: 0.0005806344803 | AB144: 0.0258759067 | AC144: 0.00880725393 | AD144: 18.77297749 | AE144: 12.01604489 | AG144: 59300.6102 | AH144: 59300.6102 | AI144: 59143.58169 | AJ144: 35282.82166 | AK144: 35282.82166 | AL144: 802.7202114 | AM144: 38979.99 | AN144: 38979.99 | AO144: 33.64471042 | AP144: 42608.7816 | AQ144: 42608.7816 | AR144: 28.30736484 | AS144: 44203.19323 | AT144: 44203.19323 | AU144: 0.8786217629 | AV144: 61820.17585 | AW144: Dominated
C145: 110 | D145: 1 | E145: 1 | F145: 0 | G145: G1_TN IE_SOF+DCV12 | H145: G1_TE IE_3D+/-R12 | I145: G1_TE IE_SOF+PR12 | J145: G1 TE IE_F4SVR | K145: DC_SVRG1 | L145: G1_TN IE_SOF+DCV12G1_TE IE_3D+/-R12G1_TE IE_SOF+PR12 | M145: 59143.58169 | N145: 802.7202114 | O145: 32.31125576 | P145: 33.14915555 | Q145: 1.021137933 | R145: 726.9986998 | S145: 1088.164576 | T145: 61827.94673 | U145: 0.9512312619 | V145: 0.02153039521 | W145: 0.0006231981067 | X145: 0.9733848552 | Y145: 0.02595700451 | Z145: 3.123992864e-05 | AA145: 0.0006269003128 | AB145: 0.02602256655 | AC145: 0.008848684256 | AD145: 18.77289606 | AE145: 12.01569856 | AG145: 59300.6102 | AH145: =VLOOKUP(G145,F3_treat_duration,17,FALSE) -> 59300.6102 | AI145: 59143.58169 | AJ145: 35282.82166 | AK145: =IF(H145="",0,VLOOKUP(H145,F3_treat_duration,17,FALSE)) -> 35282.82166 | AL145: 802.7202114 | AM145: 37435.08 | AN145: =IF(I145="",0,VLOOKUP(I145,F3_treat_duration,17,FALSE)) -> 37435.08 | AO145: 32.31125576 | AP145: =VLOOKUP(J145,F4_treatments,2,FALSE) -> 42608.7816 | AQ145: =VLOOKUP(J145,F4_treatments,3,FALSE) -> 42608.7816 | AR145: 33.14915555 | AS145: =VLOOKUP(K145,DC_treatments,2,FALSE) -> 44203.19323 | AT145: =VLOOKUP(K145,DC_treatments,3,FALSE) -> 44203.19323 | AU145: 1.021137933 | AV145: 61827.94673 | AW145: Dominated
C146: 110 | D146: 1 | E146: 1 | F146: 0 | G146: G1_TN IE_SOF+DCV12 | H146: G1_TE IE_3D+/-R12 | I146: G1_TE IE_SMV+PR12+48 | J146: G1 TE IE_F4SVR | K146: DC_SVRG1 | L146: G1_TN IE_SOF+DCV12G1_TE IE_3D+/-R12G1_TE IE_SMV+PR12+48 | M146: 59143.58169 | N146: 802.7202114 | O146: 34.58588375 | P146: 35.60224643 | Q146: 1.092593084 | R146: 727.0758261 | S146: 1091.33219 | T146: 61835.99064 | U146: 0.9512312619 | V146: 0.02153039521 | W146: 0.000493358665 | X146: 0.9732550158 | Y146: 0.02606033005 | Z146: 3.379505584e-05 | AA146: 0.0006508590944 | AB146: 0.02613203308 | AC146: 0.008881240197 | AD146: 18.77281534 | AE146: 12.01540821 | AG146: =VLOOKUP(G146,F3_treat_duration,13,FALSE) -> 59300.6102 | AH146: 59300.6102 | AI146: =IF(AG146=0,0,AH146*M146/AG146) -> 59143.58169 | AJ146: =IF(H146="",0,VLOOKUP(H146,F3_treat_duration,13,FALSE)) -> 35282.82166 | AK146: 35282.82166 | AL146: =IF(AJ146=0,0,AK146*N146/AJ146) -> 802.7202114 | AM146: =IF(I146="",0,VLOOKUP(I146,F3_treat_duration,13,FALSE)) -> 40115.12015 | AN146: 40115.12015 | AO146: =IF(AM146=0,0,AN146*O146/AM146) -> 34.58588375 | AP146: 42608.7816 | AQ146: 42608.7816 | AR146: =AQ146*P146/AP146 -> 35.60224643 | AS146: 44203.19323 | AT146: 44203.19323 | AU146: =AT146*Q146/AS146 -> 1.092593084 | AV146: =T146-SUM(M146:Q146)+SUM(AI146,AL146,AO146,AR146,AU146) -> 61835.99064 | AW146: Dominated
C147: 110 | D147: 1 | E147: 1 | F147: 0 | G147: G1_TN IE_SOF+DCV12 | H147: G1_TE IE_3D+/-R12 | I147: G1_TE IE_PR48 | J147: G1 TE IE_F4SVR | K147: DC_SVRG1 | L147: G1_TN IE_SOF+DCV12G1_TE IE_3D+/-R12G1_TE IE_PR48 | M147: 59143.58169 | N147: 802.7202114 | O147: 5.428410928 | P147: 45.05529349 | Q147: 1.369416107 | R147: 727.2329838 | S147: 1098.46402 | T147: 61823.85203 | U147: 0.9512312619 | V147: 0.02153039521 | W147: 0.000154915559 | X147: 0.9729165727 | Y147: 0.02629920269 | Z147: 4.366803187e-05 | AA147: 0.0007405565792 | AB147: 0.02639465566 | AC147: 0.008954143889 | AD147: 18.77268094 | AE147: 12.01486752 | AG147: 59300.6102 | AH147: 59300.6102 | AI147: 59143.58169 | AJ147: 35282.82166 | AK147: 35282.82166 | AL147: 802.7202114 | AM147: 6297.541364 | AN147: 6297.541364 | AO147: 5.428410928 | AP147: 42608.7816 | AQ147: 42608.7816 | AR147: 45.05529349 | AS147: 44203.19323 | AT147: 44203.19323 | AU147: 1.369416107 | AV147: 61823.85203 | AW147: Dominated
C148: =D148&E148&F148 -> 100 | D148: 1 | E148: 0 | F148: 0 | G148: NT | J148: G1 TN III_F4SVR | K148: DC_SVRG1 | L148: =G148&H148&I148 -> NT | M148: 0 | N148: 0 | O148: 0 | P148: 24070.57816 | Q148: 98.1672618 | R148: 428.5763223 | S148: 21638.31279 | T148: 46235.63454 | U148: 0 | V148: 0 | W148: 0 | X148: 0 | Y148: 0.7871623951 | Z148: 0.003444571771 | AA148: 0.2093930331 | AB148: 0.7953550166 | AC148: 0.2164023905 | AD148: 18.36289358 | AE148: 10.44060793 | AG148: 0 | AH148: 0 | AI148: 0 | AJ148: 0 | AK148: 0 | AL148: 0 | AM148: 0 | AN148: 0 | AO148: 0 | AP148: 39751.16954 | AQ148: 39751.16954 | AR148: 24070.57816 | AS148: 44203.19323 | AT148: 44203.19323 | AU148: 98.1672618 | AV148: 46235.63454 | AW148: Dominated
C149: 100 | D149: 1 | E149: 0 | F149: 0 | G149: G1_TN III_SOF+LED8 | J149: G1 TE III_F4SVR | K149: DC_SVRG1 | L149: G1_TN III_SOF+LED8 | M149: 25917.98336 | N149: 0 | O149: 0 | P149: 1646.571124 | Q149: 12.27562611 | R149: 481.9945846 | S149: 2159.148026 | T149: 30217.97272 | U149: 0.9189196413 | V149: 0 | W149: 0 | X149: 0.9189196413 | Y149: 0.06647715796 | Z149: 0.000430430326 | AA149: 0.01417277044 | AB149: 0.06750132687 | AC149: 0.01955001162 | AD149: 18.75658611 | AE149: 11.95240876 | AG149: 25986.66 | AH149: 25986.66 | AI149: 25917.98336 | AJ149: 0 | AK149: 0 | AL149: 0 | AM149: 0 | AN149: 0 | AO149: 0 | AP149: 43554.76528 | AQ149: 43554.76528 | AR149: 1646.571124 | AS149: 44203.19323 | AT149: 44203.19323 | AU149: 12.27562611 | AV149: 30217.97272 | AW149: Dominated
C150: =D150&E150&F150 -> 100 | D150: 1 | E150: 0 | F150: 0 | G150: G1_TN III_SOF+RBV24 | J150: G1 TE III_F4SVR | K150: DC_SVRG1 | L150: G1_TN III_SOF+RBV24 | M150: 65775.41018 | N150: 0 | O150: 0 | P150: 8310.150187 | Q150: 62.03971441 | R150: 942.7588817 | S150: 8363.293424 | T150: 83453.65239 | U150: 0.6391343204 | V150: 0 | W150: 0 | X150: 0.6391343204 | Y150: 0.2881754647 | Z150: 0.002176400148 | AA150: 0.07051381471 | AB150: 0.2933523773 | AC150: 0.08264707417 | AD150: 18.61679882 | AE150: 11.43405751 | AG150: 65902.98 | AH150: 65902.98 | AI150: 65775.41018 | AJ150: 0 | AK150: 0 | AL150: 0 | AM150: 0 | AN150: 0 | AO150: 0 | AP150: 43554.76528 | AQ150: 43554.76528 | AR150: 8310.150187 | AS150: 44203.19323 | AT150: 44203.19323 | AU150: 62.03971441 | AV150: 83453.65239 | AW150: Dominated
C151: 100 | D151: 1 | E151: 0 | F151: 0 | G151: G1_TN III_3D+/-R12 | J151: G1 TE III_F4SVR | K151: DC_SVRG1 | L151: G1_TN III_3D+/-R12 | M151: 35240.17605 | N151: 0 | O151: 0 | P151: 906.125563 | Q151: 6.744244989 | R151: 720.8637874 | S151: 1803.536171 | T151: 38677.44581 | U151: 0.9394294807 | V151: 0 | W151: 0 | X151: 0.9394294807 | Y151: 0.05219257614 | Z151: 0.0002366098439 | AA151: 0.008141333338 | AB151: 0.05275574659 | AC151: 0.0160705943 | AD151: 18.75896496 | AE151: 11.966105 | AG151: 35327.36249 | AH151: 35327.36249 | AI151: 35240.17605 | AJ151: 0 | AK151: 0 | AL151: 0 | AM151: 0 | AN151: 0 | AO151: 0 | AP151: 43554.76528 | AQ151: 43554.76528 | AR151: 906.125563 | AS151: 44203.19323 | AT151: 44203.19323 | AU151: 6.744244989 | AV151: 38677.44581 | AW151: Dominated
C152: 100 | D152: 1 | E152: 0 | F152: 0 | G152: G1_TN III_SOF+DCV12 | J152: G1 TE III_F4SVR | K152: DC_SVRG1 | L152: G1_TN III_SOF+DCV12 | M152: 59137.14671 | N152: 0 | O152: 0 | P152: 581.4725042 | Q152: 4.363743881 | R152: 719.5414142 | S152: 1537.272836 | T152: 61979.79721 | U152: 0.9518888207 | V152: 0 | W152: 0 | X152: 0.9518888207 | Y152: 0.04254387994 | Z152: 0.0001532954809 | AA152: 0.005414003876 | AB152: 0.04291040604 | AC152: 0.01335898465 | AD152: 18.76406094 | AE152: 11.98154605 | AG152: 59300.6102 | AH152: 59300.6102 | AI152: 59137.14671 | AJ152: 0 | AK152: 0 | AL152: 0 | AM152: 0 | AN152: 0 | AO152: 0 | AP152: 43554.76528 | AQ152: 43554.76528 | AR152: 581.4725042 | AS152: 44203.19323 | AT152: 44203.19323 | AU152: 4.363743881 | AV152: 61979.79721 | AW152: Dominated
C153: 100 | D153: 1 | E153: 0 | F153: 0 | G153: G1_TN III_SOF+LED8 | H153: G1_TE III_SOF+RBV24 | J153: G1 TE III_F4SVR | K153: DC_SVRG1 | L153: G1_TN III_SOF+LED8G1_TE III_SOF+RBV24 | M153: 25917.98336 | N153: 4164.230493 | O153: 0 | P153: 664.1357336 | Q153: 4.994931653 | R153: 516.1439026 | S153: 1383.388138 | T153: 32650.87655 | U153: 0.9189196413 | V153: 0.0371685005 | W153: 0 | X153: 0.9560881418 | Y153: 0.03798133773 | Z153: 0.0001740914902 | AA153: 0.005756429003 | AB153: 0.03839290629 | AC153: 0.01172841598 | AD153: 18.77140844 | AE153: 12.00942664 | AG153: 25986.66 | AH153: 25986.66 | AI153: 25917.98336 | AJ153: 65902.98 | AK153: 65902.98 | AL153: 4164.230493 | AM153: 0 | AN153: 0 | AO153: 0 | AP153: 43554.76528 | AQ153: 43554.76528 | AR153: 664.1357336 | AS153: 44203.19323 | AT153: 44203.19323 | AU153: 4.994931653 | AV153: 32650.87655 | AW153: Dominated
C154: 100 | D154: 1 | E154: 0 | F154: 0 | G154: G1_TN III_SOF+LED8 | H154: G1_TE III_3D+/-R12 | J154: G1 TE III_F4SVR | K154: DC_SVRG1 | L154: G1_TN III_SOF+LED8G1_TE III_3D+/-R12 | M154: 25917.98336 | N154: 2229.910757 | O154: 0 | P154: 110.4798621 | Q154: 0.8396118043 | R154: 500.6070231 | S154: 900.7818828 | T154: 29660.60249 | U154: 0.9189196413 | V154: 0.05962713197 | W154: 0 | X154: 0.9785467732 | Y154: 0.02047886919 | Z154: 2.745793322e-05 | AA154: 0.0009468996304 | AB154: 0.02054051123 | AC154: 0.006859484396 | AD154: 18.78143115 | AE154: 12.04802248 | AG154: 25986.66 | AH154: 25986.66 | AI154: 25917.98336 | AJ154: 35282.82166 | AK154: 35282.82166 | AL154: 2229.910757 | AM154: 0 | AN154: 0 | AO154: 0 | AP154: 43554.76528 | AQ154: 43554.76528 | AR154: 110.4798621 | AS154: 44203.19323 | AT154: 44203.19323 | AU154: 0.8396118043 | AV154: 29660.60249
C155: 100 | D155: 1 | E155: 0 | F155: 0 | G155: G1_TN III_SOF+LED8 | H155: G1_TE III_SOF+DCV12 | J155: G1 TE III_F4SVR | K155: DC_SVRG1 | L155: G1_TN III_SOF+LED8G1_TE III_SOF+DCV12 | M155: 25917.98336 | N155: 3760.299449 | O155: 0 | P155: 121.3298116 | Q155: 0.9261671397 | R155: 501.2756521 | S155: 909.5903044 | T155: 31211.40474 | U155: 0.9189196413 | V155: 0.05921806874 | W155: 0 | X155: 0.97813771 | Y155: 0.02079832225 | Z155: 3.048948771e-05 | AA155: 0.001033478244 | AB155: 0.02086736046 | AC155: 0.006944113085 | AD155: 18.78126347 | AE155: 12.04705969 | AG155: 25986.66 | AH155: 25986.66 | AI155: 25917.98336 | AJ155: 59498.94 | AK155: 59498.94 | AL155: 3760.299449 | AM155: 0 | AN155: 0 | AO155: 0 | AP155: 43554.76528 | AQ155: 43554.76528 | AR155: 121.3298116 | AS155: 44203.19323 | AT155: 44203.19323 | AU155: 0.9261671397 | AV155: 31211.40474 | AW155: Dominated
C156: 100 | D156: 1 | E156: 0 | F156: 0 | G156: G1_TN III_SOF+RBV24 | H156: G1_TE III_SOF+LED12 | J156: G1 TE III_F4SVR | K156: DC_SVRG1 | L156: G1_TN III_SOF+RBV24G1_TE III_SOF+LED12 | M156: 65775.41018 | N156: 11896.6795 | O156: 0 | P156: 1098.560526 | Q156: 8.433109459 | R156: 1038.540851 | S156: 2424.314629 | T156: 82241.93879 | U156: 0.6391343204 | V156: 0.2863689246 | W156: 0 | X156: 0.925503245 | Y156: 0.06897434931 | Z156: 0.0002694541742 | AA156: 0.00525295151 | AB156: 0.06956351301 | AC156: 0.0226557868 | AD156: 18.72743412 | AE156: 11.88413622 | AG156: 65902.98 | AH156: 65902.98 | AI156: 65775.41018 | AJ156: 38979.99 | AK156: 38979.99 | AL156: 11896.6795 | AM156: 0 | AN156: 0 | AO156: 0 | AP156: 43554.76528 | AQ156: 43554.76528 | AR156: 1098.560526 | AS156: 44203.19323 | AT156: 44203.19323 | AU156: 8.433109459 | AV156: 82241.93879 | AW156: Dominated
C157: 100 | D157: 1 | E157: 0 | F157: 0 | G157: G1_TN III_SOF+RBV24 | H157: G1_TE III_3D+/-R12 | J157: G1 TE III_F4SVR | K157: DC_SVRG1 | L157: G1_TN III_SOF+RBV24G1_TE III_3D+/-R12 | M157: 65775.41018 | N157: 10768.74229 | O157: 0 | P157: 970.495456 | Q157: 7.491842117 | R157: 1034.044626 | S157: 2318.601444 | T157: 80874.78584 | U157: 0.6391343204 | V157: 0.2914286391 | W157: 0 | X157: 0.9305629595 | Y157: 0.06507928385 | Z157: 0.0002359387697 | AA157: 0.004121817921 | AB157: 0.06558749154 | AC157: 0.02158334794 | AD157: 18.729497 | AE157: 11.88842067 | AG157: 65902.98 | AH157: 65902.98 | AI157: 65775.41018 | AJ157: 35282.82166 | AK157: 35282.82166 | AL157: 10768.74229 | AM157: 0 | AN157: 0 | AO157: 0 | AP157: 43554.76528 | AQ157: 43554.76528 | AR157: 970.495456 | AS157: 44203.19323 | AT157: 44203.19323 | AU157: 7.491842117 | AV157: 80874.78584 | AW157: Dominated
C158: 100 | D158: 1 | E158: 0 | F158: 0 | G158: G1_TN III_SOF+RBV24 | H158: G1_TE III_SOF+DCV12 | J158: G1 TE III_F4SVR | K158: DC_SVRG1 | L158: G1_TN III_SOF+RBV24G1_TE III_SOF+DCV12 | M158: 65775.41018 | N158: 18159.05596 | O158: 0 | P158: 1023.667541 | Q158: 7.905851725 | R158: 1037.284667 | S158: 2361.722065 | T158: 88365.04626 | U158: 0.6391343204 | V158: 0.2893821561 | W158: 0 | X158: 0.9285164765 | Y158: 0.06666505126 | Z158: 0.0002505532959 | AA158: 0.004567918968 | AB158: 0.06720941712 | AC158: 0.0219986948 | AD158: 18.7287076 | AE158: 11.88372452 | AG158: 65902.98 | AH158: 65902.98 | AI158: 65775.41018 | AJ158: 59498.94 | AK158: 59498.94 | AL158: 18159.05596 | AM158: 0 | AN158: 0 | AO158: 0 | AP158: 43554.76528 | AQ158: 43554.76528 | AR158: 1023.667541 | AS158: 44203.19323 | AT158: 44203.19323 | AU158: 7.905851725 | AV158: 88365.04626 | AW158: Dominated
C159: 100 | D159: 1 | E159: 0 | F159: 0 | G159: G1_TN III_3D+/-R12 | H159: G1_TE III_SOF+LED12 | J159: G1 TE III_F4SVR | K159: DC_SVRG1 | L159: G1_TN III_3D+/-R12G1_TE III_SOF+LED12 | M159: 35240.17605 | N159: 1341.875589 | O159: 0 | P159: 86.71098453 | Q159: 0.6583842502 | R159: 731.567692 | S159: 1130.601427 | T159: 38531.59012 | U159: 0.9394294807 | V159: 0.03202104337 | W159: 0 | X159: 0.971450524 | Y159: 0.02754505361 | Z159: 2.154628402e-05 | AA159: 0.0009828760597 | AB159: 0.02759341979 | AC159: 0.009278346781 | AD159: 18.7719507 | AE159: 12.01744545 | AG159: 35327.36249 | AH159: 35327.36249 | AI159: 35240.17605 | AJ159: 38979.99 | AK159: 38979.99 | AL159: 1341.875589 | AM159: 0 | AN159: 0 | AO159: 0 | AP159: 43554.76528 | AQ159: 43554.76528 | AR159: 86.71098453 | AS159: 44203.19323 | AT159: 44203.19323 | AU159: 0.6583842502 | AV159: 38531.59012 | AW159: Dominated
C160: 100 | D160: 1 | E160: 0 | F160: 0 | G160: G1_TN III_3D+/-R12 | H160: G1_TE III_SOF+RBV24 | J160: G1 TE III_F4SVR | K160: DC_SVRG1 | L160: G1_TN III_3D+/-R12G1_TE III_SOF+RBV24 | M160: 35240.17605 | N160: 2268.829431 | O160: 0 | P160: 374.1148525 | Q160: 2.814293504 | R160: 739.5128576 | S160: 1381.978745 | T160: 40007.42623 | U160: 0.9394294807 | V160: 0.02028018802 | W160: 0 | X160: 0.9597096687 | Y160: 0.03668233574 | Z160: 9.7813148e-05 | AA160: 0.003510182418 | AB160: 0.03691303273 | AC160: 0.01181660293 | AD160: 18.76686147 | AE160: 11.99695108 | AG160: 35327.36249 | AH160: 35327.36249 | AI160: 35240.17605 | AJ160: 65902.98 | AK160: 65902.98 | AL160: 2268.829431 | AM160: 0 | AN160: 0 | AO160: 0 | AP160: 43554.76528 | AQ160: 43554.76528 | AR160: 374.1148525 | AS160: 44203.19323 | AT160: 44203.19323 | AU160: 2.814293504 | AV160: 40007.42623 | AW160: Dominated
C161: 100 | D161: 1 | E161: 0 | F161: 0 | G161: G1_TN III_3D+/-R12 | H161: G1_TE III_SOF+DCV12 | J161: G1 TE III_F4SVR | K161: DC_SVRG1 | L161: G1_TN III_3D+/-R12G1_TE III_SOF+DCV12 | M161: 35240.17605 | N161: 2048.23488 | O161: 0 | P161: 78.34528563 | Q161: 0.5989463983 | R161: 731.4272065 | S161: 1123.545422 | T161: 39222.32779 | U161: 0.9394294807 | V161: 0.03235480427 | W161: 0 | X161: 0.9717842849 | Y161: 0.02728936114 | Z161: 1.942884354e-05 | AA161: 0.0009069250683 | AB161: 0.02733275144 | AC161: 0.009205067003 | AD161: 18.7721135 | AE161: 12.01738734 | AG161: 35327.36249 | AH161: 35327.36249 | AI161: 35240.17605 | AJ161: 59498.94 | AK161: 59498.94 | AL161: 2048.23488 | AM161: 0 | AN161: 0 | AO161: 0 | AP161: 43554.76528 | AQ161: 43554.76528 | AR161: 78.34528563 | AS161: 44203.19323 | AT161: 44203.19323 | AU161: 0.5989463983 | AV161: 39222.32779 | AW161: Dominated
C162: 100 | D162: 1 | E162: 0 | F162: 0 | G162: G1_TN III_SOF+DCV12 | H162: G1_TE III_SOF+LED12 | J162: G1 TE III_F4SVR | K162: DC_SVRG1 | L162: G1_TN III_SOF+DCV12G1_TE III_SOF+LED12 | M162: 59137.14671 | N162: 861.3243171 | O162: 0 | P162: 55.02805354 | Q162: 0.4182106983 | R162: 726.3949787 | S162: 1105.887271 | T162: 61886.19954 | U162: 0.9518888207 | V162: 0.02056697043 | W162: 0 | X162: 0.9724557911 | Y162: 0.0267088562 | Z162: 1.370513313e-05 | AA162: 0.0008216475333 | AB162: 0.0267397992 | AC162: 0.00902180627 | AD162: 18.77260855 | AE162: 12.01470898 | AG162: 59300.6102 | AH162: 59300.6102 | AI162: 59137.14671 | AJ162: 38979.99 | AK162: 38979.99 | AL162: 861.3243171 | AM162: 0 | AN162: 0 | AO162: 0 | AP162: 43554.76528 | AQ162: 43554.76528 | AR162: 55.02805354 | AS162: 44203.19323 | AT162: 44203.19323 | AU162: 0.4182106983 | AV162: 61886.19954 | AW162: Dominated
C163: 100 | D163: 1 | E163: 0 | F163: 0 | G163: G1_TN III_SOF+DCV12 | H163: G1_TE III_SOF+RBV24 | J163: G1 TE III_F4SVR | K163: DC_SVRG1 | L163: G1_TN III_SOF+DCV12G1_TE III_SOF+RBV24 | M163: 59137.14671 | N163: 1456.157394 | O163: 0 | P163: 240.072233 | Q163: 1.820211771 | R163: 731.468526 | S163: 1266.866199 | T163: 62833.53127 | U163: 0.9518888207 | V163: 0.01302105863 | W163: 0 | X163: 0.9649098793 | Y163: 0.03258811088 | Z163: 6.339262752e-05 | AA163: 0.002438617159 | AB163: 0.03273835046 | AC163: 0.01063710195 | AD163: 18.76925453 | AE163: 12.00145696 | AG163: 59300.6102 | AH163: 59300.6102 | AI163: 59137.14671 | AJ163: 65902.98 | AK163: 65902.98 | AL163: 1456.157394 | AM163: 0 | AN163: 0 | AO163: 0 | AP163: 43554.76528 | AQ163: 43554.76528 | AR163: 240.072233 | AS163: 44203.19323 | AT163: 44203.19323 | AU163: 1.820211771 | AV163: 62833.53127 | AW163: Dominated
C164: 100 | D164: 1 | E164: 0 | F164: 0 | G164: G1_TN III_SOF+DCV12 | H164: G1_TE III_3D+/-R12 | J164: G1 TE III_F4SVR | K164: DC_SVRG1 | L164: G1_TN III_SOF+DCV12G1_TE III_3D+/-R12 | M164: 59137.14671 | N164: 779.6024456 | O164: 0 | P164: 46.0730547 | Q164: 0.352146694 | R164: 726.0743357 | S164: 1098.492384 | T164: 61787.74108 | U164: 0.9518888207 | V164: 0.02092233852 | W164: 0 | X164: 0.9728111592 | Y164: 0.02643746811 | Z164: 1.135869324e-05 | AA164: 0.0007400139775 | AB164: 0.02646272135 | AC164: 0.008948652076 | AD164: 18.77277697 | AE164: 12.01499492 | AG164: 59300.6102 | AH164: 59300.6102 | AI164: 59137.14671 | AJ164: 35282.82166 | AK164: 35282.82166 | AL164: 779.6024456 | AM164: 0 | AN164: 0 | AO164: 0 | AP164: 43554.76528 | AQ164: 43554.76528 | AR164: 46.0730547 | AS164: 44203.19323 | AT164: 44203.19323 | AU164: 0.352146694 | AV164: 61787.74108 | AW164: Dominated
C165: 100 | D165: 1 | E165: 0 | F165: 0 | G165: G1_TN III_SOF+LED8 | H165: G1_TE III_SOF+RBV24 | I165: G1_TE III_3D+/-R12 | J165: G1 TE III_F4SVR | K165: DC_SVRG1 | L165: G1_TN III_SOF+LED8G1_TE III_SOF+RBV24G1_TE III_3D+/-R12 | M165: 25917.98336 | N165: 4164.230493 | O165: 807.2325353 | P165: 117.9932388 | Q165: 0.9176986996 | R165: 523.0393039 | S165: 932.7984325 | T165: 32464.19506 | U165: 0.9189196413 | V165: 0.0371685005 | W165: 0.02196651948 | X165: 0.9780546613 | Y165: 0.02124874524 | Z165: 2.826217694e-05 | AA165: 0.000668331331 | AB165: 0.02130834963 | AC165: 0.007198728835 | AD165: 18.77955818 | AE165: 12.04317781 | AG165: 25986.66 | AH165: 25986.66 | AI165: 25917.98336 | AJ165: 65902.98 | AK165: 65902.98 | AL165: 4164.230493 | AM165: 35282.82166 | AN165: 35282.82166 | AO165: 807.2325353 | AP165: 43554.76528 | AQ165: 43554.76528 | AR165: 117.9932388 | AS165: 44203.19323 | AT165: 44203.19323 | AU165: 0.9176986996 | AV165: 32464.19506 | AW165: Dominated
C166: 100 | D166: 1 | E166: 0 | F166: 0 | G166: G1_TN III_SOF+LED8 | H166: G1_TE III_SOF+RBV24 | I166: G1_TE III_SOF+DCV12 | J166: G1 TE III_F4SVR | K166: DC_SVRG1 | L166: G1_TN III_SOF+LED8G1_TE III_SOF+RBV24G1_TE III_SOF+DCV12 | M166: 25917.98336 | N166: 4164.230493 | O166: 1361.274823 | P166: 121.8125146 | Q166: 0.9488594416 | R166: 523.2802525 | S166: 935.8976926 | T166: 33025.42799 | U166: 0.9189196413 | V166: 0.0371685005 | W166: 0.02181891544 | X166: 0.9779070572 | Y166: 0.02136342214 | Z166: 2.936760726e-05 | AA166: 0.0007001530382 | AB166: 0.02142572571 | AC166: 0.00722894057 | AD166: 18.77950288 | AE166: 12.04283327 | AG166: 25986.66 | AH166: 25986.66 | AI166: 25917.98336 | AJ166: 65902.98 | AK166: 65902.98 | AL166: 4164.230493 | AM166: 59498.94 | AN166: 59498.94 | AO166: 1361.274823 | AP166: 43554.76528 | AQ166: 43554.76528 | AR166: 121.8125146 | AS166: 44203.19323 | AT166: 44203.19323 | AU166: 0.9488594416 | AV166: 33025.42799 | AW166: Dominated
C167: 100 | D167: 1 | E167: 0 | F167: 0 | G167: G1_TN III_SOF+LED8 | H167: G1_TE III_3D+/-R12 | I167: G1_TE III_SOF+RBV24 | J167: G1 TE III_F4SVR | K167: DC_SVRG1 | L167: G1_TN III_SOF+LED8G1_TE III_3D+/-R12G1_TE III_SOF+RBV24 | M167: 25917.98336 | N167: 2229.910757 | O167: 160.6515668 | P167: 72.96730143 | Q167: 0.5632518271 | R167: 501.9324886 | S167: 871.102793 | T167: 29755.11151 | U167: 0.9189196413 | V167: 0.05962713197 | W167: 0.001444158003 | X167: 0.9799909312 | Y167: 0.01937758178 | Z167: 1.765763438e-05 | AA167: 0.0006138293393 | AB167: 0.01941565514 | AC167: 0.006560373101 | AD167: 18.7819627 | AE167: 12.05019237 | AG167: 25986.66 | AH167: 25986.66 | AI167: 25917.98336 | AJ167: 35282.82166 | AK167: 35282.82166 | AL167: 2229.910757 | AM167: 65902.98 | AN167: 65902.98 | AO167: 160.6515668 | AP167: 43554.76528 | AQ167: 43554.76528 | AR167: 72.96730143 | AS167: 44203.19323 | AT167: 44203.19323 | AU167: 0.5632518271 | AV167: 29755.11151 | AW167: Dominated
C168: 100 | D168: 1 | E168: 0 | F168: 0 | G168: G1_TN III_SOF+LED8 | H168: G1_TE III_3D+/-R12 | I168: G1_TE III_SOF+DCV12 | J168: G1 TE III_F4SVR | K168: DC_SVRG1 | L168: G1_TN III_SOF+LED8G1_TE III_3D+/-R12G1_TE III_SOF+DCV12 | M168: 25917.98336 | N168: 2229.910757 | O168: 145.0816255 | P168: 52.13399047 | Q168: 0.4081320213 | R168: 501.3596713 | S168: 852.9194241 | T168: 29699.79696 | U168: 0.9189196413 | V168: 0.05962713197 | W168: 0.002303087876 | X168: 0.9808498611 | Y168: 0.01871180443 | Z168: 1.214455805e-05 | AA168: 0.0004261898953 | AB168: 0.01873664108 | AC168: 0.006376694766 | AD168: 18.78231986 | AE168: 12.05162913 | AG168: 25986.66 | AH168: 25986.66 | AI168: 25917.98336 | AJ168: 35282.82166 | AK168: 35282.82166 | AL168: 2229.910757 | AM168: 59498.94 | AN168: 59498.94 | AO168: 145.0816255 | AP168: 43554.76528 | AQ168: 43554.76528 | AR168: 52.13399047 | AS168: 44203.19323 | AT168: 44203.19323 | AU168: 0.4081320213 | AV168: 29699.79696 | AW168: 10867.28585
C169: 100 | D169: 1 | E169: 0 | F169: 0 | G169: G1_TN III_SOF+LED8 | H169: G1_TE III_SOF+DCV12 | I169: G1_TE III_SOF+RBV24 | J169: G1 TE III_F4SVR | K169: DC_SVRG1 | L169: G1_TN III_SOF+LED8G1_TE III_SOF+DCV12G1_TE III_SOF+RBV24 | M169: 25917.98336 | N169: 3760.299449 | O169: 187.0666774 | P169: 77.37244412 | Q169: 0.5995041118 | R169: 502.8045108 | S169: 874.8389661 | T169: 31320.96491 | U169: 0.9189196413 | V169: 0.05921806874 | W169: 0.00168591111 | X169: 0.9798236211 | Y169: 0.01951121762 | Z169: 1.891576095e-05 | AA169: 0.0006462454892 | AB169: 0.01955230343 | AC169: 0.006596610974 | AD169: 18.78188462 | AE169: 12.04959709 | AG169: 25986.66 | AH169: 25986.66 | AI169: 25917.98336 | AJ169: 59498.94 | AK169: 59498.94 | AL169: 3760.299449 | AM169: 65902.98 | AN169: 65902.98 | AO169: 187.0666774 | AP169: 43554.76528 | AQ169: 43554.76528 | AR169: 77.37244412 | AS169: 44203.19323 | AT169: 44203.19323 | AU169: 0.5995041118 | AV169: 31320.96491 | AW169: Dominated
C170: 100 | D170: 1 | E170: 0 | F170: 0 | G170: G1_TN III_SOF+LED8 | H170: G1_TE III_SOF+DCV12 | I170: G1_TE III_3D+/-R12 | J170: G1 TE III_F4SVR | K170: DC_SVRG1 | L170: G1_TN III_SOF+LED8G1_TE III_SOF+DCV12G1_TE III_3D+/-R12 | M170: 25917.98336 | N170: 3760.299449 | O170: 100.2314574 | P170: 52.56717782 | Q170: 0.4118922201 | R170: 502.1213704 | S170: 853.2469372 | T170: 31186.86164 | U170: 0.9189196413 | V170: 0.05921806874 | W170: 0.002702093959 | X170: 0.980839804 | Y170: 0.01872141427 | Z170: 1.225690459e-05 | AA170: 0.0004265248546 | AB170: 0.01874648123 | AC170: 0.006379792333 | AD170: 18.78230781 | AE170: 12.05131745 | AG170: 25986.66 | AH170: 25986.66 | AI170: 25917.98336 | AJ170: 59498.94 | AK170: 59498.94 | AL170: 3760.299449 | AM170: 35282.82166 | AN170: 35282.82166 | AO170: 100.2314574 | AP170: 43554.76528 | AQ170: 43554.76528 | AR170: 52.56717782 | AS170: 44203.19323 | AT170: 44203.19323 | AU170: 0.4118922201 | AV170: 31186.86164 | AW170: Dominated
C171: =D171&E171&F171 -> 100 | D171: 1 | E171: 0 | F171: 0 | G171: G1_TN III_SOF+RBV24 | H171: G1_TE III_SOF+LED12 | I171: G1_TE III_3D+/-R12 | J171: G1 TE III_F4SVR | K171: DC_SVRG1 | L171: G1_TN III_SOF+RBV24G1_TE III_SOF+LED12G1_TE III_3D+/-R12 | M171: 65775.41018 | N171: 11896.6795 | O171: 587.0532372 | P171: 701.1308702 | Q171: 5.503838295 | R171: 1043.56311 | S171: 2096.239789 | T171: 82105.58052 | U171: 0.6391343204 | V171: 0.2863689246 | W171: 0.0160199072 | X171: 0.9415231522 | Y171: 0.05675929675 | Z171: 0.0001644988512 | AA171: 0.001553052196 | AB171: 0.05709407741 | AC171: 0.01933741338 | AD171: 18.73331538 | AE171: 11.90840823 | AG171: 65902.98 | AH171: 65902.98 | AI171: 65775.41018 | AJ171: 38979.99 | AK171: 38979.99 | AL171: 11896.6795 | AM171: 35282.82166 | AN171: 35282.82166 | AO171: 587.0532372 | AP171: 43554.76528 | AQ171: 43554.76528 | AR171: 701.1308702 | AS171: 44203.19323 | AT171: 44203.19323 | AU171: 5.503838295 | AV171: 82105.58052 | AW171: Dominated
C172: 100 | D172: 1 | E172: 0 | F172: 0 | G172: G1_TN III_SOF+RBV24 | H172: G1_TE III_SOF+LED12 | I172: G1_TE III_SOF+DCV12 | J172: G1 TE III_F4SVR | K172: DC_SVRG1 | L172: G1_TN III_SOF+RBV24G1_TE III_SOF+LED12G1_TE III_SOF+DCV12 | M172: 65775.41018 | N172: 11896.6795 | O172: 989.8743592 | P172: 704.0649669 | Q172: 5.525758563 | R172: 1043.73952 | S172: 2098.565027 | T172: 82513.85931 | U172: 0.6391343204 | V172: 0.2863689246 | W172: 0.0159073138 | X172: 0.9414105588 | Y172: 0.05684737448 | Z172: 0.000165275983 | AA172: 0.00157679073 | AB172: 0.05718407994 | AC172: 0.01936004514 | AD172: 18.73327608 | AE172: 11.90814085 | AG172: 65902.98 | AH172: 65902.98 | AI172: 65775.41018 | AJ172: 38979.99 | AK172: 38979.99 | AL172: 11896.6795 | AM172: 59498.94 | AN172: 59498.94 | AO172: 989.8743592 | AP172: 43554.76528 | AQ172: 43554.76528 | AR172: 704.0649669 | AS172: 44203.19323 | AT172: 44203.19323 | AU172: 5.525758563 | AV172: 82513.85931 | AW172: Dominated
C173: 100 | D173: 1 | E173: 0 | F173: 0 | G173: G1_TN III_SOF+RBV24 | H173: G1_TE III_3D+/-R12 | I173: G1_TE III_SOF+LED12 | J173: G1 TE III_F4SVR | K173: DC_SVRG1 | L173: G1_TN III_SOF+RBV24G1_TE III_3D+/-R12G1_TE III_SOF+LED12 | M173: 65775.41018 | N173: 10768.74229 | O173: 456.4269588 | P173: 696.1120797 | Q173: 5.464194875 | R173: 1037.759982 | S173: 2092.43614 | T173: 80832.35183 | U173: 0.6391343204 | V173: 0.2914286391 | W173: 0.01107755392 | X173: 0.9416405134 | Y173: 0.05664705291 | Z173: 0.0001633078068 | AA173: 0.001549125895 | AB173: 0.05697940022 | AC173: 0.01929812944 | AD173: 18.73347504 | AE173: 11.90547063 | AG173: 65902.98 | AH173: 65902.98 | AI173: 65775.41018 | AJ173: 35282.82166 | AK173: 35282.82166 | AL173: 10768.74229 | AM173: 38979.99 | AN173: 38979.99 | AO173: 456.4269588 | AP173: 43554.76528 | AQ173: 43554.76528 | AR173: 696.1120797 | AS173: 44203.19323 | AT173: 44203.19323 | AU173: 5.464194875 | AV173: 80832.35183 | AW173: Dominated
C174: 100 | D174: 1 | E174: 0 | F174: 0 | G174: G1_TN III_SOF+RBV24 | H174: G1_TE III_3D+/-R12 | I174: G1_TE III_SOF+DCV12 | J174: G1 TE III_F4SVR | K174: DC_SVRG1 | L174: G1_TN III_SOF+RBV24G1_TE III_3D+/-R12G1_TE III_SOF+DCV12 | M174: 65775.41018 | N174: 10768.74229 | O174: 696.688743 | P174: 693.3407213 | Q174: 5.445410862 | R174: 1037.713389 | S174: 2090.118639 | T174: 81067.45937 | U174: 0.6391343204 | V174: 0.2914286391 | W174: 0.01119081862 | X174: 0.9417537781 | Y174: 0.05656054305 | Z174: 0.0001626283101 | AA174: 0.001523050558 | AB174: 0.0568912582 | AC174: 0.01927355083 | AD174: 18.73352248 | AE174: 11.9054475 | AG174: 65902.98 | AH174: 65902.98 | AI174: 65775.41018 | AJ174: 35282.82166 | AK174: 35282.82166 | AL174: 10768.74229 | AM174: 59498.94 | AN174: 59498.94 | AO174: 696.688743 | AP174: 43554.76528 | AQ174: 43554.76528 | AR174: 693.3407213 | AS174: 44203.19323 | AT174: 44203.19323 | AU174: 5.445410862 | AV174: 81067.45937 | AW174: Dominated
C175: 100 | D175: 1 | E175: 0 | F175: 0 | G175: G1_TN III_SOF+RBV24 | H175: G1_TE III_SOF+DCV12 | I175: G1_TE III_SOF+LED12 | J175: G1 TE III_F4SVR | K175: DC_SVRG1 | L175: G1_TN III_SOF+RBV24G1_TE III_SOF+DCV12G1_TE III_SOF+LED12 | M175: 65775.41018 | N175: 18159.05596 | O175: 534.1155571 | P175: 701.1848075 | Q175: 5.503943749 | R175: 1041.625645 | S175: 2096.37223 | T175: 88313.26832 | U175: 0.6391343204 | V175: 0.2893821561 | W175: 0.01296150803 | X175: 0.9414779845 | Y175: 0.05678286176 | Z175: 0.0001646212469 | AA175: 0.00157453249 | AB175: 0.05711825265 | AC175: 0.01933618049 | AD175: 18.7333803 | AE175: 11.9036834 | AG175: 65902.98 | AH175: 65902.98 | AI175: 65775.41018 | AJ175: 59498.94 | AK175: 59498.94 | AL175: 18159.05596 | AM175: 38979.99 | AN175: 38979.99 | AO175: 534.1155571 | AP175: 43554.76528 | AQ175: 43554.76528 | AR175: 701.1848075 | AS175: 44203.19323 | AT175: 44203.19323 | AU175: 5.503943749 | AV175: 88313.26832 | AW175: Dominated
C176: 100 | D176: 1 | E176: 0 | F176: 0 | G176: G1_TN III_SOF+RBV24 | H176: G1_TE III_SOF+DCV12 | I176: G1_TE III_3D+/-R12 | J176: G1 TE III_F4SVR | K176: DC_SVRG1 | L176: G1_TN III_SOF+RBV24G1_TE III_SOF+DCV12G1_TE III_3D+/-R12 | M176: 65775.41018 | N176: 18159.05596 | O176: 483.4417592 | P176: 695.4793525 | Q176: 5.463239468 | R176: 1041.4232 | S176: 2091.729491 | T176: 88252.00318 | U176: 0.6391343204 | V176: 0.2893821561 | W176: 0.01318736613 | X176: 0.9417038426 | Y176: 0.05660827416 | Z176: 0.0001631646184 | AA176: 0.001524718619 | AB176: 0.0569401081 | AC176: 0.01928897013 | AD176: 18.73346704 | AE176: 11.90389661 | AG176: 65902.98 | AH176: 65902.98 | AI176: 65775.41018 | AJ176: 59498.94 | AK176: 59498.94 | AL176: 18159.05596 | AM176: 35282.82166 | AN176: 35282.82166 | AO176: 483.4417592 | AP176: 43554.76528 | AQ176: 43554.76528 | AR176: 695.4793525 | AS176: 44203.19323 | AT176: 44203.19323 | AU176: 5.463239468 | AV176: 88252.00318 | AW176: Dominated
C177: 100 | D177: 1 | E177: 0 | F177: 0 | G177: G1_TN III_3D+/-R12 | H177: G1_TE III_SOF+LED12 | I177: G1_TE III_SOF+RBV24 | J177: G1 TE III_F4SVR | K177: DC_SVRG1 | L177: G1_TN III_3D+/-R12G1_TE III_SOF+LED12G1_TE III_SOF+RBV24 | M177: 35240.17605 | N177: 1341.875589 | O177: 123.6953453 | P177: 57.89889989 | Q177: 0.446624084 | R177: 732.5885035 | S177: 1107.704477 | T177: 38604.38548 | U177: 0.9394294807 | V177: 0.03202104337 | W177: 0.001115751766 | X177: 0.9725662758 | Y177: 0.02669492841 | Z177: 1.401424679e-05 | AA177: 0.0007247815261 | AB177: 0.02672513212 | AC177: 0.009047163953 | AD177: 18.77236432 | AE177: 12.01909344 | AG177: 35327.36249 | AH177: 35327.36249 | AI177: 35240.17605 | AJ177: 38979.99 | AK177: 38979.99 | AL177: 1341.875589 | AM177: 65902.98 | AN177: 65902.98 | AO177: 123.6953453 | AP177: 43554.76528 | AQ177: 43554.76528 | AR177: 57.89889989 | AS177: 44203.19323 | AT177: 44203.19323 | AU177: 0.446624084 | AV177: 38604.38548 | AW177: Dominated
C178: 100 | D178: 1 | E178: 0 | F178: 0 | G178: G1_TN III_3D+/-R12 | H178: G1_TE III_SOF+LED12 | I178: G1_TE III_SOF+DCV12 | J178: G1 TE III_F4SVR | K178: DC_SVRG1 | L178: G1_TN III_3D+/-R12G1_TE III_SOF+LED12G1_TE III_SOF+DCV12 | M178: 35240.17605 | N178: 1341.875589 | O178: 111.6557124 | P178: 41.91251119 | Q178: 0.3277961228 | R178: 732.1488568 | S178: 1093.687316 | T178: 38561.78383 | U178: 0.9394294807 | V178: 0.03202104337 | W178: 0.001778952495 | X178: 0.9732294765 | Y178: 0.02618189298 | Z178: 9.777712004e-06 | AA178: 0.0005788527638 | AB178: 0.02620189789 | AC178: 0.008905561124 | AD178: 18.77264224 | AE178: 12.02018328 | AG178: 35327.36249 | AH178: 35327.36249 | AI178: 35240.17605 | AJ178: 38979.99 | AK178: 38979.99 | AL178: 1341.875589 | AM178: 59498.94 | AN178: 59498.94 | AO178: 111.6557124 | AP178: 43554.76528 | AQ178: 43554.76528 | AR178: 41.91251119 | AS178: 44203.19323 | AT178: 44203.19323 | AU178: 0.3277961228 | AV178: 38561.78383 | AW178: Dominated
C179: 100 | D179: 1 | E179: 0 | F179: 0 | G179: G1_TN III_3D+/-R12 | H179: G1_TE III_SOF+RBV24 | I179: G1_TE III_SOF+LED12 | J179: G1 TE III_F4SVR | K179: DC_SVRG1 | L179: G1_TN III_3D+/-R12G1_TE III_SOF+RBV24G1_TE III_SOF+LED12 | M179: 35240.17605 | N179: 2268.829431 | O179: 487.503257 | P179: 81.36439044 | Q179: 0.6318527567 | R179: 743.4819799 | S179: 1140.152737 | T179: 39962.13969 | U179: 0.9394294807 | V179: 0.02028018802 | W179: 0.01183804737 | X179: 0.9715477161 | Y179: 0.02767896538 | Z179: 1.957373917e-05 | AA179: 0.0007537448225 | AB179: 0.02772046181 | AC179: 0.009382304851 | AD179: 18.77112172 | AE179: 12.01514381 | AG179: 35327.36249 | AH179: 35327.36249 | AI179: 35240.17605 | AJ179: 65902.98 | AK179: 65902.98 | AL179: 2268.829431 | AM179: 38979.99 | AN179: 38979.99 | AO179: 487.503257 | AP179: 43554.76528 | AQ179: 43554.76528 | AR179: 81.36439044 | AS179: 44203.19323 | AT179: 44203.19323 | AU179: 0.6318527567 | AV179: 39962.13969 | AW179: Dominated
C180: 100 | D180: 1 | E180: 0 | F180: 0 | G180: G1_TN III_3D+/-R12 | H180: G1_TE III_SOF+RBV24 | I180: G1_TE III_SOF+DCV12 | J180: G1 TE III_F4SVR | K180: DC_SVRG1 | L180: G1_TN III_3D+/-R12G1_TE III_SOF+RBV24G1_TE III_SOF+DCV12 | M180: 35240.17605 | N180: 2268.829431 | O180: 744.1235116 | P180: 78.40346672 | Q180: 0.6114763258 | R180: 743.4325542 | S180: 1137.624402 | T180: 40213.20089 | U180: 0.9394294807 | V180: 0.02028018802 | W180: 0.01196192024 | X180: 0.9716715889 | Y180: 0.02758602219 | Z180: 1.883340935e-05 | AA180: 0.0007235554757 | AB180: 0.02762573914 | AC180: 0.009356638307 | AD180: 18.77117631 | AE180: 12.01511863 | AG180: 35327.36249 | AH180: 35327.36249 | AI180: 35240.17605 | AJ180: 65902.98 | AK180: 65902.98 | AL180: 2268.829431 | AM180: 59498.94 | AN180: 59498.94 | AO180: 744.1235116 | AP180: 43554.76528 | AQ180: 43554.76528 | AR180: 78.40346672 | AS180: 44203.19323 | AT180: 44203.19323 | AU180: 0.6114763258 | AV180: 40213.20089 | AW180: Dominated
C181: 100 | D181: 1 | E181: 0 | F181: 0 | G181: G1_TN III_3D+/-R12 | H181: G1_TE III_SOF+DCV12 | I181: G1_TE III_SOF+LED12 | J181: G1 TE III_F4SVR | K181: DC_SVRG1 | L181: G1_TN III_3D+/-R12G1_TE III_SOF+DCV12G1_TE III_SOF+LED12 | M181: 35240.17605 | N181: 2048.23488 | O181: 60.37863046 | P181: 41.58517676 | Q181: 0.3252982475 | R181: 731.9122779 | S181: 1093.437576 | T181: 39216.04989 | U181: 0.9394294807 | V181: 0.03235480427 | W181: 0.001452742667 | X181: 0.9732370276 | Y181: 0.02617466839 | Z181: 9.703429372e-06 | AA181: 0.0005786005623 | AB181: 0.02619452386 | AC181: 0.008902849517 | AD181: 18.7726554 | AE181: 12.01967995 | AG181: 35327.36249 | AH181: 35327.36249 | AI181: 35240.17605 | AJ181: 59498.94 | AK181: 59498.94 | AL181: 2048.23488 | AM181: 38979.99 | AN181: 38979.99 | AO181: 60.37863046 | AP181: 43554.76528 | AQ181: 43554.76528 | AR181: 41.58517676 | AS181: 44203.19323 | AT181: 44203.19323 | AU181: 0.3252982475 | AV181: 39216.04989 | AW181: Dominated
C182: 100 | D182: 1 | E182: 0 | F182: 0 | G182: G1_TN III_3D+/-R12 | H182: G1_TE III_SOF+DCV12 | I182: G1_TE III_SOF+RBV24 | J182: G1 TE III_F4SVR | K182: DC_SVRG1 | L182: G1_TN III_3D+/-R12G1_TE III_SOF+DCV12G1_TE III_SOF+RBV24 | M182: 35240.17605 | N182: 2048.23488 | O182: 102.0197521 | P182: 54.4940117 | Q182: 0.4228811987 | R182: 732.2614517 | S182: 1104.692555 | T182: 39282.30158 | U182: 0.9394294807 | V182: 0.03235480427 | W182: 0.0009205676294 | X182: 0.9727048526 | Y182: 0.02658783812 | Z182: 1.317331913e-05 | AA182: 0.0006941359826 | AB182: 0.02661605956 | AC182: 0.00901627285 | AD182: 18.77244349 | AE182: 12.01876477 | AG182: 35327.36249 | AH182: 35327.36249 | AI182: 35240.17605 | AJ182: 59498.94 | AK182: 59498.94 | AL182: 2048.23488 | AM182: 65902.98 | AN182: 65902.98 | AO182: 102.0197521 | AP182: 43554.76528 | AQ182: 43554.76528 | AR182: 54.4940117 | AS182: 44203.19323 | AT182: 44203.19323 | AU182: 0.4228811987 | AV182: 39282.30158 | AW182: Dominated
C183: 100 | D183: 1 | E183: 0 | F183: 0 | G183: G1_TN III_SOF+DCV12 | H183: G1_TE III_SOF+LED12 | I183: G1_TE III_SOF+RBV24 | J183: G1 TE III_F4SVR | K183: DC_SVRG1 | L183: G1_TN III_SOF+DCV12G1_TE III_SOF+LED12G1_TE III_SOF+RBV24 | M183: 59137.14671 | N183: 861.3243171 | O183: 78.92299564 | P183: 36.65476545 | Q183: 0.2829551839 | R183: 727.0447299 | S183: 1091.281216 | T183: 61932.65769 | U183: 0.9518888207 | V183: 0.02056697043 | W183: 0.0007146919086 | X183: 0.973170483 | Y183: 0.0261658002 | Z183: 8.886922729e-06 | AA183: 0.0006548298264 | AB183: 0.02618504448 | AC183: 0.008875265884 | AD183: 18.77288243 | AE183: 12.01577044 | AG183: 59300.6102 | AH183: 59300.6102 | AI183: 59137.14671 | AJ183: 38979.99 | AK183: 38979.99 | AL183: 861.3243171 | AM183: 65902.98 | AN183: 65902.98 | AO183: 78.92299564 | AP183: 43554.76528 | AQ183: 43554.76528 | AR183: 36.65476545 | AS183: 44203.19323 | AT183: 44203.19323 | AU183: 0.2829551839 | AV183: 61932.65769 | AW183: Dominated
C184: 100 | D184: 1 | E184: 0 | F184: 0 | G184: G1_TN III_SOF+DCV12 | H184: G1_TE III_SOF+LED12 | I184: G1_TE III_3D+/-R12 | J184: G1 TE III_F4SVR | K184: DC_SVRG1 | L184: G1_TN III_SOF+DCV12G1_TE III_SOF+LED12G1_TE III_3D+/-R12 | M184: 59137.14671 | N184: 861.3243171 | O184: 42.25183467 | P184: 26.32842853 | Q184: 0.2056637744 | R184: 726.7541824 | S184: 1082.277675 | T184: 61876.28881 | U184: 0.9518888207 | V184: 0.02056697043 | W184: 0.001143859732 | X184: 0.9735996509 | Y184: 0.02583443549 | Z184: 6.125197033e-06 | AA184: 0.000559788441 | AB184: 0.02584698634 | AC184: 0.008785283448 | AD184: 18.77306971 | AE184: 12.01648427 | AG184: 59300.6102 | AH184: 59300.6102 | AI184: 59137.14671 | AJ184: 38979.99 | AK184: 38979.99 | AL184: 861.3243171 | AM184: 35282.82166 | AN184: 35282.82166 | AO184: 42.25183467 | AP184: 43554.76528 | AQ184: 43554.76528 | AR184: 26.32842853 | AS184: 44203.19323 | AT184: 44203.19323 | AU184: 0.2056637744 | AV184: 61876.28881 | AW184: Dominated
C185: 100 | D185: 1 | E185: 0 | F185: 0 | G185: G1_TN III_SOF+DCV12 | H185: G1_TE III_SOF+RBV24 | I185: G1_TE III_SOF+LED12 | J185: G1 TE III_F4SVR | K185: DC_SVRG1 | L185: G1_TN III_SOF+DCV12G1_TE III_SOF+RBV24G1_TE III_SOF+LED12 | M185: 59137.14671 | N185: 1456.157394 | O185: 313.2010525 | P185: 51.57690487 | Q185: 0.4004145483 | R185: 734.0076273 | S185: 1111.979384 | T185: 62804.46949 | U185: 0.9518888207 | V185: 0.01302105863 | W185: 0.007612111615 | X185: 0.972521991 | Y185: 0.02679219107 | Z185: 1.241378642e-05 | AA185: 0.0006734041953 | AB185: 0.02681861406 | AC185: 0.009087067107 | AD185: 18.77207215 | AE185: 12.01323442 | AG185: 59300.6102 | AH185: 59300.6102 | AI185: 59137.14671 | AJ185: 65902.98 | AK185: 65902.98 | AL185: 1456.157394 | AM185: 38979.99 | AN185: 38979.99 | AO185: 313.2010525 | AP185: 43554.76528 | AQ185: 43554.76528 | AR185: 51.57690487 | AS185: 44203.19323 | AT185: 44203.19323 | AU185: 0.4004145483 | AV185: 62804.46949 | AW185: Dominated
C186: 100 | D186: 1 | E186: 0 | F186: 0 | G186: G1_TN III_SOF+DCV12 | H186: G1_TE III_SOF+RBV24 | I186: G1_TE III_3D+/-R12 | J186: G1 TE III_F4SVR | K186: DC_SVRG1 | L186: G1_TN III_SOF+DCV12G1_TE III_SOF+RBV24G1_TE III_3D+/-R12 | M186: 59137.14671 | N186: 1456.157394 | O186: 283.480054 | P186: 48.47212708 | Q186: 0.3772743126 | R186: 733.8937147 | S186: 1109.391739 | T186: 62768.91901 | U186: 0.9518888207 | V186: 0.01302105863 | W186: 0.007740145222 | X186: 0.9726500246 | Y186: 0.02669591421 | Z186: 1.157895054e-05 | AA186: 0.000642482285 | AB186: 0.02672029841 | AC186: 0.009061579768 | AD186: 18.77212723 | AE186: 12.01333106 | AG186: 59300.6102 | AH186: 59300.6102 | AI186: 59137.14671 | AJ186: 65902.98 | AK186: 65902.98 | AL186: 1456.157394 | AM186: 35282.82166 | AN186: 35282.82166 | AO186: 283.480054 | AP186: 43554.76528 | AQ186: 43554.76528 | AR186: 48.47212708 | AS186: 44203.19323 | AT186: 44203.19323 | AU186: 0.3772743126 | AV186: 62768.91901 | AW186: Dominated
C187: 100 | D187: 1 | E187: 0 | F187: 0 | G187: G1_TN III_SOF+DCV12 | H187: G1_TE III_3D+/-R12 | I187: G1_TE III_SOF+LED12 | J187: G1 TE III_F4SVR | K187: DC_SVRG1 | L187: G1_TN III_SOF+DCV12G1_TE III_3D+/-R12G1_TE III_SOF+LED12 | M187: 59137.14671 | N187: 779.6024456 | O187: 33.07996633 | P187: 25.98152594 | Q187: 0.202915169 | R187: 726.3398264 | S187: 1082.016699 | T187: 61784.37009 | U187: 0.9518888207 | V187: 0.02092233852 | W187: 0.0007965292796 | X187: 0.9736076885 | Y187: 0.02582675403 | Z187: 6.043323975e-06 | AA187: 0.0005595141418 | AB187: 0.02583913722 | AC187: 0.008782629541 | AD187: 18.77308253 | AE187: 12.01625456 | AG187: 59300.6102 | AH187: 59300.6102 | AI187: 59137.14671 | AJ187: 35282.82166 | AK187: 35282.82166 | AL187: 779.6024456 | AM187: 38979.99 | AN187: 38979.99 | AO187: 33.07996633 | AP187: 43554.76528 | AQ187: 43554.76528 | AR187: 25.98152594 | AS187: 44203.19323 | AT187: 44203.19323 | AU187: 0.202915169 | AV187: 61784.37009 | AW187: Dominated
C188: 100 | D188: 1 | E188: 0 | F188: 0 | G188: G1_TN III_SOF+DCV12 | H188: G1_TE III_3D+/-R12 | I188: G1_TE III_SOF+RBV24 | J188: G1 TE III_F4SVR | K188: DC_SVRG1 | L188: G1_TN III_SOF+DCV12G1_TE III_3D+/-R12G1_TE III_SOF+RBV24 | M188: 59137.14671 | N188: 779.6024456 | O188: 55.92955327 | P188: 33.0821661 | Q188: 0.256096599 | R188: 726.53452 | S188: 1088.187398 | T188: 61820.73889 | U188: 0.9518888207 | V188: 0.02092233852 | W188: 0.000503050359 | X188: 0.9733142096 | Y188: 0.02605443513 | Z188: 7.940848366e-06 | AA188: 0.0006234144442 | AB188: 0.02607141282 | AC188: 0.008844649612 | AD188: 18.7729616 | AE188: 12.01574997 | AG188: 59300.6102 | AH188: 59300.6102 | AI188: 59137.14671 | AJ188: 35282.82166 | AK188: 35282.82166 | AL188: 779.6024456 | AM188: 65902.98 | AN188: 65902.98 | AO188: 55.92955327 | AP188: 43554.76528 | AQ188: 43554.76528 | AR188: 33.0821661 | AS188: 44203.19323 | AT188: 44203.19323 | AU188: 0.256096599 | AV188: 61820.73889 | AW188: Dominated
C189: =D189&E189&F189 -> 210 | D189: 2 | E189: 1 | F189: 0 | G189: NT | J189: G3 TN IE_F4SVR | K189: DC_SVRG3 | L189: NT | M189: 0 | N189: 0 | O189: 0 | P189: 23291.74642 | Q189: 464.8186266 | R189: 373.3254153 | S189: 21827.70408 | T189: 45957.59455 | U189: 0 | V189: 0 | W189: 0 | X189: 0 | Y189: 0.6811075965 | Z189: 0.01090135306 | AA189: 0.3079910505 | AB189: 0.7139345819 | AC189: 0.1964105448 | AD189: 18.56493402 | AE189: 10.57435477 | AG189: 0 | AH189: 0 | AI189: 0 | AJ189: 0 | AK189: 0 | AL189: 0 | AM189: 0 | AN189: 0 | AO189: 0 | AP189: 43674.26 | AQ189: 43674.26 | AR189: 23291.74642 | AS189: 53009.18286 | AT189: 53009.18286 | AU189: 464.8186266 | AV189: 45957.59455 | AW189: Dominated
C190: 210 | D190: 2 | E190: 1 | F190: 0 | G190: G2_TN IE_SOF+RBV12 | J190: G3 TE IE_F4SVR | K190: DC_SVRG3 | L190: G2_TN IE_SOF+RBV12 | M190: 35052.03844 | N190: 0 | O190: 0 | P190: 1041.827919 | Q190: 26.18860095 | R190: 713.008376 | S190: 1830.319351 | T190: 38663.38269 | U190: 0.9382381345 | V190: 0 | W190: 0 | X190: 0.9382381345 | Y190: 0.04661205096 | Z190: 0.0006132321804 | AA190: 0.01453658233 | AB190: 0.04845610471 | AC190: 0.01465263093 | AD190: 18.77987586 | AE190: 11.97384036 | AG190: 35145.82796 | AH190: 35145.82796 | AI190: 35052.03844 | AJ190: 0 | AK190: 0 | AL190: 0 | AM190: 0 | AN190: 0 | AO190: 0 | AP190: 43674.26 | AQ190: 43674.26 | AR190: 1041.827919 | AS190: 53009.18286 | AT190: 53009.18286 | AU190: 26.18860095 | AV190: 38663.38269 | AW190: Dominated
C191: 210 | D191: 2 | E191: 1 | F191: 0 | G191: G2_TN IE_PR24 | J191: G3 TE IE_F4SVR | K191: DC_SVRG3 | L191: G2_TN IE_PR24 | M191: 4101.495739 | N191: 0 | O191: 0 | P191: 4625.169361 | Q191: 116.3706657 | R191: 807.5449894 | S191: 5565.426173 | T191: 15216.00693 | U191: 0.7734989008 | V191: 0 | W191: 0 | X191: 0.7734989008 | Y191: 0.1604714428 | Z191: 0.002728473562 | AA191: 0.06330118281 | AB191: 0.1686930621 | AC191: 0.04873015024 | AD191: 18.73168526 | AE191: 11.67576118 | AG191: 4110.445926 | AH191: 4110.445926 | AI191: 4101.495739 | AJ191: 0 | AK191: 0 | AL191: 0 | AM191: 0 | AN191: 0 | AO191: 0 | AP191: 43674.26 | AQ191: 43674.26 | AR191: 4625.169361 | AS191: 53009.18286 | AT191: 53009.18286 | AU191: 116.3706657 | AV191: 15216.00693 | AW191: Dominated
C192: 210 | D192: 2 | E192: 1 | F192: 0 | G192: G2_TN IE_PR24 | H192: G2_TE IE_SOF+RBV12 | J192: G3 TE IE_F4SVR | K192: DC_SVRG3 | L192: G2_TN IE_PR24G2_TE IE_SOF+RBV12 | M192: 4101.495739 | N192: 6731.117991 | O192: 0 | P192: 731.2586784 | Q192: 19.02119102 | R192: 878.6939576 | S192: 2013.245905 | T192: 14474.83346 | U192: 0.7734989008 | V192: 0.1694995405 | W192: 0 | X192: 0.9429984414 | Y192: 0.04901282303 | Z192: 0.0004161939233 | AA192: 0.00757254169 | AB192: 0.05018740944 | AC192: 0.01648461683 | AD192: 18.76700073 | AE192: 11.91941175 | AG192: 4110.445926 | AH192: 4110.445926 | AI192: 4101.495739 | AJ192: 35810.91682 | AK192: 35810.91682 | AL192: 6731.117991 | AM192: 0 | AN192: 0 | AO192: 0 | AP192: 43674.26 | AQ192: 43674.26 | AR192: 731.2586784 | AS192: 53009.18286 | AT192: 53009.18286 | AU192: 19.02119102 | AV192: 14474.83346
C193: 210 | D193: 2 | E193: 1 | F193: 0 | G193: G2_TN IE_SOF+RBV12 | H193: G2_TE IE_PR48 | J193: G3 TE IE_F4SVR | K193: DC_SVRG3 | L193: G2_TN IE_SOF+RBV12G2_TE IE_PR48 | M193: 35052.03844 | N193: 267.2001928 | O193: 0 | P193: 410.3828791 | Q193: 10.36014697 | R193: 734.7853879 | S193: 1303.899258 | T193: 37778.66631 | U193: 0.9382381345 | V193: 0.02565549086 | W193: 0 | X193: 0.9638936254 | Y193: 0.0300169928 | Z193: 0.0002404833786 | AA193: 0.005848898431 | AB193: 0.03073415904 | AC193: 0.009856684826 | AD193: 18.78475706 | AE193: 12.0063757 | AG193: 35145.82796 | AH193: 35145.82796 | AI193: 35052.03844 | AJ193: 6151.130847 | AK193: 6151.130847 | AL193: 267.2001928 | AM193: 0 | AN193: 0 | AO193: 0 | AP193: 43674.26 | AQ193: 43674.26 | AR193: 410.3828791 | AS193: 53009.18286 | AT193: 53009.18286 | AU193: 10.36014697 | AV193: 37778.66631 | AW193: 267971.1961
C194: 200 | D194: 2 | E194: 0 | F194: 0 | G194: NT | J194: G3 TN III_F4SVR | K194: DC_SVRG3 | L194: NT | M194: 0 | N194: 0 | O194: 0 | P194: 33075.07812 | Q194: 840.9057632 | R194: 378.3911196 | S194: 22372.14978 | T194: 56666.52479 | U194: 0 | V194: 0 | W194: 0 | X194: 0 | Y194: 0.6545508876 | Z194: 0.01975954201 | AA194: 0.3256895704 | AB194: 0.7139345819 | AC194: 0.2029941444 | AD194: 18.53298284 | AE194: 10.61784946 | AG194: 0 | AH194: 0 | AI194: 0 | AJ194: 0 | AK194: 0 | AL194: 0 | AM194: 0 | AN194: 0 | AO194: 0 | AP194: 60772.785 | AQ194: 60772.785 | AR194: 33075.07812 | AS194: 53009.18286 | AT194: 53009.18286 | AU194: 840.9057632 | AV194: 56666.52479 | AW194: Dominated
C195: 200 | D195: 2 | E195: 0 | F195: 0 | G195: G2_TN III_SOF+RBV12 | J195: G3 TE IE_F4SVR | K195: DC_SVRG3 | L195: G2_TN III_SOF+RBV12 | M195: 35340.96248 | N195: 0 | O195: 0 | P195: 1707.44853 | Q195: 42.92919429 | R195: 729.4353814 | S195: 2430.126724 | T195: 40250.90231 | U195: 0.9102512082 | V195: 0 | W195: 0 | X195: 0.9102512082 | Y195: 0.06532279099 | Z195: 0.001007782222 | AA195: 0.02341821861 | AB195: 0.06834714218 | AC195: 0.02012138618 | AD195: 18.77290266 | AE195: 11.93125781 | AG195: 35433.55029 | AH195: 35433.55029 | AI195: 35340.96248 | AJ195: 0 | AK195: 0 | AL195: 0 | AM195: 0 | AN195: 0 | AO195: 0 | AP195: 43674.26 | AQ195: 43674.26 | AR195: 1707.44853 | AS195: 53009.18286 | AT195: 53009.18286 | AU195: 42.92919429 | AV195: 40250.90231
C196: 310 | D196: 3 | E196: 1 | F196: 0 | G196: NT | J196: G3 TN IE_F4SVR | K196: DC_SVRG3 | L196: NT | M196: 0 | N196: 0 | O196: 0 | P196: 29579.83043 | Q196: 550.1396697 | R196: 473.2882698 | S196: 22923.05773 | T196: 53526.31611 | U196: 0 | V196: 0 | W196: 0 | X196: 0 | Y196: 0.8034078598 | Z196: 0.01215134935 | AA196: 0.1844407908 | AB196: 0.8421364814 | AC196: 0.2365876367 | AD196: 18.11952649 | AE196: 10.09423494 | AG196: 0 | AH196: 0 | AI196: 0 | AJ196: 0 | AK196: 0 | AL196: 0 | AM196: 0 | AN196: 0 | AO196: 0 | AP196: 43674.26 | AQ196: 43674.26 | AR196: 29579.83043 | AS196: 53009.18286 | AT196: 53009.18286 | AU196: 550.1396697 | AV196: 53526.31611 | AW196: Dominated
C197: 310 | D197: 3 | E197: 1 | F197: 0 | G197: G3_TN IE_SOF+LED+R12 | J197: G3 TE IE_F4SVR | K197: DC_SVRG3 | L197: G3_TN IE_SOF+LED+R12 | M197: 39352.47981 | N197: 0 | O197: 0 | P197: 1317.057144 | Q197: 30.49556397 | R197: 724.637425 | S197: 2218.273358 | T197: 43642.9433 | U197: 0.9241311779 | V197: 0 | W197: 0 | X197: 0.9241311779 | Y197: 0.06634802916 | Z197: 0.0006728174797 | AA197: 0.00884797545 | AB197: 0.06850229666 | AC197: 0.02089567344 | AD197: 18.7280308 | AE197: 11.91262842 | AG197: 39453.26512 | AH197: 39453.26512 | AI197: 39352.47981 | AJ197: 0 | AK197: 0 | AL197: 0 | AM197: 0 | AN197: 0 | AO197: 0 | AP197: 43674.26 | AQ197: 43674.26 | AR197: 1317.057144 | AS197: 53009.18286 | AT197: 53009.18286 | AU197: 30.49556397 | AV197: 43642.9433 | AW197: Dominated
C198: =D198&E198&F198 -> 310 | D198: 3 | E198: 1 | F198: 0 | G198: G3_TN IE_SOF+PR12 | J198: G3 TE IE_F4SVR | K198: DC_SVRG3 | L198: G3_TN IE_SOF+PR12 | M198: 36568.72972 | N198: 0 | O198: 0 | P198: 1440.131185 | Q198: 33.85146275 | R198: 720.5038867 | S198: 2314.499439 | T198: 41077.71569 | U198: 0.9200358948 | V198: 0 | W198: 0 | X198: 0.9200358948 | Y198: 0.06949226385 | Z198: 0.0007470008859 | AA198: 0.009724840488 | AB198: 0.07187375135 | AC198: 0.02188994584 | AD198: 18.72571706 | AE198: 11.87522847 | AG198: 36655.1825 | AH198: 36655.1825 | AI198: 36568.72972 | AJ198: 0 | AK198: 0 | AL198: 0 | AM198: 0 | AN198: 0 | AO198: 0 | AP198: 43674.26 | AQ198: 43674.26 | AR198: 1440.131185 | AS198: 53009.18286 | AT198: 53009.18286 | AU198: 33.85146275 | AV198: 41077.71569 | AW198: Dominated
C199: 310 | D199: 3 | E199: 1 | F199: 0 | G199: G3_TN IE_SOF+RBV24 | J199: G3 TE IE_F4SVR | K199: DC_SVRG3 | L199: G3_TN IE_SOF+RBV24 | M199: 70742.95595 | N199: 0 | O199: 0 | P199: 2222.688324 | Q199: 51.8585602 | R199: 898.276259 | S199: 3742.901719 | T199: 77658.68081 | U199: 0.86631039 | V199: 0 | W199: 0 | X199: 0.86631039 | Y199: 0.1173677182 | Z199: 0.001145151675 | AA199: 0.01517674016 | AB199: 0.1210135741 | AC199: 0.03696824081 | AD199: 18.66748947 | AE199: 11.74691658 | AG199: 70935.5712 | AH199: 70935.5712 | AI199: 70742.95595 | AJ199: 0 | AK199: 0 | AL199: 0 | AM199: 0 | AN199: 0 | AO199: 0 | AP199: 43674.26 | AQ199: 43674.26 | AR199: 2222.688324 | AS199: 53009.18286 | AT199: 53009.18286 | AU199: 51.8585602 | AV199: 77658.68081 | AW199: Dominated
C200: 310 | D200: 3 | E200: 1 | F200: 0 | G200: G3_TN IE_PR24 | J200: G3 TE IE_F4SVR | K200: DC_SVRG3 | L200: G3_TN IE_PR24 | M200: 4099.393589 | N200: 0 | O200: 0 | P200: 8635.428926 | Q200: 201.5952394 | R200: 871.2848604 | S200: 8281.236908 | T200: 22088.93952 | U200: 0.6636432854 | V200: 0 | W200: 0 | X200: 0.6636432854 | Y200: 0.2755357446 | Z200: 0.00445554807 | AA200: 0.05636542197 | AB200: 0.2897225473 | AC200: 0.08425710523 | AD200: 18.53604422 | AE200: 11.33482144 | AG200: 4110.445926 | AH200: 4110.445926 | AI200: 4099.393589 | AJ200: 0 | AK200: 0 | AL200: 0 | AM200: 0 | AN200: 0 | AO200: 0 | AP200: 43674.26 | AQ200: 43674.26 | AR200: 8635.428926 | AS200: 53009.18286 | AT200: 53009.18286 | AU200: 201.5952394 | AV200: 22088.93952 | AW200: Dominated
C201: 310 | D201: 3 | E201: 1 | F201: 0 | G201: G3_TN IE_SOF+DCV12 | J201: G3 TE IE_F4SVR | K201: DC_SVRG3 | L201: G3_TN IE_SOF+DCV12 | M201: 59341.69826 | N201: 0 | O201: 0 | P201: 1151.067663 | Q201: 27.18310861 | R201: 730.5635815 | S201: 2099.787172 | T201: 63350.29979 | U201: 0.929502667 | V201: 0 | W201: 0 | X201: 0.929502667 | Y201: 0.06199654042 | Z201: 0.0005994159008 | AA201: 0.007901376674 | AB201: 0.06389939154 | AC201: 0.0196359584 | AD201: 18.73196645 | AE201: 11.91914236 | AG201: 59498.94 | AH201: 59498.94 | AI201: 59341.69826 | AJ201: 0 | AK201: 0 | AL201: 0 | AM201: 0 | AN201: 0 | AO201: 0 | AP201: 43674.26 | AQ201: 43674.26 | AR201: 1151.067663 | AS201: 53009.18286 | AT201: 53009.18286 | AU201: 27.18310861 | AV201: 63350.29979 | AW201: Dominated
C202: 310 | D202: 3 | E202: 1 | F202: 0 | G202: G3_TN IE_SOF+LED+R12 | H202: G3_TE IE_SOF+PR12 | J202: G3 TE IE_F4SVR | K202: DC_SVRG3 | L202: =G202&H202&I202 -> G3_TN IE_SOF+LED+R12G3_TE IE_SOF+PR12 | M202: 39352.47981 | N202: 1495.81451 | O202: 0 | P202: 337.8049228 | Q202: 7.966982417 | R202: 737.4869328 | S202: 1495.89228 | T202: 43427.44544 | U202: 0.9241311779 | V202: 0.0324554828 | W202: 0 | X202: 0.9565866607 | Y202: 0.04085416881 | Z202: 0.0001716674346 | AA202: 0.002387503046 | AB202: 0.04139387068 | AC202: 0.01335377231 | AD202: 18.74927567 | AE202: 11.97434219 | AG202: 39453.26512 | AH202: 39453.26512 | AI202: 39352.47981 | AJ202: 35355.35333 | AK202: 35355.35333 | AL202: 1495.81451 | AM202: 0 | AN202: 0 | AO202: 0 | AP202: 43674.26 | AQ202: 43674.26 | AR202: 337.8049228 | AS202: 53009.18286 | AT202: 53009.18286 | AU202: 7.966982417 | AV202: 43427.44544 | AW202: Dominated
C203: 310 | D203: 3 | E203: 1 | F203: 0 | G203: G3_TN IE_SOF+LED+R12 | H203: G3_TE IE_SOF+RBV24 | J203: G3 TE IE_F4SVR | K203: DC_SVRG3 | L203: G3_TN IE_SOF+LED+R12G3_TE IE_SOF+RBV24 | M203: 39352.47981 | N203: 3003.266139 | O203: 0 | P203: 263.8019426 | Q203: 6.185657326 | R203: 744.197281 | S203: 1473.772468 | T203: 44843.7033 | U203: 0.9241311779 | V203: 0.03379761906 | W203: 0 | X203: 0.957928797 | Y203: 0.04000658309 | Z203: 0.0001321255172 | AA203: 0.001932494419 | AB203: 0.04041939228 | AC203: 0.01312743938 | AD203: 18.74930592 | AE203: 11.97618556 | AG203: 39453.26512 | AH203: 39453.26512 | AI203: 39352.47981 | AJ203: 70935.5712 | AK203: 70935.5712 | AL203: 3003.266139 | AM203: 0 | AN203: 0 | AO203: 0 | AP203: 43674.26 | AQ203: 43674.26 | AR203: 263.8019426 | AS203: 53009.18286 | AT203: 53009.18286 | AU203: 6.185657326 | AV203: 44843.7033 | AW203: Dominated
C204: 310 | D204: 3 | E204: 1 | F204: 0 | G204: G3_TN IE_SOF+LED+R12 | H204: G3_TE IE_PR48 | J204: G3 TE IE_F4SVR | K204: DC_SVRG3 | L204: G3_TN IE_SOF+LED+R12G3_TE IE_PR48 | M204: 39352.47981 | N204: 257.6014094 | O204: 0 | P204: 570.9556222 | Q204: 13.28507058 | R204: 743.4223247 | S204: 1733.203475 | T204: 42670.94771 | U204: 0.9241311779 | V204: 0.02249698775 | W204: 0 | X204: 0.9466281657 | Y204: 0.04907799717 | Z204: 0.0002908098735 | AA204: 0.004003027291 | AB204: 0.05000263314 | AC204: 0.01582233509 | AD204: 18.74147738 | AE204: 11.95108151 | AG204: 39453.26512 | AH204: 39453.26512 | AI204: 39352.47981 | AJ204: 6085.359115 | AK204: 6085.359115 | AL204: 257.6014094 | AM204: 0 | AN204: 0 | AO204: 0 | AP204: 43674.26 | AQ204: 43674.26 | AR204: 570.9556222 | AS204: 53009.18286 | AT204: 53009.18286 | AU204: 13.28507058 | AV204: 42670.94771 | AW204: Dominated
C205: 310 | D205: 3 | E205: 1 | F205: 0 | G205: G3_TN IE_SOF+LED+R12 | H205: G3_TE IE_SOF+DCV12 | J205: G3 TE IE_F4SVR | K205: DC_SVRG3 | L205: G3_TN IE_SOF+LED+R12G3_TE IE_SOF+DCV12 | M205: 39352.47981 | N205: 2518.992987 | O205: 0 | P205: 171.1378548 | Q205: 4.031076793 | R205: 736.530312 | S205: 1372.544766 | T205: 44155.71681 | U205: 0.9241311779 | V205: 0.03795051876 | W205: 0 | X205: 0.9620816967 | Y205: 0.03654501574 | Z205: 8.410142464e-05 | AA205: 0.001289186157 | AB205: 0.03680398271 | AC205: 0.01206293214 | AD205: 18.75276956 | AE205: 11.98608514 | AG205: 39453.26512 | AH205: 39453.26512 | AI205: 39352.47981 | AJ205: 59498.94 | AK205: 59498.94 | AL205: 2518.992987 | AM205: 0 | AN205: 0 | AO205: 0 | AP205: 43674.26 | AQ205: 43674.26 | AR205: 171.1378548 | AS205: 53009.18286 | AT205: 53009.18286 | AU205: 4.031076793 | AV205: 44155.71681 | AW205: Dominated
C206: 310 | D206: 3 | E206: 1 | F206: 0 | G206: G3_TN IE_SOF+PR12 | H206: G3_TE IE_SOF+LED+R12 | J206: G3 TE IE_F4SVR | K206: DC_SVRG3 | L206: G3_TN IE_SOF+PR12G3_TE IE_SOF+LED+R12 | M206: 36568.72972 | N206: 1852.965602 | O206: 0 | P206: 256.6492465 | Q206: 6.102766305 | R206: 734.6500237 | S206: 1437.124736 | T206: 40856.22209 | U206: 0.9200358948 | V206: 0.03925077995 | W206: 0 | X206: 0.9592866747 | Y206: 0.03873816953 | Z206: 0.0001297586851 | AA206: 0.001845397061 | AB206: 0.03913972612 | AC206: 0.0127444461 | AD206: 18.75090785 | AE206: 11.95101002 | AG206: 36655.1825 | AH206: 36655.1825 | AI206: 36568.72972 | AJ206: 39944.13 | AK206: 39944.13 | AL206: 1852.965602 | AM206: 0 | AN206: 0 | AO206: 0 | AP206: 43674.26 | AQ206: 43674.26 | AR206: 256.6492465 | AS206: 53009.18286 | AT206: 53009.18286 | AU206: 6.102766305 | AV206: 40856.22209 | AW206: Extended dominance
C207: 310 | D207: 3 | E207: 1 | F207: 0 | G207: G3_TN IE_SOF+PR12 | H207: G3_TE IE_SOF+RBV24 | J207: G3 TE IE_F4SVR | K207: DC_SVRG3 | L207: G3_TN IE_SOF+PR12G3_TE IE_SOF+RBV24 | M207: 36568.72972 | N207: 3290.559292 | O207: 0 | P207: 288.2760119 | Q207: 6.846605055 | R207: 742.1957727 | S207: 1495.236936 | T207: 42391.84433 | U207: 0.9200358948 | V207: 0.03705486013 | W207: 0 | X207: 0.9570907549 | Y207: 0.04068981204 | Z207: 0.0001463019602 | AA207: 0.002073131094 | AB207: 0.04114418684 | AC207: 0.0133492818 | AD207: 18.74858038 | AE207: 11.94451246 | AG207: 36655.1825 | AH207: 36655.1825 | AI207: 36568.72972 | AJ207: 70935.5712 | AK207: 70935.5712 | AL207: 3290.559292 | AM207: 0 | AN207: 0 | AO207: 0 | AP207: 43674.26 | AQ207: 43674.26 | AR207: 288.2760119 | AS207: 53009.18286 | AT207: 53009.18286 | AU207: 6.846605055 | AV207: 42391.84433 | AW207: Dominated
C208: 310 | D208: 3 | E208: 1 | F208: 0 | G208: G3_TN IE_SOF+PR12 | H208: G3_TE IE_SOF+DCV12 | J208: G3 TE IE_F4SVR | K208: DC_SVRG3 | L208: G3_TN IE_SOF+PR12G3_TE IE_SOF+DCV12 | M208: 36568.72972 | N208: 2760.092388 | O208: 0 | P208: 186.6547825 | Q208: 4.442026701 | R208: 733.5303798 | S208: 1384.626124 | T208: 41638.07542 | U208: 0.9200358948 | V208: 0.04158591836 | W208: 0 | X208: 0.9616218131 | Y208: 0.0369166331 | Z208: 9.276266861e-05 | AA208: 0.001368791091 | AB208: 0.03720037431 | AC208: 0.01218752729 | AD208: 18.75239852 | AE208: 11.95524227 | AG208: 36655.1825 | AH208: 36655.1825 | AI208: 36568.72972 | AJ208: 59498.94 | AK208: 59498.94 | AL208: 2760.092388 | AM208: 0 | AN208: 0 | AO208: 0 | AP208: 43674.26 | AQ208: 43674.26 | AR208: 186.6547825 | AS208: 53009.18286 | AT208: 53009.18286 | AU208: 4.442026701 | AV208: 41638.07542 | AW208: Dominated
C209: 310 | D209: 3 | E209: 1 | F209: 0 | G209: G3_TN IE_SOF+RBV24 | H209: G3_TE IE_SOF+LED+R12 | J209: G3 TE IE_F4SVR | K209: DC_SVRG3 | L209: G3_TN IE_SOF+RBV24G3_TE IE_SOF+LED+R12 | M209: 70742.95595 | N209: 2749.245998 | O209: 0 | P209: 480.1276845 | Q209: 11.48026929 | R209: 919.4658209 | S209: 2448.989151 | T209: 77352.26487 | U209: 0.86631039 | V209: 0.0588587045 | W209: 0 | X209: 0.9251690945 | Y209: 0.07145479395 | Z209: 0.0002398704844 | AA209: 0.003136241083 | AB209: 0.07218365485 | AC209: 0.0234868319 | AD209: 18.70372446 | AE209: 11.85861905 | AG209: 70935.5712 | AH209: =VLOOKUP(G209,F3_treat_duration,17,FALSE) -> 70935.5712 | AI209: 70742.95595 | AJ209: 39944.13 | AK209: =IF(H209="",0,VLOOKUP(H209,F3_treat_duration,17,FALSE)) -> 39944.13 | AL209: 2749.245998 | AM209: 0 | AN209: =IF(I209="",0,VLOOKUP(I209,F3_treat_duration,17,FALSE)) -> 0 | AO209: 0 | AP209: =VLOOKUP(J209,F4_treatments,2,FALSE) -> 43674.26 | AQ209: =VLOOKUP(J209,F4_treatments,3,FALSE) -> 43674.26 | AR209: 480.1276845 | AS209: =VLOOKUP(K209,DC_treatments,2,FALSE) -> 53009.18286 | AT209: =VLOOKUP(K209,DC_treatments,3,FALSE) -> 53009.18286 | AU209: 11.48026929 | AV209: 77352.26487 | AW209: Dominated
... 440 more rows

Sheet Calculations 3 (hidden)
C3: Background calculations - part 3
C5: This sheet extracts the strategies in the cost-effectiveness frontier from the 'results' sheet. It also creates a table with the cost-effective strategy for each subgroup for a given threshold.
V7: 1 | W7: 2 | X7: 3 | Y7: 4 | Z7: 5 | AA7: 6 | AB7: 7 | AC7: 8 | AD7: 9 | AE7: 10 | AF7: 11 | AG7: 12 | AH7: 13 | AI7: 14
C9: Strategies in the cost-effectiveness frontier per subgroup | T9: Subgroup | U9: Net benefit | V9: Cost-effective strategies | AA9: SVR rate | AD9: Treatment cost | AG9: Total costs | AH9: Total QALYs | AI9: ICER
D10: Subgroup | E10: Treatments | J10: SVR rate | M10: Treatment cost | P10: Total costs | Q10: Total QALYs | R10: ICER | V10: =E11 -> 1st line | W10: 2nd line | X10: 3rd line | Y10: Cirrhosis | Z10: Decompensated cirrhosis | AA10: 1st line | AB10: 2nd line | AC10: 3rd line | AD10: 1st line | AE10: 2nd line | AF10: 3rd line
C11: Net benefit | E11: 1st line | F11: 2nd line | G11: 3rd line | H11: Cirrhosis | I11: Decompensated cirrhosis | J11: 1st line | K11: 2nd line | L11: 3rd line | M11: 1st line | N11: 2nd line | O11: 3rd line | T11: 100 | U11: =MAX(IF($D$12:$D$406=T11,$C$12:$C$406)) -> 211332.7825 | V11: =IF(VLOOKUP($U11,$C$12:$R$406,V$7+2,FALSE)="","",VLOOKUP($U11,$C$12:$R$406,V$7+2,FALSE)) -> G1_TN III_SOF+LED8 | W11: G1_TE III_3D+/-R12 | X11: G1_TE III_SOF+DCV12 | Y11: G1 TE III_F4SVR | Z11: DC_SVRG1 | AA11: =IF(VLOOKUP($U11,$C$12:$R$406,AA$7+2,FALSE)="","",VLOOKUP($U11,$C$12:$R$406,AA$7+2,FALSE)) -> 0.9189196413 | AB11: 0.05962713197 | AC11: 0.002303087876 | AD11: 25917.98 | AE11: 2229.91 | AF11: 145.08 | AG11: 29699.8 | AH11: 12.05162913 | AI11: =IF(VLOOKUP($U11,$C$12:$R$406,AI$7+2,FALSE)=0,"Lowest cost",VLOOKUP($U11,$C$12:$R$406,AI$7+2,FALSE)) -> 10867.28585
C12: =Q12*threshold-P12+RAND()/1000000 -> 211299.8495 | D12: 100 | E12: G1_TN III_SOF+LED8 | F12: G1_TE III_3D+/-R12 | H12: G1 TE III_F4SVR | I12: DC_SVRG1 | J12: 0.9189196413 | K12: 0.05962713197 | L12: 0 | M12: 25917.98 | N12: 2229.91 | O12: 0 | P12: 29660.6 | Q12: 12.04802248 | R12: 0 | T12: 110 | U12: =MAX(IF($D$12:$D$406=T12,$C$12:$C$406)) -> 211334.6083 | V12: G1_TN IE_SOF+LED8 | W12: G1_TE IE_3D+/-R12 | X12: G1_TE IE_SOF+PR12 | Y12: G1 TE IE_F4SVR | Z12: DC_SVRG1 | AA12: 0.9189683103 | AB12: 0.05960086829 | AC12: 0.001741286232 | AD12: 25917.98 | AE12: 2228.43 | AF12: 90.48 | AG12: 29674.57 | AH12: 12.05045891 | AI12: =IF(VLOOKUP($U12,$C$12:$R$406,AI$7+2,FALSE)=0,"Lowest cost",VLOOKUP($U12,$C$12:$R$406,AI$7+2,FALSE)) -> 5106.37757
C13: 211332.7825 | D13: 100 | E13: G1_TN III_SOF+LED8 | F13: G1_TE III_3D+/-R12 | G13: G1_TE III_SOF+DCV12 | H13: G1 TE III_F4SVR | I13: DC_SVRG1 | J13: 0.9189196413 | K13: 0.05962713197 | L13: 0.002303087876 | M13: 25917.98 | N13: 2229.91 | O13: 145.08 | P13: 29699.8 | Q13: 12.05162913 | R13: 10867.28585 | T13: 111 | U13: =MAX(IF($D$12:$D$406=T13,$C$12:$C$406)) -> 203330.1415 | V13: G1_TN IE_PR48 | W13: G1_TE IE_3D+/-R12 | X13: G1_TE IE_SOF+LED12 | Y13: G1 TE IE_F4SVR | Z13: DC_SVRG1 | AA13: 0.4050247838 | AB13: 0.4699810246 | AC13: 0.01775511707 | AD13: 6109.6 | AE13: 17067.96 | AF13: 719.3 | AG13: 31011.31 | AH13: 11.71707257 | AI13: Lowest cost
C14: 211300.4083 | D14: 110 | E14: G1_TN IE_SOF+LED8 | F14: G1_TE IE_3D+/-R12 | G14: G1_TE IE_PR48 | H14: G1 TE IE_F4SVR | I14: DC_SVRG1 | J14: 0.9189683103 | K14: 0.05960086829 | L14: 0.0004327643962 | M14: 25917.98 | N14: 2228.43 | O14: 15.2 | P14: 29662.84 | Q14: 12.04816241 | R14: 0 | T14: 112 | U14: =MAX(IF($D$12:$D$406=T14,$C$12:$C$406)) -> 201622.795 | V14: G1_TN IE_SMV+PR12+24 | W14: G1_TE IE_3D+/-R12 | X14: G1_TE IE_SOF+LED12 | Y14: G1 TE IE_F4SVR | Z14: DC_SVRG1 | AA14: 0.7553083472 | AB14: 0.1825659132 | AC14: 0.006894547014 | AD14: 25929.42 | AE14: 6745.58 | AF14: 284.16 | AG14: 36397.04 | AH14: 11.90099175 | AI14: Lowest cost
C15: 211334.6083 | D15: 110 | E15: G1_TN IE_SOF+LED8 | F15: G1_TE IE_3D+/-R12 | G15: G1_TE IE_SOF+PR12 | H15: G1 TE IE_F4SVR | I15: DC_SVRG1 | J15: 0.9189683103 | K15: 0.05960086829 | L15: 0.001741286232 | M15: 25917.98 | N15: 2228.43 | O15: 90.48 | P15: 29674.57 | Q15: 12.05045891 | R15: 5106.37757 | T15: 200 | U15: =MAX(IF($D$12:$D$406=T15,$C$12:$C$406)) -> 198374.2561 | V15: G2_TN III_SOF+RBV12 | Y15: G3 TE IE_F4SVR | Z15: DC_SVRG3 | AA15: 0.9102512082 | AB15: 0 | AC15: 0 | AD15: 35340.96 | AE15: 0 | AF15: 0 | AG15: 40250.9 | AH15: 11.93125781 | AI15: Lowest cost
C16: 211327.3024 | D16: 110 | E16: G1_TN IE_SOF+LED8 | F16: G1_TE IE_3D+/-R12 | G16: G1_TE IE_SOF+DCV12 | H16: G1 TE IE_F4SVR | I16: DC_SVRG1 | J16: 0.9189683103 | K16: 0.05960086829 | L16: 0.002288351115 | M16: 25917.98 | N16: 2228.43 | O16: 143.81 | P16: 29701.2 | Q16: 12.05142512 | R16: 27556.50867 | T16: 210 | U16: =MAX(IF($D$12:$D$406=T16,$C$12:$C$406)) -> 223913.4051 | V16: G2_TN IE_PR24 | W16: G2_TE IE_SOF+RBV12 | Y16: G3 TE IE_F4SVR | Z16: DC_SVRG3 | AA16: 0.7734989008 | AB16: 0.1694995405 | AC16: 0 | AD16: 4101.5 | AE16: 6731.12 | AF16: 0 | AG16: 14474.83 | AH16: 11.91941175 | AI16: Lowest cost
C17: 203330.1415 | D17: 111 | E17: G1_TN IE_PR48 | F17: G1_TE IE_3D+/-R12 | G17: G1_TE IE_SOF+LED12 | H17: G1 TE IE_F4SVR | I17: DC_SVRG1 | J17: 0.4050247838 | K17: 0.4699810246 | L17: 0.01775511707 | M17: 6109.6 | N17: 17067.96 | O17: 719.3 | P17: 31011.31 | Q17: 11.71707257 | R17: 0 | T17: 211 | U17: =MAX(IF($D$12:$D$406=T17,$C$12:$C$406)) -> 223913.4051 | V17: G2_TN IE_PR24 | W17: G2_TE IE_SOF+RBV12 | Y17: G3 TE IE_F4SVR | Z17: DC_SVRG3 | AA17: 0.7734989008 | AB17: 0.1694995405 | AC17: 0 | AD17: 4101.5 | AE17: 6731.12 | AF17: 0 | AG17: 14474.83 | AH17: 11.91941175 | AI17: Lowest cost
C18: 201395.3678 | D18: 111 | E18: G1_TN IE_PR48 | F18: G1_TE IE_SOF+LED12 | G18: G1_TE IE_3D+/-R12 | H18: G1 TE IE_F4SVR | I18: DC_SVRG1 | J18: 0.4050247838 | K18: 0.4615279506 | L18: 0.02602435907 | M18: 6109.6 | N18: 18853.82 | O18: 937.11 | P18: 33038.66 | Q18: 11.72170139 | R18: 437984.0922 | T18: 300 | U18: =MAX(IF($D$12:$D$406=T18,$C$12:$C$406)) -> 195539.9794 | V18: G3_TN III_SOF+LED+R12 | W18: G3_TE III_SOF+DCV12 | X18: G3_TE III_SOF+RBV24 | Y18: G3 TE III_F4SVR | Z18: DC_SVRG3 | AA18: 0.9242813226 | AB18: 0.03783968923 | AC18: 0.002704962074 | AD18: 39355.31 | AE18: 2510.15 | AF18: 238.07 | AG18: 44284.04 | AH18: 11.99120097 | AI18: 12188.55217
C19: 201622.795 | D19: 112 | E19: G1_TN IE_SMV+PR12+24 | F19: G1_TE IE_3D+/-R12 | G19: G1_TE IE_SOF+LED12 | H19: G1 TE IE_F4SVR | I19: DC_SVRG1 | J19: 0.7553083472 | K19: 0.1825659132 | L19: 0.006894547014 | M19: 25929.42 | N19: 6745.58 | O19: 284.16 | P19: 36397.04 | Q19: 11.90099175 | R19: 0 | T19: 310 | U19: =MAX(IF($D$12:$D$406=T19,$C$12:$C$406)) -> 215623.9135 | V19: G3_TN IE_PR24 | W19: G3_TE IE_SOF+PR12 | X19: G3_TE IE_SOF+LED+R12 | Y19: G3 TE IE_F4SVR | Z19: DC_SVRG3 | AA19: 0.6636432854 | AB19: 0.2079105298 | AC19: 0.0475461103 | AD19: 4099.39 | AE19: 9469.67 | AF19: 2201.94 | AG19: 20545.39 | AH19: 11.80846518 | AI19: Lowest cost
C20: 200857.6524 | D20: 112 | E20: G1_TN IE_SMV+PR12+24 | F20: G1_TE IE_SOF+LED12 | G20: G1_TE IE_3D+/-R12 | H20: G1 TE IE_F4SVR | I20: DC_SVRG1 | J20: 0.7553083472 | K20: 0.1792600905 | L20: 0.01012431441 | M20: 25929.42 | N20: 7451.33 | O20: 370.86 | P20: 37199.24 | Q20: 11.90284462 | R20: 432954.0764 | T20: 311 | U20: =MAX(IF($D$12:$D$406=T20,$C$12:$C$406)) -> 215623.9135 | V20: G3_TN IE_PR24 | W20: G3_TE IE_SOF+PR12 | X20: G3_TE IE_SOF+LED+R12 | Y20: G3 TE IE_F4SVR | Z20: DC_SVRG3 | AA20: 0.6636432854 | AB20: 0.2079105298 | AC20: 0.0475461103 | AD20: 4099.39 | AE20: 9469.67 | AF20: 2201.94 | AG20: 20545.39 | AH20: 11.80846518 | AI20: Lowest cost
C21: 198374.2561 | D21: 200 | E21: G2_TN III_SOF+RBV12 | H21: G3 TE IE_F4SVR | I21: DC_SVRG3 | J21: 0.9102512082 | K21: 0 | L21: 0 | M21: 35340.96 | N21: 0 | O21: 0 | P21: 40250.9 | Q21: 11.93125781 | R21: 0 | T21: 400 | U21: =MAX(IF($D$12:$D$406=T21,$C$12:$C$406)) -> 205078.6897 | V21: G4_TN III_2D+R12 | W21: G4_TE III_SOF+LED12 | X21: G4_TE III_SOF+DCV12 | Y21: G4 TE III_F4SVR | Z21: DC_SVRG1 | AA21: 0.9521573701 | AB21: 0.02028484047 | AC21: 0.001141446737 | AD21: 32548.07 | AE21: 850.97 | AF21: 71.66 | AG21: 35300.42 | AH21: 12.01895548 | AI21: 9485.52471
C22: 223913.4051 | D22: 210 | E22: G2_TN IE_PR24 | F22: G2_TE IE_SOF+RBV12 | H22: G3 TE IE_F4SVR | I22: DC_SVRG3 | J22: 0.7734989008 | K22: 0.1694995405 | L22: 0 | M22: 4101.5 | N22: 6731.12 | O22: 0 | P22: 14474.83 | Q22: 11.91941175 | R22: 0 | T22: 410 | U22: =MAX(IF($D$12:$D$406=T22,$C$12:$C$406)) -> 206169.8294 | V22: G4_TN IE_PR48 | W22: G4_TE IE_2D+R12 | X22: G4_TE IE_SOF+LED12 | Y22: G4 TE IE_F4SVR | Z22: DC_SVRG1 | AA22: 0.4587349249 | AB22: 0.428108459 | AC22: 0.007976531584 | AD22: 6431.08 | AE22: 14319.79 | AF22: 322.73 | AG22: 28099.49 | AH22: 11.71346597 | AI22: Lowest cost
C23: 202348.844 | D23: 210 | E23: G2_TN IE_SOF+RBV12 | F23: G2_TE IE_PR48 | H23: G3 TE IE_F4SVR | I23: DC_SVRG3 | J23: 0.9382381345 | K23: 0.02565549086 | L23: 0 | M23: 35052.04 | N23: 267.2 | O23: 0 | P23: 37778.67 | Q23: 12.0063757 | R23: 267971.1961 | T23: 411 | U23: =MAX(IF($D$12:$D$406=T23,$C$12:$C$406)) -> 206169.8294 | V23: G4_TN IE_PR48 | W23: G4_TE IE_2D+R12 | X23: G4_TE IE_SOF+LED12 | Y23: G4 TE IE_F4SVR | Z23: DC_SVRG1 | AA23: 0.4587349249 | AB23: 0.428108459 | AC23: 0.007976531584 | AD23: 6431.08 | AE23: 14319.79 | AF23: 322.73 | AG23: 28099.49 | AH23: 11.71346597 | AI23: Lowest cost
C24: 223913.4051 | D24: 211 | E24: G2_TN IE_PR24 | F24: G2_TE IE_SOF+RBV12 | H24: G3 TE IE_F4SVR | I24: DC_SVRG3 | J24: 0.7734989008 | K24: 0.1694995405 | L24: 0 | M24: 4101.5 | N24: 6731.12 | O24: 0 | P24: 14474.83 | Q24: 11.91941175 | R24: 0 | T24: 412 | U24: =MAX(IF($D$12:$D$406=T24,$C$12:$C$406)) -> 203623.8636 | V24: G4_TN IE_SMV+PR12+24 | W24: G4_TE IE_2D+R12 | X24: G4_TE IE_SOF+LED12 | Y24: G4 TE IE_F4SVR | Z24: DC_SVRG1 | AA24: 0.7820873559 | AB24: 0.1606949282 | AC24: 0.002961994996 | AD24: 25506.79 | AE24: 5467.78 | AF24: 121.92 | AG24: 34441.14 | AH24: 11.90325018 | AI24: Lowest cost
C25: 195502.4058 | D25: 300 | E25: G3_TN III_SOF+LED+R12 | F25: G3_TE III_SOF+DCV12 | H25: G3 TE III_F4SVR | I25: DC_SVRG3 | J25: 0.9242813226 | K25: 0.03783968923 | L25: 0 | M25: 39355.31 | N25: 2510.15 | O25: 0 | P25: 44225.41 | Q25: 11.98639079 | R25: 0
C26: 195539.9794 | D26: 300 | E26: G3_TN III_SOF+LED+R12 | F26: G3_TE III_SOF+DCV12 | G26: G3_TE III_SOF+RBV24 | H26: G3 TE III_F4SVR | I26: DC_SVRG3 | J26: 0.9242813226 | K26: 0.03783968923 | L26: 0.002704962074 | M26: 39355.31 | N26: 2510.15 | O26: 238.07 | P26: 44284.04 | Q26: 11.99120097 | R26: 12188.55217
C27: 215623.9135 | D27: 310 | E27: G3_TN IE_PR24 | F27: G3_TE IE_SOF+PR12 | G27: G3_TE IE_SOF+LED+R12 | H27: G3 TE IE_F4SVR | I27: DC_SVRG3 | J27: 0.6636432854 | K27: 0.2079105298 | L27: 0.0475461103 | M27: 4099.39 | N27: 9469.67 | O27: 2201.94 | P27: 20545.39 | Q27: 11.80846518 | R27: 0
C28: 215604.7637 | D28: 310 | E28: G3_TN IE_PR24 | F28: G3_TE IE_SOF+LED+R12 | G28: G3_TE IE_SOF+PR12 | H28: G3 TE IE_F4SVR | I28: DC_SVRG3 | J28: 0.6636432854 | K28: 0.2289747877 | L28: 0.0270870421 | M28: 4099.39 | N28: 10696.03 | O28: 1224.34 | P28: 20740.08 | Q28: 11.81724218 | R28: 22181.48896
C29: 215183.7519 | D29: 310 | E29: G3_TN IE_PR24 | F29: G3_TE IE_SOF+LED+R12 | G29: G3_TE IE_SOF+DCV12 | H29: G3 TE IE_F4SVR | I29: DC_SVRG3 | J29: 0.6636432854 | K29: 0.2289747877 | L29: 0.03159369342 | M29: 4099.39 | N29: 10696.03 | O29: 2059.34 | P29: 21342.51 | Q29: 11.82631309 | R29: 66413.57311
C30: 196252.5098 | D30: 310 | E30: G3_TN IE_SOF+LED+R12 | F30: G3_TE IE_SOF+PR12 | G30: G3_TE IE_SOF+DCV12 | H30: G3 TE IE_F4SVR | I30: DC_SVRG3 | J30: 0.9241311779 | K30: 0.0324554828 | L30: 0.007954132366 | M30: 39352.48 | N30: 1495.81 | O30: 523.51 | P30: 43535.73 | Q30: 11.98941199 | R30: 136072.1658
C31: 195680.3048 | D31: 310 | E31: G3_TN IE_SOF+LED+R12 | F31: G3_TE IE_SOF+DCV12 | G31: G3_TE IE_SOF+PR12 | H31: G3 TE IE_F4SVR | I31: DC_SVRG3 | J31: 0.9241311779 | K31: 0.03795051876 | L31: 0.002630500882 | M31: 39352.48 | N31: 2518.99 | O31: 120.2 | P31: 44139.38 | Q31: 11.99098424 | R31: 383944.604
C32: 195569.3906 | D32: 310 | E32: G3_TN IE_SOF+LED+R12 | F32: G3_TE IE_SOF+DCV12 | G32: G3_TE IE_SOF+RBV24 | H32: G3 TE IE_F4SVR | I32: DC_SVRG3 | J32: 0.9241311779 | K32: 0.03795051876 | L32: 0.002741825239 | M32: 39352.48 | N32: 2518.99 | O32: 241.52 | P32: 44253.39 | Q32: 11.99113903 | R32: 736534.4992
C33: 215623.9135 | D33: 311 | E33: G3_TN IE_PR24 | F33: G3_TE IE_SOF+PR12 | G33: G3_TE IE_SOF+LED+R12 | H33: G3 TE IE_F4SVR | I33: DC_SVRG3 | J33: 0.6636432854 | K33: 0.2079105298 | L33: 0.0475461103 | M33: 4099.39 | N33: 9469.67 | O33: 2201.94 | P33: 20545.39 | Q33: 11.80846518 | R33: 0
C34: 215604.7637 | D34: 311 | E34: G3_TN IE_PR24 | F34: G3_TE IE_SOF+LED+R12 | G34: G3_TE IE_SOF+PR12 | H34: G3 TE IE_F4SVR | I34: DC_SVRG3 | J34: 0.6636432854 | K34: 0.2289747877 | L34: 0.0270870421 | M34: 4099.39 | N34: 10696.03 | O34: 1224.34 | P34: 20740.08 | Q34: 11.81724218 | R34: 22181.48896
C35: 215183.7519 | D35: 311 | E35: G3_TN IE_PR24 | F35: G3_TE IE_SOF+LED+R12 | G35: G3_TE IE_SOF+DCV12 | H35: G3 TE IE_F4SVR | I35: DC_SVRG3 | J35: 0.6636432854 | K35: 0.2289747877 | L35: 0.03159369342 | M35: 4099.39 | N35: 10696.03 | O35: 2059.34 | P35: 21342.51 | Q35: 11.82631309 | R35: 66413.57311
C36: 211194.7943 | D36: 311 | E36: G3_TN IE_PR24 | F36: G3_TE IE_SOF+DCV12 | G36: G3_TE IE_SOF+LED+R12 | H36: G3 TE IE_F4SVR | I36: DC_SVRG3 | J36: 0.6636432854 | K36: 0.2424089392 | L36: 0.01854881105 | M36: 4099.39 | N36: 15932.32 | O36: 859.92 | P36: 25338.62 | Q36: 11.82667071 | R36: 11174173.88
C37: 205060.0719 | D37: 400 | E37: G4_TN III_2D+R12 | F37: G4_TE III_SOF+LED12 | H37: G4 TE III_F4SVR | I37: DC_SVRG1 | J37: 0.9521573701 | K37: 0.02028484047 | L37: 0 | M37: 32548.07 | N37: 850.97 | O37: 0 | P37: 35283.62 | Q37: 12.0171846 | R37: 0
C38: 205078.6897 | D38: 400 | E38: G4_TN III_2D+R12 | F38: G4_TE III_SOF+LED12 | G38: G4_TE III_SOF+DCV12 | H38: G4 TE III_F4SVR | I38: DC_SVRG1 | J38: 0.9521573701 | K38: 0.02028484047 | L38: 0.001141446737 | M38: 32548.07 | N38: 850.97 | O38: 71.66 | P38: 35300.42 | Q38: 12.01895548 | R38: 9485.52471
C39: 199515.6053 | D39: 400 | E39: G4_TN III_SOF+LED12 | F39: G4_TE III_2D+R12 | G39: G4_TE III_SOF+DCV12 | H39: G4 TE III_F4SVR | I39: DC_SVRG1 | J39: 0.949716501 | K39: 0.02342150885 | L39: 0.0004389686008 | M39: 38456.4 | N39: 804.1 | O39: 27.55 | P39: 41124.36 | Q39: 12.03199827 | R39: 446526.3644
C40: 206169.8294 | D40: 410 | E40: G4_TN IE_PR48 | F40: G4_TE IE_2D+R12 | G40: G4_TE IE_SOF+LED12 | H40: G4 TE IE_F4SVR | I40: DC_SVRG1 | J40: 0.4587349249 | K40: 0.428108459 | L40: 0.007976531584 | M40: 6431.08 | N40: 14319.79 | O40: 322.73 | P40: 28099.49 | Q40: 11.71346597 | R40: 0
C41: 205049.4068 | D41: 410 | E41: G4_TN IE_2D+R12 | F41: G4_TE IE_SOF+LED12 | G41: G4_TE IE_SOF+PR12 | H41: G4 TE IE_F4SVR | I41: DC_SVRG1 | J41: 0.9516767996 | K41: 0.02076998208 | L41: 0.0008687697757 | M41: 32554.25 | N41: 869.5 | O41: 45.05 | P41: 35316.34 | Q41: 12.01828734 | R41: 23675.66908
C42: 205047.0145 | D42: 410 | E42: G4_TN IE_2D+R12 | F42: G4_TE IE_SOF+LED12 | G42: G4_TE IE_SOF+DCV12 | H42: G4 TE IE_F4SVR | I42: DC_SVRG1 | J42: 0.9516767996 | K42: 0.02076998208 | L42: 0.001141694776 | M42: 32554.25 | N42: 869.5 | O42: 71.6 | P42: 35328.74 | Q42: 12.01878773 | R42: 24773.75882
C43: 199512.6693 | D43: 410 | E43: G4_TN IE_SOF+LED12 | F43: G4_TE IE_2D+R12 | G43: G4_TE IE_SOF+DCV12 | H43: G4 TE IE_F4SVR | I43: DC_SVRG1 | J43: 0.9497534482 | K43: 0.02338743969 | L43: 0.0004408194115 | M43: 38453.28 | N43: 802.89 | O43: 27.66 | P43: 41123.49 | Q43: 12.03180797 | R43: 445057.237
C44: 206169.8294 | D44: 411 | E44: G4_TN IE_PR48 | F44: G4_TE IE_2D+R12 | G44: G4_TE IE_SOF+LED12 | H44: G4 TE IE_F4SVR | I44: DC_SVRG1 | J44: 0.4587349249 | K44: 0.428108459 | L44: 0.007976531584 | M44: 6431.08 | N44: 14319.79 | O44: 322.73 | P44: 28099.49 | Q44: 11.71346597 | R44: 0
C45: 203248.2475 | D45: 411 | E45: G4_TN IE_PR48 | F45: G4_TE IE_SOF+LED12 | G45: G4_TE IE_2D+R12 | H45: G4 TE IE_F4SVR | I45: DC_SVRG1 | J45: 0.4587349249 | K45: 0.4121957003 | L45: 0.02352905372 | M45: 6431.08 | N45: 16831 | O45: 780.43 | P45: 31109.56 | Q45: 11.71789037 | R45: 680333.2839
C46: 203623.8636 | D46: 412 | E46: G4_TN IE_SMV+PR12+24 | F46: G4_TE IE_2D+R12 | G46: G4_TE IE_SOF+LED12 | H46: G4 TE IE_F4SVR | I46: DC_SVRG1 | J46: 0.7820873559 | K46: 0.1606949282 | L46: 0.002961994996 | M46: 25506.79 | N46: 5467.78 | O46: 121.92 | P46: 34441.14 | Q46: 11.90325018 | R46: 0
C47: 202504.9536 | D47: 412 | E47: G4_TN IE_SMV+PR12+24 | F47: G4_TE IE_SOF+LED12 | G47: G4_TE IE_2D+R12 | H47: G4 TE IE_F4SVR | I47: DC_SVRG1 | J47: 0.7820873559 | K47: 0.1546847146 | L47: 0.008828383179 | M47: 25506.79 | N47: 6426.64 | O47: 297.85 | P47: 35592.43 | Q47: 11.90486918 | R47: 711109.2825
C48: 9.075946794e-07
C49: 7.443580486e-07
C50: 8.473570534e-07
C51: 2.513448803e-07
C52: 6.757323453e-07
C53: 4.473923681e-07
C54: 7.410528744e-07
C55: 2.691002246e-07
C56: 6.263545215e-07
C57: 2.019621875e-07
C58: 5.223171412e-08
C59: 9.283653012e-07
C60: 5.677241788e-07
C61: 5.320182776e-07
C62: 2.248468141e-07
C63: 2.107505117e-07
C64: 6.541254281e-07
C65: 2.877114866e-07
C66: 6.46267361e-09
C67: 6.751896849e-07
C68: 5.850088723e-07
C69: 7.021690647e-07
C70: 3.124237095e-07
C71: 8.97722269e-07
C72: 3.216447071e-07
C73: 1.542894678e-07
C74: 8.67881624e-07
C75: 9.218682134e-07
C76: =Q76*threshold-P76+RAND()/1000000 -> 9.970442106e-07
C77: 2.629288145e-07
C78: 1.297786927e-07
C79: 8.046804727e-08
C80: 8.753413317e-07
C81: 6.685403415e-07
C82: 8.178900099e-07
C83: 9.321575285e-07
C84: 5.000502616e-07
C85: 2.106309987e-07
C86: 3.696772274e-07
C87: 9.55483207e-07
C88: 7.889986186e-08
C89: 4.9629491e-07
C90: 7.542100242e-07
C91: 6.648841722e-07
C92: 4.051449521e-07
C93: 2.430242695e-07
C94: 2.004271844e-07
C95: 3.757363065e-07
C96: 1.383413022e-07
C97: 1.074485057e-07
C98: 5.670029316e-07
C99: 4.030324513e-07
C100: 8.143834231e-07
C101: 8.719378474e-07
C102: 3.114922592e-07
C103: 5.086025538e-08
C104: 7.307088209e-07
C105: 7.230986419e-07
C106: 6.004466331e-07
C107: 8.092443894e-07
C108: 6.73714483e-07
C109: 7.645032788e-07
C110: 8.158539425e-08
C111: 1.359004821e-07
C112: 7.723161822e-07
C113: 3.257704972e-07
C114: 4.025074484e-07
C115: 4.542857818e-07
C116: 4.428269618e-07
C117: 6.254733464e-07
C118: 8.680733839e-07
C119: 8.577097078e-07
C120: 3.102835231e-07
C121: 8.474719914e-07
C122: 3.400123786e-07
C123: 4.289426153e-07
C124: 5.546788161e-07
C125: 1.907921876e-07
C126: 5.489721367e-07
C127: 2.471508734e-07
C128: 1.458393588e-07
C129: 3.531002393e-07
C130: 8.272091262e-07
C131: 8.210846749e-07
C132: 1.496340676e-09
C133: 7.826911229e-07
C134: 5.214260437e-07
C135: 7.466749099e-07
C136: 5.907023652e-07
C137: 1.486497325e-07
C138: 2.90094942e-07
C139: 6.182329729e-07
C140: =Q140*threshold-P140+RAND()/1000000 -> 1.862574413e-07
C141: 5.905581745e-07
C142: 1.698077046e-07
C143: 3.036563693e-08
C144: 7.561352178e-07
C145: 8.012880373e-08
C146: 5.089861037e-07
C147: 7.035100513e-07
C148: 7.748515831e-07
C149: 2.08227516e-07
C150: 3.917305919e-07
C151: 5.111617519e-07
C152: 1.214287538e-07
C153: 1.848856709e-07
C154: 7.227394375e-07
C155: 7.618209651e-07
C156: 3.411548121e-07
C157: 7.237092266e-07
C158: 7.236976859e-07
C159: 6.408048214e-07
C160: 9.609980676e-07
C161: 8.187762417e-07
C162: 7.860334808e-07
C163: 3.842043307e-07
C164: 5.660643493e-07
C165: 1.931968271e-07
C166: 2.22332128e-08
C167: 3.418239939e-07
C168: 3.961194675e-07
C169: 5.240765654e-07
C170: 5.971805711e-07
C171: 7.503367129e-08
C172: 1.744631471e-07
C173: 3.827236078e-07
C174: 9.145122133e-08
C175: 8.897870591e-07
C176: 9.665693214e-07
C177: 4.20571631e-07
C178: 2.207917607e-07
C179: 1.482178562e-07
C180: 5.658683828e-07
C181: 4.587309052e-07
C182: 2.304160062e-07
C183: 1.405058963e-07
C184: 2.653476562e-07
C185: 2.690512859e-07
C186: 2.248749761e-07
C187: 5.614235769e-07
C188: 3.459523499e-07
C189: 4.076781051e-07
C190: 7.786050118e-07
C191: 2.344267422e-07
C192: 9.801007014e-07
C193: 7.621719899e-07
C194: 1.891305881e-07
C195: 5.779948414e-07
C196: 9.837150653e-07
C197: 3.377762415e-07
C198: 1.635485937e-07
C199: 4.977233151e-07
C200: 8.482327454e-08
C201: 4.963844199e-07
C202: 3.156427121e-07
C203: 3.842858415e-07
C204: =Q204*threshold-P204+RAND()/1000000 -> 8.776675406e-07
C205: 2.667172304e-07
... 201 more rows
